Workbook

Sheet Stavba
C2: Položkový rozpočet stavby | H2: Datum: | I2: =TODAY() -> 2024-02-19
C5: Stavba : | D5: 3383 | E5: Turnov-Lokalita Hruštice - Károvsko, Dostavba 2024
C7: Objednatel : | D7: Město TURNOV | H7: IČO : | I7: 00276227
D8: Antonína Dvořáka 335 | H8: DIČ : | I8: CZ00276227
C9: 51122 | D9: Turnov
C11: Zhotovitel : | D11: . | H11: IČO :
H12: DIČ :
C14: Za zhotovitele : | H14: Za objednatele :
C16: _______________ | H16: _______________
J18: Rozpočtové náklady
B19: Základ pro DPH | D19: 15 | E19: % | I19: =ROUND(G33,0) -> 0
B20: DPH | D20: =SazbaDPH1 -> 15 | E20: % | I20: =ROUND(I19*D20/100,0) -> 0
B21: Základ pro DPH | D21: 21 | E21: % | I21: =ROUND(H33,0) -> 0
B22: DPH | D22: =SazbaDPH2 -> 21 | E22: % | I22: =ROUND(I21*D21/100,0) -> 0
B23: Cena celkem za stavbu | I23: =SUM(I19:I22) -> 0
B26: Rekapitulace stavebních objektů a provozních souborů
B28: Číslo a název objektu / provozního souboru | F28: Cena celkem | G28: =CONCATENATE("Základ DPH ",SazbaDPH1," %") -> Základ DPH 15 % | H28: =CONCATENATE("Základ DPH ",SazbaDPH2," %") -> Základ DPH 21 % | I28: DPH celkem | J28: %
B29: 101.08 | C29: Komunikace "Vladimíra Krajiny" | F29: =G29+H29+I29 -> 0 | G29: 0 | H29: =SUM(H38) -> 0 | I29: =(G29*SazbaDPH1)/100+(H29*SazbaDPH2)/100 -> 0 | J29: =IF(CelkemObjekty=0,"",F29/CelkemObjekty*100) -> 
B30: 101.10 | C30: Komunikace "Františka Závorky" | F30: =G30+H30+I30 -> 0 | G30: 0 | H30: =SUM(H39:H40) -> 0 | I30: 0
B31: 101.11 | C31: Komunikace "Nad Farářstvím" | F31: 0 | G31: 0 | H31: =SUM(H41:H43) -> 0 | I31: 0
B32: 102.03 | C32: Komunikace "Gen. Václava Morávka" | F32: 0 | G32: 0 | H32: =SUM(H44) -> 0 | I32: 0
B33: Celkem za stavbu | F33: =SUM(F29:F32) -> 0 | G33: =SUM(G29:G32) -> 0 | H33: =SUM(H29:H32) -> 0 | I33: =SUM(I29:I32) -> 0 | J33: =IF(CelkemObjekty=0,"",F33/CelkemObjekty*100) -> 
B35: Rekapitulace stavebních rozpočtů
B37: Číslo objektu | C37: Číslo a název rozpočtu | F37: Cena celkem | G37: =CONCATENATE("Základ DPH ",SazbaDPH1," %") -> Základ DPH 15 % | H37: =CONCATENATE("Základ DPH ",SazbaDPH2," %") -> Základ DPH 21 % | I37: DPH celkem | J37: %
B38: 101.08 | C38: 101.08.1 Dostavba chodníku - levá strana | F38: =G38+H38+I38 -> 0 | G38: 0 | H38: =SUM('101.08 101.08.1 KL'!C23) -> 0 | I38: =(G38*SazbaDPH1)/100+(H38*SazbaDPH2)/100 -> 0 | J38: =IF(CelkemObjekty=0,"",F38/CelkemObjekty*100) -> 
B39: 101.10 | C39: 101.10.1 Úsek "Znorovská" x "1.křižovatka" | F39: =G39+H39+I39 -> 0 | G39: 0 | H39: =SUM('101.10 101.10.1 KL'!C23) -> 0 | I39: 0
B40: 101.10 | C40: 101.10.2 Přeložka STL plynové přípojky pro čp.2143 | F40: 0 | G40: 0 | H40: =SUM('101.10 101.10.2 KL'!C23) -> 0 | I40: 0
B41: 101.11 | C41: 101.11.2 Křižovatka č.1 - Dostavba | F41: 0 | G41: 0 | H41: =SUM('101.11 101.11.2 KL'!C23) -> 0 | I41: 0
B42: 101.11 | C42: 101.11.3 Úsek č. 2 - dostavba | F42: 0 | G42: 0 | H42: =SUM('101.11 101.11.3 KL'!C23) -> 0 | I42: 0
B43: 101.11 | C43: 101.11.4 Křižovatka č.2 - Dostavba | F43: 0 | G43: 0 | H43: =SUM('101.11 101.11.4 KL'!C23) -> 0 | I43: 0
B44: 102.03 | C44: 102.03.1 Úsek č.1 - Dostavba | F44: 0 | G44: 0 | H44: =SUM('102.03 102.03.1 KL'!C23) -> 0 | I44: 0
B45: Celkem za stavbu | F45: =SUM(F38:F44) -> 0 | G45: =SUM(G38:G44) -> 0 | H45: =SUM(H38:H44) -> 0 | I45: =SUM(I38:I44) -> 0 | J45: =IF(CelkemObjekty=0,"",F45/CelkemObjekty*100) -> 

Sheet 101.08 101.08.1 KL
A1: POLOŽKOVÝ ROZPOČET
A2: Rozpočet | C2: 101.08.1 | D2: Dostavba chodníku - levá strana | F2: JKSO | G2: 822.27
A4: Objekt | F4: SKP
A5: 101.08 | C5: Komunikace "Vladimíra Krajiny" | F5: Měrná jednotka | G5: m2
A6: Stavba | F6: Počet jednotek | G6: 0
A7: 3383 | C7: Turnov-Lokalita Hruštice - Károvsko, Dostavba 2024 | F7: Náklady na m.j. | G7: =IF(G6=0,,ROUND((F30+F32)/G6,1)) -> 0
A8: Projektant | F8: Typ rozpočtu
A9: Zpracovatel projektu
A10: Objednatel | C10: Město TURNOV
A11: Dodavatel | C11: . | F11: Zakázkové číslo
A12: Rozpočtoval | F12: Počet listů
A13: ROZPOČTOVÉ NÁKLADY
A14: Základní rozpočtové náklady | D14: Ostatní rozpočtové náklady
B15: HSV celkem | C15: ='101.08 101.08.1 Rek'!E11 -> 0 | D15: ='101.08 101.08.1 Rek'!A16 -> Zařízení staveniště | G15: ='101.08 101.08.1 Rek'!I16 -> 0
A16: Z | B16: PSV celkem | C16: ='101.08 101.08.1 Rek'!F11 -> 0 | D16: ='101.08 101.08.1 Rek'!A17 -> Kompletační činnost (IČD) | G16: ='101.08 101.08.1 Rek'!I17 -> 0
A17: R | B17: M práce celkem | C17: ='101.08 101.08.1 Rek'!H11 -> 0 | D17: ='101.08 101.08.1 Rek'!A18 -> Vytýčení stavby a podz. inženýrských sítí | G17: ='101.08 101.08.1 Rek'!I18 -> 0
A18: N | B18: M dodávky celkem | C18: ='101.08 101.08.1 Rek'!G11 -> 0 | D18: ='101.08 101.08.1 Rek'!A19 -> Dokumentace skutečného provedení | G18: ='101.08 101.08.1 Rek'!I19 -> 0
A19: ZRN celkem | C19: =SUM(C15:C18) -> 0 | D19: ='101.08 101.08.1 Rek'!A20 -> Geodetické zaměření stavby | G19: ='101.08 101.08.1 Rek'!I20 -> 0
D20: ='101.08 101.08.1 Rek'!A21 -> DIO | G20: ='101.08 101.08.1 Rek'!I21 -> 0
A21: HZS | C21: ='101.08 101.08.1 Rek'!I11 -> 0
A22: ZRN+HZS | C22: =C19+C21 -> 0
A23: ZRN+ost.náklady+HZS | C23: =C22+G23 -> 0 | D23: Ostatní náklady celkem | G23: ='101.08 101.08.1 Rek'!H22 -> 0
A24: Vypracoval | D24: Za zhotovitele | F24: Za objednatele
A25: Jméno : | D25: Jméno : | F25: Jméno :
A26: Datum : | D26: Datum : | F26: Datum :
A28: Podpis : | D28: Podpis: | F28: Podpis:
A30: Základ pro DPH | C30: 21 | D30: % | F30: =C23-F32 -> 0
A31: DPH | C31: =C30 -> 21 | D31: % | F31: =ROUND(PRODUCT(F30,C31/100),0) -> 0
A32: Základ pro DPH | C32: 0 | D32: % | F32: 0
A33: DPH | C33: =C32 -> 0 | D33: % | F33: =ROUND(PRODUCT(F32,C33/100),0) -> 0
A34: CENA ZA OBJEKT CELKEM | F34: =ROUND(SUM(F30:F33),0) -> 0
A36: Poznámka :

Sheet 101.08 101.08.1 Rek
A1: Stavba : | C1: 3383 Turnov-Lokalita Hruštice - Károvsko, Dostavba 2024 | G1: Rozpočet : | H1: 101.08.1
A2: Objekt : | C2: 101.08 Komunikace "Vladimíra Krajiny" | G2: Dostavba chodníku - levá strana
A4: REKAPITULACE STAVEBNÍCH DÍLŮ
B6: Stavební díl | E6: HSV | F6: PSV | G6: Dodávka | H6: Montáž | I6: HZS
A7: ='101.08 101.08.1 Pol'!B7 -> 1 | B7: ='101.08 101.08.1 Pol'!C7 -> Zemní práce | E7: ='101.08 101.08.1 Pol'!BA21 -> 0 | F7: ='101.08 101.08.1 Pol'!BB21 -> 0 | G7: ='101.08 101.08.1 Pol'!BC21 -> 0 | H7: ='101.08 101.08.1 Pol'!BD21 -> 0 | I7: ='101.08 101.08.1 Pol'!BE21 -> 0
A8: ='101.08 101.08.1 Pol'!B22 -> 5 | B8: ='101.08 101.08.1 Pol'!C22 -> Komunikace | E8: ='101.08 101.08.1 Pol'!BA34 -> 0 | F8: ='101.08 101.08.1 Pol'!BB34 -> 0 | G8: ='101.08 101.08.1 Pol'!BC34 -> 0 | H8: ='101.08 101.08.1 Pol'!BD34 -> 0 | I8: ='101.08 101.08.1 Pol'!BE34 -> 0
A9: ='101.08 101.08.1 Pol'!B35 -> 91 | B9: ='101.08 101.08.1 Pol'!C35 -> Doplňující práce na komunikaci | E9: ='101.08 101.08.1 Pol'!BA40 -> 0 | F9: ='101.08 101.08.1 Pol'!BB40 -> 0 | G9: ='101.08 101.08.1 Pol'!BC40 -> 0 | H9: ='101.08 101.08.1 Pol'!BD40 -> 0 | I9: ='101.08 101.08.1 Pol'!BE40 -> 0
A10: ='101.08 101.08.1 Pol'!B41 -> 99 | B10: ='101.08 101.08.1 Pol'!C41 -> Staveništní přesun hmot | E10: ='101.08 101.08.1 Pol'!BA43 -> 0 | F10: ='101.08 101.08.1 Pol'!BB43 -> 0 | G10: ='101.08 101.08.1 Pol'!BC43 -> 0 | H10: ='101.08 101.08.1 Pol'!BD43 -> 0 | I10: ='101.08 101.08.1 Pol'!BE43 -> 0
B11: CELKEM OBJEKT | E11: =SUM(E7:E10) -> 0 | F11: =SUM(F7:F10) -> 0 | G11: =SUM(G7:G10) -> 0 | H11: =SUM(H7:H10) -> 0 | I11: =SUM(I7:I10) -> 0
A13: VEDLEJŠÍ ROZPOČTOVÉ NÁKLADY
A15: Název VRN | E15: Kč | I15: Kč
A16: Zařízení staveniště | E16: 0 | I16: =E16+F16*G16/100 -> 0 | BA16: 2
A17: Kompletační činnost (IČD) | E17: 0 | I17: =E17+F17*G17/100 -> 0 | BA17: 2
A18: Vytýčení stavby a podz. inženýrských sítí | E18: 0 | I18: =E18+F18*G18/100 -> 0 | BA18: 0
A19: Dokumentace skutečného provedení | E19: 0 | I19: =E19+F19*G19/100 -> 0 | BA19: 0
A20: Geodetické zaměření stavby | E20: 0 | I20: =E20+F20*G20/100 -> 0 | BA20: 0
A21: DIO | E21: 0 | I21: =E21+F21*G21/100 -> 0 | BA21: 0
B22: CELKEM VRN | H22: =SUM(I16:I21) -> 0

Sheet 101.08 101.08.1 Pol
A1: Položkový rozpočet
A3: Stavba : | C3: 3383 Turnov-Lokalita Hruštice - Károvsko, Dostavba 2024 | E3: Rozpočet: | F3: ='101.08 101.08.1 Rek'!H1 -> 101.08.1
A4: Objekt : | C4: 101.08 Komunikace "Vladimíra Krajiny" | E4: ='101.08 101.08.1 Rek'!G2 -> Dostavba chodníku - levá strana
A6: P.č. | B6: Číslo položky | C6: Název položky | D6: MJ | E6: množství | F6: cena / MJ | G6: celkem (Kč) | H6: Jednotková hmotnost | I6: Celková hmotnost | J6: Jednotková dem.hmot. | K6: Celková dem.hmot.
A7: Díl: | B7: 1 | C7: Zemní práce | O7: 1
A8: 1 | B8: 122202201R00 | C8: Odkopávky pro silnice v hor. 3 do 100 m3 | D8: m3 | E8: 25.6 | G8: =E8*F8 -> 0 | H8: 0 | I8: =E8*H8 -> 0 | J8: 0 | K8: =E8*J8 -> 0 | O8: 2 | AA8: 1 | AB8: 1 | AC8: 1 | AZ8: 1 | BA8: =IF(AZ8=1,G8,0) -> 0 | BB8: =IF(AZ8=2,G8,0) -> 0 | BC8: =IF(AZ8=3,G8,0) -> 0 | BD8: =IF(AZ8=4,G8,0) -> 0 | BE8: =IF(AZ8=5,G8,0) -> 0 | CA8: 1 | CB8: 1
C9: Chodník - levá strana:25,60 | E9: 25.6 | M9: Chodník - levá strana:25,60
A10: 2 | B10: 122202209R00 | C10: Příplatek za lepivost - odkop. pro silnice v hor.3 | D10: m3 | E10: 25.6 | G10: =E10*F10 -> 0 | H10: 0 | I10: =E10*H10 -> 0 | J10: 0 | K10: =E10*J10 -> 0 | O10: 2 | AA10: 1 | AB10: 1 | AC10: 1 | AZ10: 1 | BA10: =IF(AZ10=1,G10,0) -> 0 | BB10: =IF(AZ10=2,G10,0) -> 0 | BC10: =IF(AZ10=3,G10,0) -> 0 | BD10: =IF(AZ10=4,G10,0) -> 0 | BE10: =IF(AZ10=5,G10,0) -> 0 | CA10: 1 | CB10: 1
C11: Chodník - levá strana:25,60 | E11: 25.6 | M11: Chodník - levá strana:25,60
A12: 3 | B12: 162701105RSZ | C12: Vodorovné přemístění výkopku z hor.1-7 na skládku zhotovitele | D12: m3 | E12: 25.6 | G12: =E12*F12 -> 0 | H12: 0 | I12: =E12*H12 -> 0 | J12: 0 | K12: =E12*J12 -> 0 | O12: 2 | AA12: 1 | AB12: 1 | AC12: 1 | AZ12: 1 | BA12: =IF(AZ12=1,G12,0) -> 0 | BB12: =IF(AZ12=2,G12,0) -> 0 | BC12: =IF(AZ12=3,G12,0) -> 0 | BD12: =IF(AZ12=4,G12,0) -> 0 | BE12: =IF(AZ12=5,G12,0) -> 0 | CA12: 1 | CB12: 1
C13: Chodník - levá strana:25,60 | E13: 25.6 | M13: Chodník - levá strana:25,60
A14: 4 | B14: 181101102R00 | C14: Úprava pláně v zářezech v hor. 1-4, se zhutněním | D14: m2 | E14: 125 | G14: =E14*F14 -> 0 | H14: 0 | I14: =E14*H14 -> 0 | J14: 0 | K14: =E14*J14 -> 0 | O14: 2 | AA14: 1 | AB14: 1 | AC14: 1 | AZ14: 1 | BA14: =IF(AZ14=1,G14,0) -> 0 | BB14: =IF(AZ14=2,G14,0) -> 0 | BC14: =IF(AZ14=3,G14,0) -> 0 | BD14: =IF(AZ14=4,G14,0) -> 0 | BE14: =IF(AZ14=5,G14,0) -> 0 | CA14: 1 | CB14: 1
C15: Chodník - levá strana:100,00*1,25 | E15: 125 | M15: Chodník - levá strana:100,00*1,25
A16: 5 | B16: 181300012RAC | C16: Rozprostření ornice v rovině tloušťka 20 cm dovoz ornice ze vzdálenosti 5 km, osetí trávou | D16: m2 | E16: 75.625 | G16: =E16*F16 -> 0 | H16: 3e-05 | I16: =E16*H16 -> 0.00226875 | J16: 0 | K16: =E16*J16 -> 0 | O16: 2 | AA16: 1 | AB16: 1 | AC16: 1 | AZ16: 1 | BA16: =IF(AZ16=1,G16,0) -> 0 | BB16: =IF(AZ16=2,G16,0) -> 0 | BC16: =IF(AZ16=3,G16,0) -> 0 | BD16: =IF(AZ16=4,G16,0) -> 0 | BE16: =IF(AZ16=5,G16,0) -> 0 | CA16: 1 | CB16: 1
C17: Včetně naložení ornice na skládce investora a přesunu hmot. | L17: Včetně naložení ornice na skládce investora a přesunu hmot. | O17: 3
C18: Plocha mezi chodníkem a komunikací:60,50*1,25 | E18: 75.625 | M18: Plocha mezi chodníkem a komunikací:60,50*1,25
A19: 6 | B19: 199000002R00 | C19: Poplatek za skládku horniny 1- 7 č. dle katal. odpadů 17 05 04 | D19: m3 | E19: 25.6 | G19: =E19*F19 -> 0 | H19: 0 | I19: =E19*H19 -> 0 | J19: 0 | K19: =E19*J19 -> 0 | O19: 2 | AA19: 1 | AB19: 1 | AC19: 1 | AZ19: 1 | BA19: =IF(AZ19=1,G19,0) -> 0 | BB19: =IF(AZ19=2,G19,0) -> 0 | BC19: =IF(AZ19=3,G19,0) -> 0 | BD19: =IF(AZ19=4,G19,0) -> 0 | BE19: =IF(AZ19=5,G19,0) -> 0 | CA19: 1 | CB19: 1
C20: Chodník - levá strana:25,60 | E20: 25.6 | M20: Chodník - levá strana:25,60
B21: Celkem za | C21: 1 Zemní práce | G21: =SUM(G7:G20) -> 0 | I21: =SUM(I7:I20) -> 0.00226875 | K21: =SUM(K7:K20) -> 0 | O21: 4 | BA21: =SUM(BA7:BA20) -> 0 | BB21: =SUM(BB7:BB20) -> 0 | BC21: =SUM(BC7:BC20) -> 0 | BD21: =SUM(BD7:BD20) -> 0 | BE21: =SUM(BE7:BE20) -> 0
A22: Díl: | B22: 5 | C22: Komunikace | O22: 1
A23: 7 | B23: 564851111R00 | C23: Podklad ze štěrkodrti po zhutnění tloušťky 15 cm | D23: m2 | E23: 100 | G23: =E23*F23 -> 0 | H23: 0.378 | I23: =E23*H23 -> 37.8 | J23: 0 | K23: =E23*J23 -> 0 | O23: 2 | AA23: 1 | AB23: 1 | AC23: 1 | AZ23: 1 | BA23: =IF(AZ23=1,G23,0) -> 0 | BB23: =IF(AZ23=2,G23,0) -> 0 | BC23: =IF(AZ23=3,G23,0) -> 0 | BD23: =IF(AZ23=4,G23,0) -> 0 | BE23: =IF(AZ23=5,G23,0) -> 0 | CA23: 1 | CB23: 1
C24: Chodník - levá strana:100,00 | E24: 100 | M24: Chodník - levá strana:100,00
A25: 8 | B25: 596215021R00 | C25: Kladení zámkové dlažby tl. 6 cm do drtě tl. 4 cm | D25: m2 | E25: 100 | G25: =E25*F25 -> 0 | H25: 0.0739 | I25: =E25*H25 -> 7.39 | J25: 0 | K25: =E25*J25 -> 0 | O25: 2 | AA25: 1 | AB25: 1 | AC25: 1 | AZ25: 1 | BA25: =IF(AZ25=1,G25,0) -> 0 | BB25: =IF(AZ25=2,G25,0) -> 0 | BC25: =IF(AZ25=3,G25,0) -> 0 | BD25: =IF(AZ25=4,G25,0) -> 0 | BE25: =IF(AZ25=5,G25,0) -> 0 | CA25: 1 | CB25: 1
C26: Chodník - levá strana:100,00 | E26: 100 | M26: Chodník - levá strana:100,00
A27: 9 | B27: 596291111R00 | C27: Řezání zámkové dlažby tl. 60 mm | D27: m | E27: 65 | G27: =E27*F27 -> 0 | H27: 0.00033 | I27: =E27*H27 -> 0.02145 | J27: 0 | K27: =E27*J27 -> 0 | O27: 2 | AA27: 1 | AB27: 1 | AC27: 1 | AZ27: 1 | BA27: =IF(AZ27=1,G27,0) -> 0 | BB27: =IF(AZ27=2,G27,0) -> 0 | BC27: =IF(AZ27=3,G27,0) -> 0 | BD27: =IF(AZ27=4,G27,0) -> 0 | BE27: =IF(AZ27=5,G27,0) -> 0 | CA27: 1 | CB27: 1
C28: Chodník - levá strana:65,00 | E28: 65 | M28: Chodník - levá strana:65,00
A29: 10 | B29: 59245268.R | C29: Dlažba betonová skládaná přírodní 20x10x6 cm | D29: m2 | E29: 99.96 | G29: =E29*F29 -> 0 | H29: 0.137 | I29: =E29*H29 -> 13.69452 | K29: =E29*J29 -> 0 | O29: 2 | AA29: 3 | AB29: 1 | AC29: 59245268.R | AZ29: 1 | BA29: =IF(AZ29=1,G29,0) -> 0 | BB29: =IF(AZ29=2,G29,0) -> 0 | BC29: =IF(AZ29=3,G29,0) -> 0 | BD29: =IF(AZ29=4,G29,0) -> 0 | BE29: =IF(AZ29=5,G29,0) -> 0 | CA29: 3 | CB29: 1
C30: Chodník - levá strana:100,00*1,02 | E30: 102 | M30: Chodník - levá strana:100,00*1,02
C31: Odpočet hmatové dlažby:-2,00*1,02 | E31: -2.04 | M31: Odpočet hmatové dlažby:-2,00*1,02
A32: 11 | B32: 59245272.R | C32: Dlažba betonová skládaná hmatová bar. 20x10x6 cm | D32: m2 | E32: 2.04 | G32: =E32*F32 -> 0 | H32: 0.137 | I32: =E32*H32 -> 0.27948 | K32: =E32*J32 -> 0 | O32: 2 | AA32: 3 | AB32: 1 | AC32: 59245272.R | AZ32: 1 | BA32: =IF(AZ32=1,G32,0) -> 0 | BB32: =IF(AZ32=2,G32,0) -> 0 | BC32: =IF(AZ32=3,G32,0) -> 0 | BD32: =IF(AZ32=4,G32,0) -> 0 | BE32: =IF(AZ32=5,G32,0) -> 0 | CA32: 3 | CB32: 1
C33: Chodník - levá strana - hmatová dlažba:2,00*1,02 | E33: 2.04 | M33: Chodník - levá strana - hmatová dlažba:2,00*1,02
B34: Celkem za | C34: 5 Komunikace | G34: =SUM(G22:G33) -> 0 | I34: =SUM(I22:I33) -> 59.18545 | K34: =SUM(K22:K33) -> 0 | O34: 4 | BA34: =SUM(BA22:BA33) -> 0 | BB34: =SUM(BB22:BB33) -> 0 | BC34: =SUM(BC22:BC33) -> 0 | BD34: =SUM(BD22:BD33) -> 0 | BE34: =SUM(BE22:BE33) -> 0
A35: Díl: | B35: 91 | C35: Doplňující práce na komunikaci | O35: 1
A36: 12 | B36: 916561111RT2 | C36: Osazení záhon.obrubníků do lože z C 12/15 s opěrou včetně obrubníku 100/5/20 cm | D36: m | E36: 129 | G36: =E36*F36 -> 0 | H36: 0.12472 | I36: =E36*H36 -> 16.08888 | J36: 0 | K36: =E36*J36 -> 0 | O36: 2 | AA36: 1 | AB36: 1 | AC36: 1 | AZ36: 1 | BA36: =IF(AZ36=1,G36,0) -> 0 | BB36: =IF(AZ36=2,G36,0) -> 0 | BC36: =IF(AZ36=3,G36,0) -> 0 | BD36: =IF(AZ36=4,G36,0) -> 0 | BE36: =IF(AZ36=5,G36,0) -> 0 | CA36: 1 | CB36: 1
C37: Chodník - levá strana:129,00 | E37: 129 | M37: Chodník - levá strana:129,00
A38: 13 | B38: 918101111R00 | C38: Lože pod obrubníky nebo obruby dlažeb z C 12/15 | D38: m3 | E38: 2.58 | G38: =E38*F38 -> 0 | H38: 2.525 | I38: =E38*H38 -> 6.5145 | J38: 0 | K38: =E38*J38 -> 0 | O38: 2 | AA38: 1 | AB38: 1 | AC38: 1 | AZ38: 1 | BA38: =IF(AZ38=1,G38,0) -> 0 | BB38: =IF(AZ38=2,G38,0) -> 0 | BC38: =IF(AZ38=3,G38,0) -> 0 | BD38: =IF(AZ38=4,G38,0) -> 0 | BE38: =IF(AZ38=5,G38,0) -> 0 | CA38: 1 | CB38: 1
C39: Chodník - levá strana:129,00*0,20*0,10 | E39: 2.58 | M39: Chodník - levá strana:129,00*0,20*0,10
B40: Celkem za | C40: 91 Doplňující práce na komunikaci | G40: =SUM(G35:G39) -> 0 | I40: =SUM(I35:I39) -> 22.60338 | K40: =SUM(K35:K39) -> 0 | O40: 4 | BA40: =SUM(BA35:BA39) -> 0 | BB40: =SUM(BB35:BB39) -> 0 | BC40: =SUM(BC35:BC39) -> 0 | BD40: =SUM(BD35:BD39) -> 0 | BE40: =SUM(BE35:BE39) -> 0
A41: Díl: | B41: 99 | C41: Staveništní přesun hmot | O41: 1
A42: 14 | B42: 998223011R00 | C42: Přesun hmot, pozemní komunikace, kryt dlážděný | D42: t | E42: 81.79109875 | G42: =E42*F42 -> 0 | H42: 0 | I42: =E42*H42 -> 0 | K42: =E42*J42 -> 0 | O42: 2 | AA42: 7 | AB42: 1 | AC42: 2 | AZ42: 1 | BA42: =IF(AZ42=1,G42,0) -> 0 | BB42: =IF(AZ42=2,G42,0) -> 0 | BC42: =IF(AZ42=3,G42,0) -> 0 | BD42: =IF(AZ42=4,G42,0) -> 0 | BE42: =IF(AZ42=5,G42,0) -> 0 | CA42: 7 | CB42: 1
B43: Celkem za | C43: 99 Staveništní přesun hmot | G43: =SUM(G41:G42) -> 0 | I43: =SUM(I41:I42) -> 0 | K43: =SUM(K41:K42) -> 0 | O43: 4 | BA43: =SUM(BA41:BA42) -> 0 | BB43: =SUM(BB41:BB42) -> 0 | BC43: =SUM(BC41:BC42) -> 0 | BD43: =SUM(BD41:BD42) -> 0 | BE43: =SUM(BE41:BE42) -> 0

Sheet 101.10 101.10.1 KL
A1: POLOŽKOVÝ ROZPOČET
A2: Rozpočet | C2: 101.10.1 | D2: Úsek "Znorovská" x "1.křižovatka" | F2: JKSO | G2: 822.27
A4: Objekt | F4: SKP
A5: 101.10 | C5: Komunikace "Františka Závorky" | F5: Měrná jednotka | G5: m2
A6: Stavba | F6: Počet jednotek | G6: 0
A7: 3383 | C7: Turnov-Lokalita Hruštice - Károvsko, Dostavba 2024 | F7: Náklady na m.j. | G7: =IF(G6=0,,ROUND((F30+F32)/G6,1)) -> 0
A8: Projektant | F8: Typ rozpočtu
A9: Zpracovatel projektu
A10: Objednatel | C10: Město TURNOV
A11: Dodavatel | C11: . | F11: Zakázkové číslo
A12: Rozpočtoval | F12: Počet listů
A13: ROZPOČTOVÉ NÁKLADY
A14: Základní rozpočtové náklady | D14: Ostatní rozpočtové náklady
B15: HSV celkem | C15: ='101.10 101.10.1 Rek'!E14 -> 0 | D15: ='101.10 101.10.1 Rek'!A19 -> Zařízení staveniště | G15: ='101.10 101.10.1 Rek'!I19 -> 0
A16: Z | B16: PSV celkem | C16: ='101.10 101.10.1 Rek'!F14 -> 0 | D16: ='101.10 101.10.1 Rek'!A20 -> Kompletační činnost (IČD) | G16: ='101.10 101.10.1 Rek'!I20 -> 0
A17: R | B17: M práce celkem | C17: ='101.10 101.10.1 Rek'!H14 -> 0 | D17: ='101.10 101.10.1 Rek'!A21 -> Vytýčení stavby a podz. inženýrských sítí | G17: ='101.10 101.10.1 Rek'!I21 -> 0
A18: N | B18: M dodávky celkem | C18: ='101.10 101.10.1 Rek'!G14 -> 0 | D18: ='101.10 101.10.1 Rek'!A22 -> Dokumentace skutečného provedení | G18: ='101.10 101.10.1 Rek'!I22 -> 0
A19: ZRN celkem | C19: =SUM(C15:C18) -> 0 | D19: ='101.10 101.10.1 Rek'!A23 -> Geodetické zaměření stavby | G19: ='101.10 101.10.1 Rek'!I23 -> 0
D20: ='101.10 101.10.1 Rek'!A24 -> DIO | G20: ='101.10 101.10.1 Rek'!I24 -> 0
A21: HZS | C21: ='101.10 101.10.1 Rek'!I14 -> 0
A22: ZRN+HZS | C22: =C19+C21 -> 0
A23: ZRN+ost.náklady+HZS | C23: =C22+G23 -> 0 | D23: Ostatní náklady celkem | G23: ='101.10 101.10.1 Rek'!H25 -> 0
A24: Vypracoval | D24: Za zhotovitele | F24: Za objednatele
A25: Jméno : | D25: Jméno : | F25: Jméno :
A26: Datum : | D26: Datum : | F26: Datum :
A28: Podpis : | D28: Podpis: | F28: Podpis:
A30: Základ pro DPH | C30: 21 | D30: % | F30: =C23-F32 -> 0
A31: DPH | C31: =C30 -> 21 | D31: % | F31: =ROUND(PRODUCT(F30,C31/100),0) -> 0
A32: Základ pro DPH | C32: 0 | D32: % | F32: 0
A33: DPH | C33: =C32 -> 0 | D33: % | F33: =ROUND(PRODUCT(F32,C33/100),0) -> 0
A34: CENA ZA OBJEKT CELKEM | F34: =ROUND(SUM(F30:F33),0) -> 0
A36: Poznámka :

Sheet 101.10 101.10.1 Rek
A1: Stavba : | C1: 3383 Turnov-Lokalita Hruštice - Károvsko, Dostavba 2024 | G1: Rozpočet : | H1: 101.10.1
A2: Objekt : | C2: 101.10 Komunikace "Františka Závorky" | G2: Úsek "Znorovská" x "1.křižovatka"
A4: REKAPITULACE STAVEBNÍCH DÍLŮ
B6: Stavební díl | E6: HSV | F6: PSV | G6: Dodávka | H6: Montáž | I6: HZS
A7: ='101.10 101.10.1 Pol'!B7 -> 1 | B7: ='101.10 101.10.1 Pol'!C7 -> Zemní práce | E7: ='101.10 101.10.1 Pol'!BA35 -> 0 | F7: ='101.10 101.10.1 Pol'!BB35 -> 0 | G7: ='101.10 101.10.1 Pol'!BC35 -> 0 | H7: ='101.10 101.10.1 Pol'!BD35 -> 0 | I7: ='101.10 101.10.1 Pol'!BE35 -> 0
A8: ='101.10 101.10.1 Pol'!B36 -> 2 | B8: ='101.10 101.10.1 Pol'!C36 -> Základy a zvláštní zakládání | E8: ='101.10 101.10.1 Pol'!BA40 -> 0 | F8: ='101.10 101.10.1 Pol'!BB40 -> 0 | G8: ='101.10 101.10.1 Pol'!BC40 -> 0 | H8: ='101.10 101.10.1 Pol'!BD40 -> 0 | I8: ='101.10 101.10.1 Pol'!BE40 -> 0
A9: ='101.10 101.10.1 Pol'!B41 -> 5 | B9: ='101.10 101.10.1 Pol'!C41 -> Komunikace | E9: ='101.10 101.10.1 Pol'!BA74 -> 0 | F9: ='101.10 101.10.1 Pol'!BB74 -> 0 | G9: ='101.10 101.10.1 Pol'!BC74 -> 0 | H9: ='101.10 101.10.1 Pol'!BD74 -> 0 | I9: ='101.10 101.10.1 Pol'!BE74 -> 0
A10: ='101.10 101.10.1 Pol'!B75 -> 8 | B10: ='101.10 101.10.1 Pol'!C75 -> Trubní vedení | E10: ='101.10 101.10.1 Pol'!BA80 -> 0 | F10: ='101.10 101.10.1 Pol'!BB80 -> 0 | G10: ='101.10 101.10.1 Pol'!BC80 -> 0 | H10: ='101.10 101.10.1 Pol'!BD80 -> 0 | I10: ='101.10 101.10.1 Pol'!BE80 -> 0
A11: ='101.10 101.10.1 Pol'!B81 -> 91 | B11: ='101.10 101.10.1 Pol'!C81 -> Doplňující práce na komunikaci | E11: ='101.10 101.10.1 Pol'!BA86 -> 0 | F11: ='101.10 101.10.1 Pol'!BB86 -> 0 | G11: ='101.10 101.10.1 Pol'!BC86 -> 0 | H11: ='101.10 101.10.1 Pol'!BD86 -> 0 | I11: ='101.10 101.10.1 Pol'!BE86 -> 0
A12: ='101.10 101.10.1 Pol'!B87 -> 93 | B12: ='101.10 101.10.1 Pol'!C87 -> Dokončovací práce inženýrských staveb | E12: ='101.10 101.10.1 Pol'!BA92 -> 0 | F12: ='101.10 101.10.1 Pol'!BB92 -> 0 | G12: ='101.10 101.10.1 Pol'!BC92 -> 0 | H12: ='101.10 101.10.1 Pol'!BD92 -> 0 | I12: ='101.10 101.10.1 Pol'!BE92 -> 0
A13: ='101.10 101.10.1 Pol'!B93 -> 99 | B13: ='101.10 101.10.1 Pol'!C93 -> Staveništní přesun hmot | E13: ='101.10 101.10.1 Pol'!BA95 -> 0 | F13: ='101.10 101.10.1 Pol'!BB95 -> 0 | G13: ='101.10 101.10.1 Pol'!BC95 -> 0 | H13: ='101.10 101.10.1 Pol'!BD95 -> 0 | I13: ='101.10 101.10.1 Pol'!BE95 -> 0
B14: CELKEM OBJEKT | E14: =SUM(E7:E13) -> 0 | F14: =SUM(F7:F13) -> 0 | G14: =SUM(G7:G13) -> 0 | H14: =SUM(H7:H13) -> 0 | I14: =SUM(I7:I13) -> 0
A16: VEDLEJŠÍ ROZPOČTOVÉ NÁKLADY
A18: Název VRN | E18: Kč | I18: Kč
A19: Zařízení staveniště | E19: 0 | I19: =E19+F19*G19/100 -> 0 | BA19: 2
A20: Kompletační činnost (IČD) | E20: 0 | I20: =E20+F20*G20/100 -> 0 | BA20: 2
A21: Vytýčení stavby a podz. inženýrských sítí | E21: 0 | I21: =E21+F21*G21/100 -> 0 | BA21: 0
A22: Dokumentace skutečného provedení | E22: 0 | I22: =E22+F22*G22/100 -> 0 | BA22: 0
A23: Geodetické zaměření stavby | E23: 0 | I23: =E23+F23*G23/100 -> 0 | BA23: 0
A24: DIO | E24: 0 | I24: =E24+F24*G24/100 -> 0 | BA24: 0
B25: CELKEM VRN | H25: =SUM(I19:I24) -> 0

Sheet 101.10 101.10.1 Pol
A1: Položkový rozpočet
A3: Stavba : | C3: 3383 Turnov-Lokalita Hruštice - Károvsko, Dostavba 2024 | E3: Rozpočet: | F3: ='101.10 101.10.1 Rek'!H1 -> 101.10.1
A4: Objekt : | C4: 101.10 Komunikace "Františka Závorky" | E4: ='101.10 101.10.1 Rek'!G2 -> Úsek "Znorovská" x "1.křižovatka"
A6: P.č. | B6: Číslo položky | C6: Název položky | D6: MJ | E6: množství | F6: cena / MJ | G6: celkem (Kč) | H6: Jednotková hmotnost | I6: Celková hmotnost | J6: Jednotková dem.hmot. | K6: Celková dem.hmot.
A7: Díl: | B7: 1 | C7: Zemní práce | O7: 1
A8: 1 | B8: 122202202R00 | C8: Odkopávky pro silnice v hor. 3 do 1000 m3 | D8: m3 | E8: 386.1 | G8: =E8*F8 -> 0 | H8: 0 | I8: =E8*H8 -> 0 | J8: 0 | K8: =E8*J8 -> 0 | O8: 2 | AA8: 1 | AB8: 1 | AC8: 1 | AZ8: 1 | BA8: =IF(AZ8=1,G8,0) -> 0 | BB8: =IF(AZ8=2,G8,0) -> 0 | BC8: =IF(AZ8=3,G8,0) -> 0 | BD8: =IF(AZ8=4,G8,0) -> 0 | BE8: =IF(AZ8=5,G8,0) -> 0 | CA8: 1 | CB8: 1
C9: Nad úrovní pláně: | E9: 0 | M9: Nad úrovní pláně:
C10: Komunikace:78,00*5,50*0,50 | E10: 214.5 | M10: Komunikace:78,00*5,50*0,50
C11: Sanace páně: | E11: 0 | M11: Sanace páně:
C12: Pod úrovní pláně:78,00*5,50*0,40 | E12: 171.6 | M12: Pod úrovní pláně:78,00*5,50*0,40
A13: 2 | B13: 122202209R00 | C13: Příplatek za lepivost - odkop. pro silnice v hor.3 | D13: m3 | E13: 193.05 | G13: =E13*F13 -> 0 | H13: 0 | I13: =E13*H13 -> 0 | J13: 0 | K13: =E13*J13 -> 0 | O13: 2 | AA13: 1 | AB13: 1 | AC13: 1 | AZ13: 1 | BA13: =IF(AZ13=1,G13,0) -> 0 | BB13: =IF(AZ13=2,G13,0) -> 0 | BC13: =IF(AZ13=3,G13,0) -> 0 | BD13: =IF(AZ13=4,G13,0) -> 0 | BE13: =IF(AZ13=5,G13,0) -> 0 | CA13: 1 | CB13: 1
C14: Nad úrovní pláně: | E14: 0 | M14: Nad úrovní pláně:
C15: Komunikace:78,00*5,50*0,50*0,5 | E15: 107.25 | M15: Komunikace:78,00*5,50*0,50*0,5
C16: Sanace páně: | E16: 0 | M16: Sanace páně:
C17: Pod úrovní pláně:78,00*5,50*0,40*0,5 | E17: 85.8 | M17: Pod úrovní pláně:78,00*5,50*0,40*0,5
A18: 3 | B18: 162701105RSZ | C18: Vodorovné přemístění výkopku z hor.1-7 na skládku zhotovitele | D18: m3 | E18: 386.1 | G18: =E18*F18 -> 0 | H18: 0 | I18: =E18*H18 -> 0 | J18: 0 | K18: =E18*J18 -> 0 | O18: 2 | AA18: 1 | AB18: 1 | AC18: 1 | AZ18: 1 | BA18: =IF(AZ18=1,G18,0) -> 0 | BB18: =IF(AZ18=2,G18,0) -> 0 | BC18: =IF(AZ18=3,G18,0) -> 0 | BD18: =IF(AZ18=4,G18,0) -> 0 | BE18: =IF(AZ18=5,G18,0) -> 0 | CA18: 1 | CB18: 1
C19: Nad úrovní pláně: | E19: 0 | M19: Nad úrovní pláně:
C20: Komunikace:78,00*5,50*0,50 | E20: 214.5 | M20: Komunikace:78,00*5,50*0,50
C21: Sanace páně: | E21: 0 | M21: Sanace páně:
C22: Pod úrovní pláně:78,00*5,50*0,40 | E22: 171.6 | M22: Pod úrovní pláně:78,00*5,50*0,40
A23: 4 | B23: 181101102R00 | C23: Úprava pláně v zářezech v hor. 1-4, se zhutněním | D23: m2 | E23: 429 | G23: =E23*F23 -> 0 | H23: 0 | I23: =E23*H23 -> 0 | J23: 0 | K23: =E23*J23 -> 0 | O23: 2 | AA23: 1 | AB23: 1 | AC23: 1 | AZ23: 1 | BA23: =IF(AZ23=1,G23,0) -> 0 | BB23: =IF(AZ23=2,G23,0) -> 0 | BC23: =IF(AZ23=3,G23,0) -> 0 | BD23: =IF(AZ23=4,G23,0) -> 0 | BE23: =IF(AZ23=5,G23,0) -> 0 | CA23: 1 | CB23: 1
C24: Nad úrovní pláně: | E24: 0 | M24: Nad úrovní pláně:
C25: Komunikace:78,00*5,50 | E25: 429 | M25: Komunikace:78,00*5,50
A26: 5 | B26: 181300012RAC | C26: Rozprostření ornice v rovině tloušťka 20 cm dovoz ornice ze vzdálenosti 5 km, osetí trávou | D26: m2 | E26: 171.5 | G26: =E26*F26 -> 0 | H26: 3e-05 | I26: =E26*H26 -> 0.005145 | J26: 0 | K26: =E26*J26 -> 0 | O26: 2 | AA26: 1 | AB26: 1 | AC26: 1 | AZ26: 1 | BA26: =IF(AZ26=1,G26,0) -> 0 | BB26: =IF(AZ26=2,G26,0) -> 0 | BC26: =IF(AZ26=3,G26,0) -> 0 | BD26: =IF(AZ26=4,G26,0) -> 0 | BE26: =IF(AZ26=5,G26,0) -> 0 | CA26: 1 | CB26: 1
C27: Včetně naložení ornice na skládce investora a přesunu hmot. | L27: Včetně naložení ornice na skládce investora a přesunu hmot. | O27: 3
C28: Podél komunikace:78,00*0,50+35,00*1,50+8,00*20,00/2 | E28: 171.5 | M28: Podél komunikace:78,00*0,50+35,00*1,50+8,00*20,00/2
A29: 6 | B29: 199000002R00 | C29: Poplatek za skládku horniny 1- 7 č. dle katal. odpadů 17 05 04 | D29: m3 | E29: 386.1 | G29: =E29*F29 -> 0 | H29: 0 | I29: =E29*H29 -> 0 | J29: 0 | K29: =E29*J29 -> 0 | O29: 2 | AA29: 1 | AB29: 1 | AC29: 1 | AZ29: 1 | BA29: =IF(AZ29=1,G29,0) -> 0 | BB29: =IF(AZ29=2,G29,0) -> 0 | BC29: =IF(AZ29=3,G29,0) -> 0 | BD29: =IF(AZ29=4,G29,0) -> 0 | BE29: =IF(AZ29=5,G29,0) -> 0 | CA29: 1 | CB29: 1
C30: Nad úrovní pláně: | E30: 0 | M30: Nad úrovní pláně:
C31: Komunikace:78,00*5,50*0,50 | E31: 214.5 | M31: Komunikace:78,00*5,50*0,50
C32: Sanace páně: | E32: 0 | M32: Sanace páně:
C33: Pod úrovní pláně:78,00*5,50*0,40 | E33: 171.6 | M33: Pod úrovní pláně:78,00*5,50*0,40
A34: 7 | B34: 976085211R00 | C34: Vybourání kanal.rámů a poklopů plochy do 0,3 m2 | D34: kus | E34: 1 | G34: =E34*F34 -> 0 | H34: 0 | I34: =E34*H34 -> 0 | J34: -0.024 | K34: =E34*J34 -> -0.024 | O34: 2 | AA34: 1 | AB34: 0 | AC34: 0 | AZ34: 1 | BA34: =IF(AZ34=1,G34,0) -> 0 | BB34: =IF(AZ34=2,G34,0) -> 0 | BC34: =IF(AZ34=3,G34,0) -> 0 | BD34: =IF(AZ34=4,G34,0) -> 0 | BE34: =IF(AZ34=5,G34,0) -> 0 | CA34: 1 | CB34: 0
B35: Celkem za | C35: 1 Zemní práce | G35: =SUM(G7:G34) -> 0 | I35: =SUM(I7:I34) -> 0.005145 | K35: =SUM(K7:K34) -> -0.024 | O35: 4 | BA35: =SUM(BA7:BA34) -> 0 | BB35: =SUM(BB7:BB34) -> 0 | BC35: =SUM(BC7:BC34) -> 0 | BD35: =SUM(BD7:BD34) -> 0 | BE35: =SUM(BE7:BE34) -> 0
A36: Díl: | B36: 2 | C36: Základy a zvláštní zakládání | O36: 1
A37: 8 | B37: 212810010RRX | C37: Trativody z PVC drenážních flexibilních trubek lože štěrkopísek a obsyp kamenivo, trubky d 160 mm | D37: m | E37: 78 | G37: =E37*F37 -> 0 | H37: 0.43683 | I37: =E37*H37 -> 34.07274 | J37: 0 | K37: =E37*J37 -> 0 | O37: 2 | AA37: 1 | AB37: 1 | AC37: 1 | AZ37: 1 | BA37: =IF(AZ37=1,G37,0) -> 0 | BB37: =IF(AZ37=2,G37,0) -> 0 | BC37: =IF(AZ37=3,G37,0) -> 0 | BD37: =IF(AZ37=4,G37,0) -> 0 | BE37: =IF(AZ37=5,G37,0) -> 0 | CA37: 1 | CB37: 1
C38: Součástí položky je i obalení drenáže separační geotextílií a zemní práce včetně odvozu zeminy na skládku a poplatku za skládku. | L38: Součástí položky je i obalení drenáže separační geotextílií a zemní práce včetně odvozu zeminy na skládku a poplatku za skládku. | O38: 3
C39: Komunikace:78,00 | E39: 78 | M39: Komunikace:78,00
B40: Celkem za | C40: 2 Základy a zvláštní zakládání | G40: =SUM(G36:G39) -> 0 | I40: =SUM(I36:I39) -> 34.07274 | K40: =SUM(K36:K39) -> 0 | O40: 4 | BA40: =SUM(BA36:BA39) -> 0 | BB40: =SUM(BB36:BB39) -> 0 | BC40: =SUM(BC36:BC39) -> 0 | BD40: =SUM(BD36:BD39) -> 0 | BE40: =SUM(BE36:BE39) -> 0
A41: Díl: | B41: 5 | C41: Komunikace | O41: 1
A42: 9 | B42: 564661111R00 | C42: Podklad z kameniva drceného 63-125 mm, tl. 20 cm | D42: m2 | E42: 429 | G42: =E42*F42 -> 0 | H42: 0.43 | I42: =E42*H42 -> 184.47 | J42: 0 | K42: =E42*J42 -> 0 | O42: 2 | AA42: 1 | AB42: 1 | AC42: 1 | AZ42: 1 | BA42: =IF(AZ42=1,G42,0) -> 0 | BB42: =IF(AZ42=2,G42,0) -> 0 | BC42: =IF(AZ42=3,G42,0) -> 0 | BD42: =IF(AZ42=4,G42,0) -> 0 | BE42: =IF(AZ42=5,G42,0) -> 0 | CA42: 1 | CB42: 1
C43: Sanace páně: | E43: 0 | M43: Sanace páně:
C44: Pod úrovní pláně:78,00*5,50 | E44: 429 | M44: Pod úrovní pláně:78,00*5,50
A45: 10 | B45: 564761111R00 | C45: Podklad z kameniva drceného vel.32-63 mm,tl. 20 cm | D45: m2 | E45: 429 | G45: =E45*F45 -> 0 | H45: 0.43 | I45: =E45*H45 -> 184.47 | J45: 0 | K45: =E45*J45 -> 0 | O45: 2 | AA45: 1 | AB45: 1 | AC45: 1 | AZ45: 1 | BA45: =IF(AZ45=1,G45,0) -> 0 | BB45: =IF(AZ45=2,G45,0) -> 0 | BC45: =IF(AZ45=3,G45,0) -> 0 | BD45: =IF(AZ45=4,G45,0) -> 0 | BE45: =IF(AZ45=5,G45,0) -> 0 | CA45: 1 | CB45: 1
C46: Sanace páně: | E46: 0 | M46: Sanace páně:
C47: Pod úrovní pláně:78,00*5,50 | E47: 429 | M47: Pod úrovní pláně:78,00*5,50
A48: 11 | B48: 564861111R00 | C48: Podklad ze štěrkodrti po zhutnění tloušťky 20 cm | D48: m2 | E48: 443 | G48: =E48*F48 -> 0 | H48: 0.441 | I48: =E48*H48 -> 195.363 | J48: 0 | K48: =E48*J48 -> 0 | O48: 2 | AA48: 1 | AB48: 1 | AC48: 1 | AZ48: 1 | BA48: =IF(AZ48=1,G48,0) -> 0 | BB48: =IF(AZ48=2,G48,0) -> 0 | BC48: =IF(AZ48=3,G48,0) -> 0 | BD48: =IF(AZ48=4,G48,0) -> 0 | BE48: =IF(AZ48=5,G48,0) -> 0 | CA48: 1 | CB48: 1
C49: Nad úrovní pláně: | E49: 0 | M49: Nad úrovní pláně:
C50: Komunikace:78,00*5,50 | E50: 429 | M50: Komunikace:78,00*5,50
C51: Přejezd chodníku:7,00*2,00 | E51: 14 | M51: Přejezd chodníku:7,00*2,00
A52: 12 | B52: 565151211RT2 | C52: Podklad z obal kam.ACP 16+,ACP 22+,nad 3 m,tl.7 cm plochy 201-1000 m2 | D52: m2 | E52: 390 | G52: =E52*F52 -> 0 | H52: 0.18463 | I52: =E52*H52 -> 72.0057 | J52: 0 | K52: =E52*J52 -> 0 | O52: 2 | AA52: 1 | AB52: 1 | AC52: 1 | AZ52: 1 | BA52: =IF(AZ52=1,G52,0) -> 0 | BB52: =IF(AZ52=2,G52,0) -> 0 | BC52: =IF(AZ52=3,G52,0) -> 0 | BD52: =IF(AZ52=4,G52,0) -> 0 | BE52: =IF(AZ52=5,G52,0) -> 0 | CA52: 1 | CB52: 1
C53: Nad úrovní pláně: | E53: 0 | M53: Nad úrovní pláně:
C54: Komunikace:78,00*5,00 | E54: 390 | M54: Komunikace:78,00*5,00
A55: 13 | B55: 567122112R00 | C55: Podklad z kameniva zpev.cementem SC C8/10 tl.13 cm | D55: m2 | E55: 404 | G55: =E55*F55 -> 0 | H55: 0.33206 | I55: =E55*H55 -> 134.15224 | J55: 0 | K55: =E55*J55 -> 0 | O55: 2 | AA55: 1 | AB55: 1 | AC55: 1 | AZ55: 1 | BA55: =IF(AZ55=1,G55,0) -> 0 | BB55: =IF(AZ55=2,G55,0) -> 0 | BC55: =IF(AZ55=3,G55,0) -> 0 | BD55: =IF(AZ55=4,G55,0) -> 0 | BE55: =IF(AZ55=5,G55,0) -> 0 | CA55: 1 | CB55: 1
C56: Nad úrovní pláně: | E56: 0 | M56: Nad úrovní pláně:
C57: Komunikace:78,00*5,00 | E57: 390 | M57: Komunikace:78,00*5,00
C58: Přejezd chodníku:7,00*2,00 | E58: 14 | M58: Přejezd chodníku:7,00*2,00
A59: 14 | B59: 573111123R00 | C59: Postřik infiltr., množství zbytkov. poj. 1,00kg/m2 | D59: m2 | E59: 390 | G59: =E59*F59 -> 0 | H59: 0.00561 | I59: =E59*H59 -> 2.1879 | J59: 0 | K59: =E59*J59 -> 0 | O59: 2 | AA59: 1 | AB59: 1 | AC59: 1 | AZ59: 1 | BA59: =IF(AZ59=1,G59,0) -> 0 | BB59: =IF(AZ59=2,G59,0) -> 0 | BC59: =IF(AZ59=3,G59,0) -> 0 | BD59: =IF(AZ59=4,G59,0) -> 0 | BE59: =IF(AZ59=5,G59,0) -> 0 | CA59: 1 | CB59: 1
C60: Nad úrovní pláně: | E60: 0 | M60: Nad úrovní pláně:
C61: Komunikace:78,00*5,00 | E61: 390 | M61: Komunikace:78,00*5,00
A62: 15 | B62: 573231125R00 | C62: Postřik spojovací z KAE množství zbytkového asfaltu 0,5 kg/m2 | D62: m2 | E62: 390 | G62: =E62*F62 -> 0 | H62: 0.0005 | I62: =E62*H62 -> 0.195 | J62: 0 | K62: =E62*J62 -> 0 | O62: 2 | AA62: 1 | AB62: 1 | AC62: 1 | AZ62: 1 | BA62: =IF(AZ62=1,G62,0) -> 0 | BB62: =IF(AZ62=2,G62,0) -> 0 | BC62: =IF(AZ62=3,G62,0) -> 0 | BD62: =IF(AZ62=4,G62,0) -> 0 | BE62: =IF(AZ62=5,G62,0) -> 0 | CA62: 1 | CB62: 1
C63: Komunikace:78,00*5,00 | E63: 390 | M63: Komunikace:78,00*5,00
A64: 16 | B64: 577132111RT2 | C64: Beton asfalt. ACO 11+ obrusný, š.nad 3 m, tl. 4 cm plochy 201-1000 m2 | D64: m2 | E64: 390 | G64: =E64*F64 -> 0 | H64: 0.10373 | I64: =E64*H64 -> 40.4547 | J64: 0 | K64: =E64*J64 -> 0 | O64: 2 | AA64: 1 | AB64: 1 | AC64: 1 | AZ64: 1 | BA64: =IF(AZ64=1,G64,0) -> 0 | BB64: =IF(AZ64=2,G64,0) -> 0 | BC64: =IF(AZ64=3,G64,0) -> 0 | BD64: =IF(AZ64=4,G64,0) -> 0 | BE64: =IF(AZ64=5,G64,0) -> 0 | CA64: 1 | CB64: 1
C65: Komunikace:78,00*5,00 | E65: 390 | M65: Komunikace:78,00*5,00
A66: 17 | B66: 596215041R00 | C66: Kladení zámkové dlažby tl. 8 cm do drtě tl. 5 cm | D66: m2 | E66: 14 | G66: =E66*F66 -> 0 | H66: 0.0928 | I66: =E66*H66 -> 1.2992 | J66: 0 | K66: =E66*J66 -> 0 | O66: 2 | AA66: 1 | AB66: 1 | AC66: 1 | AZ66: 1 | BA66: =IF(AZ66=1,G66,0) -> 0 | BB66: =IF(AZ66=2,G66,0) -> 0 | BC66: =IF(AZ66=3,G66,0) -> 0 | BD66: =IF(AZ66=4,G66,0) -> 0 | BE66: =IF(AZ66=5,G66,0) -> 0 | CA66: 1 | CB66: 1
C67: Přejezd chodníku:7,00*2,00 | E67: 14 | M67: Přejezd chodníku:7,00*2,00
A68: 18 | B68: 596291113R00 | C68: Řezání zámkové dlažby tl. 80 mm | D68: m | E68: 4 | G68: =E68*F68 -> 0 | H68: 0.00036 | I68: =E68*H68 -> 0.00144 | J68: 0 | K68: =E68*J68 -> 0 | O68: 2 | AA68: 1 | AB68: 1 | AC68: 1 | AZ68: 1 | BA68: =IF(AZ68=1,G68,0) -> 0 | BB68: =IF(AZ68=2,G68,0) -> 0 | BC68: =IF(AZ68=3,G68,0) -> 0 | BD68: =IF(AZ68=4,G68,0) -> 0 | BE68: =IF(AZ68=5,G68,0) -> 0 | CA68: 1 | CB68: 1
C69: Přejezd chodníku:4,00 | E69: 4 | M69: Přejezd chodníku:4,00
A70: 19 | B70: 59245272.R | C70: Dlažba betonová skládaná hmatová bar. 20x10x8 cm | D70: m2 | E70: 3.36 | G70: =E70*F70 -> 0 | H70: 0.178 | I70: =E70*H70 -> 0.59808 | K70: =E70*J70 -> 0 | O70: 2 | AA70: 3 | AB70: 1 | AC70: 59245272.R | AZ70: 1 | BA70: =IF(AZ70=1,G70,0) -> 0 | BB70: =IF(AZ70=2,G70,0) -> 0 | BC70: =IF(AZ70=3,G70,0) -> 0 | BD70: =IF(AZ70=4,G70,0) -> 0 | BE70: =IF(AZ70=5,G70,0) -> 0 | CA70: 3 | CB70: 1
C71: Přejezd chodníku:3,20*1,05 | E71: 3.36 | M71: Přejezd chodníku:3,20*1,05
A72: 20 | B72: 59245288.R | C72: Dlažba betonová skládaná přírodní 20x10x8 cm | D72: m2 | E72: 11.34 | G72: =E72*F72 -> 0 | H72: 0.174 | I72: =E72*H72 -> 1.97316 | K72: =E72*J72 -> 0 | O72: 2 | AA72: 3 | AB72: 1 | AC72: 59245288.R | AZ72: 1 | BA72: =IF(AZ72=1,G72,0) -> 0 | BB72: =IF(AZ72=2,G72,0) -> 0 | BC72: =IF(AZ72=3,G72,0) -> 0 | BD72: =IF(AZ72=4,G72,0) -> 0 | BE72: =IF(AZ72=5,G72,0) -> 0 | CA72: 3 | CB72: 1
C73: Přejezd chodníku:10,80*1,05 | E73: 11.34 | M73: Přejezd chodníku:10,80*1,05
B74: Celkem za | C74: 5 Komunikace | G74: =SUM(G41:G73) -> 0 | I74: =SUM(I41:I73) -> 817.17042 | K74: =SUM(K41:K73) -> 0 | O74: 4 | BA74: =SUM(BA41:BA73) -> 0 | BB74: =SUM(BB41:BB73) -> 0 | BC74: =SUM(BC41:BC73) -> 0 | BD74: =SUM(BD41:BD73) -> 0 | BE74: =SUM(BE41:BE73) -> 0
A75: Díl: | B75: 8 | C75: Trubní vedení | O75: 1
A76: 21 | B76: 894411015RBX | C76: Vpusť uliční z dílců DN 450,s odkalištěm,napojení DN 150-5,0 m, mříž litina 500x500 40 t, hl. 1,74 m | D76: kus | E76: 1 | G76: =E76*F76 -> 0 | H76: 0.81199 | I76: =E76*H76 -> 0.81199 | J76: 0 | K76: =E76*J76 -> 0 | O76: 2 | AA76: 1 | AB76: 1 | AC76: 1 | AZ76: 1 | BA76: =IF(AZ76=1,G76,0) -> 0 | BB76: =IF(AZ76=2,G76,0) -> 0 | BC76: =IF(AZ76=3,G76,0) -> 0 | BD76: =IF(AZ76=4,G76,0) -> 0 | BE76: =IF(AZ76=5,G76,0) -> 0 | CA76: 1 | CB76: 1
C77: Součástí položky je i napojení potrubí PVC DN150 do stávající kanalizace a kompletní zemní práce | L77: Součástí položky je i napojení potrubí PVC DN150 do stávající kanalizace a kompletní zemní práce | O77: 3
O78: 3
A79: 22 | B79: 899231111R00 | C79: Výšková úprava vstupu do 20 cm, zvýšení mříže | D79: kus | E79: 1 | G79: =E79*F79 -> 0 | H79: 0.43382 | I79: =E79*H79 -> 0.43382 | J79: 0 | K79: =E79*J79 -> 0 | O79: 2 | AA79: 1 | AB79: 1 | AC79: 1 | AZ79: 1 | BA79: =IF(AZ79=1,G79,0) -> 0 | BB79: =IF(AZ79=2,G79,0) -> 0 | BC79: =IF(AZ79=3,G79,0) -> 0 | BD79: =IF(AZ79=4,G79,0) -> 0 | BE79: =IF(AZ79=5,G79,0) -> 0 | CA79: 1 | CB79: 1
B80: Celkem za | C80: 8 Trubní vedení | G80: =SUM(G75:G79) -> 0 | I80: =SUM(I75:I79) -> 1.24581 | K80: =SUM(K75:K79) -> 0 | O80: 4 | BA80: =SUM(BA75:BA79) -> 0 | BB80: =SUM(BB75:BB79) -> 0 | BC80: =SUM(BC75:BC79) -> 0 | BD80: =SUM(BD75:BD79) -> 0 | BE80: =SUM(BE75:BE79) -> 0
A81: Díl: | B81: 91 | C81: Doplňující práce na komunikaci | O81: 1
A82: 23 | B82: 917732114RT7 | C82: Osazení stojat. obrub.bet. s opěrou,lože z C 25/30 včetně obrubníku 1000x150x250 mm | D82: m | E82: 156 | G82: =E82*F82 -> 0 | H82: 0.26981 | I82: =E82*H82 -> 42.09036 | J82: 0 | K82: =E82*J82 -> 0 | O82: 2 | AA82: 1 | AB82: 0 | AC82: 0 | AZ82: 1 | BA82: =IF(AZ82=1,G82,0) -> 0 | BB82: =IF(AZ82=2,G82,0) -> 0 | BC82: =IF(AZ82=3,G82,0) -> 0 | BD82: =IF(AZ82=4,G82,0) -> 0 | BE82: =IF(AZ82=5,G82,0) -> 0 | CA82: 1 | CB82: 0
C83: Komunikace:78,00*2 | E83: 156 | M83: Komunikace:78,00*2
A84: 24 | B84: 918101111R00 | C84: Lože pod obrubníky nebo obruby dlažeb z C 12/15 | D84: m3 | E84: 3.9 | G84: =E84*F84 -> 0 | H84: 2.525 | I84: =E84*H84 -> 9.8475 | J84: 0 | K84: =E84*J84 -> 0 | O84: 2 | AA84: 1 | AB84: 1 | AC84: 1 | AZ84: 1 | BA84: =IF(AZ84=1,G84,0) -> 0 | BB84: =IF(AZ84=2,G84,0) -> 0 | BC84: =IF(AZ84=3,G84,0) -> 0 | BD84: =IF(AZ84=4,G84,0) -> 0 | BE84: =IF(AZ84=5,G84,0) -> 0 | CA84: 1 | CB84: 1
C85: Osazení obrubníků:78,00*2*0,25*0,10 | E85: 3.9 | M85: Osazení obrubníků:78,00*2*0,25*0,10
B86: Celkem za | C86: 91 Doplňující práce na komunikaci | G86: =SUM(G81:G85) -> 0 | I86: =SUM(I81:I85) -> 51.93786 | K86: =SUM(K81:K85) -> 0 | O86: 4 | BA86: =SUM(BA81:BA85) -> 0 | BB86: =SUM(BB81:BB85) -> 0 | BC86: =SUM(BC81:BC85) -> 0 | BD86: =SUM(BD81:BD85) -> 0 | BE86: =SUM(BE81:BE85) -> 0
A87: Díl: | B87: 93 | C87: Dokončovací práce inženýrských staveb | O87: 1
A88: 25 | B88: 939421121RT2 | C88: Osazení samonivelač.vodovod.poklopu za finišerem včetně dodávky poklopu | D88: kus | E88: 1 | G88: =E88*F88 -> 0 | H88: 0.0645 | I88: =E88*H88 -> 0.0645 | J88: 0 | K88: =E88*J88 -> 0 | O88: 2 | AA88: 1 | AB88: 1 | AC88: 1 | AZ88: 1 | BA88: =IF(AZ88=1,G88,0) -> 0 | BB88: =IF(AZ88=2,G88,0) -> 0 | BC88: =IF(AZ88=3,G88,0) -> 0 | BD88: =IF(AZ88=4,G88,0) -> 0 | BE88: =IF(AZ88=5,G88,0) -> 0 | CA88: 1 | CB88: 1
A89: 26 | B89: 939431111RT2 | C89: Výměna kanaliz.poklopu za samonivelační, hl.200 mm včetně dodávky litinového poklopu D400 SN600 | D89: kus | E89: 1 | G89: =E89*F89 -> 0 | H89: 0.56041 | I89: =E89*H89 -> 0.56041 | J89: -0.32076 | K89: =E89*J89 -> -0.32076 | O89: 2 | AA89: 1 | AB89: 0 | AC89: 0 | AZ89: 1 | BA89: =IF(AZ89=1,G89,0) -> 0 | BB89: =IF(AZ89=2,G89,0) -> 0 | BC89: =IF(AZ89=3,G89,0) -> 0 | BD89: =IF(AZ89=4,G89,0) -> 0 | BE89: =IF(AZ89=5,G89,0) -> 0 | CA89: 1 | CB89: 0
C90: Samonivelační bezpantový těžký poklop KASI KDM65 případně část KDM63 dle upřesnění provozovatele. | L90: Samonivelační bezpantový těžký poklop KASI KDM65 případně část KDM63 dle upřesnění provozovatele. | O90: 3
C91: Poklop se znakem "Město Turnov" | L91: Poklop se znakem "Město Turnov" | O91: 3
B92: Celkem za | C92: 93 Dokončovací práce inženýrských staveb | G92: =SUM(G87:G91) -> 0 | I92: =SUM(I87:I91) -> 0.62491 | K92: =SUM(K87:K91) -> -0.32076 | O92: 4 | BA92: =SUM(BA87:BA91) -> 0 | BB92: =SUM(BB87:BB91) -> 0 | BC92: =SUM(BC87:BC91) -> 0 | BD92: =SUM(BD87:BD91) -> 0 | BE92: =SUM(BE87:BE91) -> 0
A93: Díl: | B93: 99 | C93: Staveništní přesun hmot | O93: 1
A94: 27 | B94: 998225111R00 | C94: Přesun hmot, pozemní komunikace, kryt živičný | D94: t | E94: 905.056885 | G94: =E94*F94 -> 0 | H94: 0 | I94: =E94*H94 -> 0 | K94: =E94*J94 -> 0 | O94: 2 | AA94: 7 | AB94: 1 | AC94: 2 | AZ94: 1 | BA94: =IF(AZ94=1,G94,0) -> 0 | BB94: =IF(AZ94=2,G94,0) -> 0 | BC94: =IF(AZ94=3,G94,0) -> 0 | BD94: =IF(AZ94=4,G94,0) -> 0 | BE94: =IF(AZ94=5,G94,0) -> 0 | CA94: 7 | CB94: 1
B95: Celkem za | C95: 99 Staveništní přesun hmot | G95: =SUM(G93:G94) -> 0 | I95: =SUM(I93:I94) -> 0 | K95: =SUM(K93:K94) -> 0 | O95: 4 | BA95: =SUM(BA93:BA94) -> 0 | BB95: =SUM(BB93:BB94) -> 0 | BC95: =SUM(BC93:BC94) -> 0 | BD95: =SUM(BD93:BD94) -> 0 | BE95: =SUM(BE93:BE94) -> 0

Sheet 101.10 101.10.2 KL
A1: POLOŽKOVÝ ROZPOČET
A2: Rozpočet | C2: 101.10.2 | D2: Přeložka STL plynové přípojky pro čp.2143 | F2: JKSO | G2: 822.27
A4: Objekt | F4: SKP
A5: 101.10 | C5: Komunikace "Františka Závorky" | F5: Měrná jednotka | G5: m2
A6: Stavba | F6: Počet jednotek | G6: 0
A7: 3383 | C7: Turnov-Lokalita Hruštice - Károvsko, Dostavba 2024 | F7: Náklady na m.j. | G7: =IF(G6=0,,ROUND((F30+F32)/G6,1)) -> 0
A8: Projektant | F8: Typ rozpočtu
A9: Zpracovatel projektu
A10: Objednatel | C10: Město TURNOV
A11: Dodavatel | C11: . | F11: Zakázkové číslo
A12: Rozpočtoval | F12: Počet listů
A13: ROZPOČTOVÉ NÁKLADY
A14: Základní rozpočtové náklady | D14: Ostatní rozpočtové náklady
B15: HSV celkem | C15: ='101.10 101.10.2 Rek'!E10 -> 0 | D15: ='101.10 101.10.2 Rek'!A15 -> Zařízení staveniště | G15: ='101.10 101.10.2 Rek'!I15 -> 0
A16: Z | B16: PSV celkem | C16: ='101.10 101.10.2 Rek'!F10 -> 0 | D16: ='101.10 101.10.2 Rek'!A16 -> Kompletační činnost (IČD) | G16: ='101.10 101.10.2 Rek'!I16 -> 0
A17: R | B17: M práce celkem | C17: ='101.10 101.10.2 Rek'!H10 -> 0 | D17: ='101.10 101.10.2 Rek'!A17 -> Vytýčení stavby a podz. inženýrských sítí | G17: ='101.10 101.10.2 Rek'!I17 -> 0
A18: N | B18: M dodávky celkem | C18: ='101.10 101.10.2 Rek'!G10 -> 0 | D18: ='101.10 101.10.2 Rek'!A18 -> Dokumentace skutečného provedení | G18: ='101.10 101.10.2 Rek'!I18 -> 0
A19: ZRN celkem | C19: =SUM(C15:C18) -> 0 | D19: ='101.10 101.10.2 Rek'!A19 -> Geodetické zaměření stavby | G19: ='101.10 101.10.2 Rek'!I19 -> 0
D20: ='101.10 101.10.2 Rek'!A20 -> DIO | G20: ='101.10 101.10.2 Rek'!I20 -> 0
A21: HZS | C21: ='101.10 101.10.2 Rek'!I10 -> 0
A22: ZRN+HZS | C22: =C19+C21 -> 0
A23: ZRN+ost.náklady+HZS | C23: =C22+G23 -> 0 | D23: Ostatní náklady celkem | G23: ='101.10 101.10.2 Rek'!H21 -> 0
A24: Vypracoval | D24: Za zhotovitele | F24: Za objednatele
A25: Jméno : | D25: Jméno : | F25: Jméno :
A26: Datum : | D26: Datum : | F26: Datum :
A28: Podpis : | D28: Podpis: | F28: Podpis:
A30: Základ pro DPH | C30: 21 | D30: % | F30: =C23-F32 -> 0
A31: DPH | C31: =C30 -> 21 | D31: % | F31: =ROUND(PRODUCT(F30,C31/100),0) -> 0
A32: Základ pro DPH | C32: 0 | D32: % | F32: 0
A33: DPH | C33: =C32 -> 0 | D33: % | F33: =ROUND(PRODUCT(F32,C33/100),0) -> 0
A34: CENA ZA OBJEKT CELKEM | F34: =ROUND(SUM(F30:F33),0) -> 0
A36: Poznámka :

Sheet 101.10 101.10.2 Rek
A1: Stavba : | C1: 3383 Turnov-Lokalita Hruštice - Károvsko, Dostavba 2024 | G1: Rozpočet : | H1: 101.10.2
A2: Objekt : | C2: 101.10 Komunikace "Františka Závorky" | G2: Přeložka STL plynové přípojky pro čp.2143
A4: REKAPITULACE STAVEBNÍCH DÍLŮ
B6: Stavební díl | E6: HSV | F6: PSV | G6: Dodávka | H6: Montáž | I6: HZS
A7: ='101.10 101.10.2 Pol'!B7 -> 3 | B7: ='101.10 101.10.2 Pol'!C7 -> Svislé a kompletní konstrukce | E7: ='101.10 101.10.2 Pol'!BA11 -> 0 | F7: ='101.10 101.10.2 Pol'!BB11 -> 0 | G7: ='101.10 101.10.2 Pol'!BC11 -> 0 | H7: ='101.10 101.10.2 Pol'!BD11 -> 0 | I7: ='101.10 101.10.2 Pol'!BE11 -> 0
A8: ='101.10 101.10.2 Pol'!B12 -> 8 | B8: ='101.10 101.10.2 Pol'!C12 -> Trubní vedení | E8: ='101.10 101.10.2 Pol'!BA37 -> 0 | F8: ='101.10 101.10.2 Pol'!BB37 -> 0 | G8: ='101.10 101.10.2 Pol'!BC37 -> 0 | H8: ='101.10 101.10.2 Pol'!BD37 -> 0 | I8: ='101.10 101.10.2 Pol'!BE37 -> 0
A9: ='101.10 101.10.2 Pol'!B38 -> 99 | B9: ='101.10 101.10.2 Pol'!C38 -> Staveništní přesun hmot | E9: ='101.10 101.10.2 Pol'!BA40 -> 0 | F9: ='101.10 101.10.2 Pol'!BB40 -> 0 | G9: ='101.10 101.10.2 Pol'!BC40 -> 0 | H9: ='101.10 101.10.2 Pol'!BD40 -> 0 | I9: ='101.10 101.10.2 Pol'!BE40 -> 0
B10: CELKEM OBJEKT | E10: =SUM(E7:E9) -> 0 | F10: =SUM(F7:F9) -> 0 | G10: =SUM(G7:G9) -> 0 | H10: =SUM(H7:H9) -> 0 | I10: =SUM(I7:I9) -> 0
A12: VEDLEJŠÍ ROZPOČTOVÉ NÁKLADY
A14: Název VRN | E14: Kč | I14: Kč
A15: Zařízení staveniště | E15: 0 | I15: =E15+F15*G15/100 -> 0 | BA15: 2
A16: Kompletační činnost (IČD) | E16: 0 | I16: =E16+F16*G16/100 -> 0 | BA16: 2
A17: Vytýčení stavby a podz. inženýrských sítí | E17: 0 | I17: =E17+F17*G17/100 -> 0 | BA17: 0
A18: Dokumentace skutečného provedení | E18: 0 | I18: =E18+F18*G18/100 -> 0 | BA18: 0
A19: Geodetické zaměření stavby | E19: 0 | I19: =E19+F19*G19/100 -> 0 | BA19: 0
A20: DIO | E20: 0 | I20: =E20+F20*G20/100 -> 0 | BA20: 0
B21: CELKEM VRN | H21: =SUM(I15:I20) -> 0

Sheet 101.10 101.10.2 Pol
A1: Položkový rozpočet
A3: Stavba : | C3: 3383 Turnov-Lokalita Hruštice - Károvsko, Dostavba 2024 | E3: Rozpočet: | F3: ='101.10 101.10.2 Rek'!H1 -> 101.10.2
A4: Objekt : | C4: 101.10 Komunikace "Františka Závorky" | E4: ='101.10 101.10.2 Rek'!G2 -> Přeložka STL plynové přípojky pro čp.2143
A6: P.č. | B6: Číslo položky | C6: Název položky | D6: MJ | E6: množství | F6: cena / MJ | G6: celkem (Kč) | H6: Jednotková hmotnost | I6: Celková hmotnost | J6: Jednotková dem.hmot. | K6: Celková dem.hmot.
A7: Díl: | B7: 3 | C7: Svislé a kompletní konstrukce | O7: 1
A8: 1 | B8: 349121101RT5 | C8: Montáž plastové skříně plyn-HUP včetně dodávky skříně a základů | D8: kus | E8: 1 | G8: =E8*F8 -> 0 | H8: 0.204 | I8: =E8*H8 -> 0.204 | J8: 0 | K8: =E8*J8 -> 0 | O8: 2 | AA8: 1 | AB8: 0 | AC8: 0 | AZ8: 1 | BA8: =IF(AZ8=1,G8,0) -> 0 | BB8: =IF(AZ8=2,G8,0) -> 0 | BC8: =IF(AZ8=3,G8,0) -> 0 | BD8: =IF(AZ8=4,G8,0) -> 0 | BE8: =IF(AZ8=5,G8,0) -> 0 | CA8: 1 | CB8: 0
C9: Provedení HUP dle projektové dokumentace včetně úpravy stávajícího oplocení. | L9: Provedení HUP dle projektové dokumentace včetně úpravy stávajícího oplocení. | O9: 3
C10: HUP u čp. 2143 - provedení dle PD:1 | E10: 1 | M10: HUP u čp. 2143 - provedení dle PD:1
B11: Celkem za | C11: 3 Svislé a kompletní konstrukce | G11: =SUM(G7:G10) -> 0 | I11: =SUM(I7:I10) -> 0.204 | K11: =SUM(K7:K10) -> 0 | O11: 4 | BA11: =SUM(BA7:BA10) -> 0 | BB11: =SUM(BB7:BB10) -> 0 | BC11: =SUM(BC7:BC10) -> 0 | BD11: =SUM(BD7:BD10) -> 0 | BE11: =SUM(BE7:BE10) -> 0
A12: Díl: | B12: 8 | C12: Trubní vedení | O12: 1
A13: 2 | B13: 841220024RRX | C13: Plynovodní přípojka z trub PE, D 32 mm, dl.45 m napojení na řád PE D 110 mm | D13: kus | E13: 1 | G13: =E13*F13 -> 0 | H13: 12.3659 | I13: =E13*H13 -> 12.3659 | J13: 0 | K13: =E13*J13 -> 0 | O13: 2 | AA13: 1 | AB13: 1 | AC13: 1 | AZ13: 1 | BA13: =IF(AZ13=1,G13,0) -> 0 | BB13: =IF(AZ13=2,G13,0) -> 0 | BC13: =IF(AZ13=3,G13,0) -> 0 | BD13: =IF(AZ13=4,G13,0) -> 0 | BE13: =IF(AZ13=5,G13,0) -> 0 | CA13: 1 | CB13: 1
C14: V položce je zakalkulováno hloubení rýh nezapažených, šířky 50 cm v hornině 3, ve volném terénu, dodávka a montáž potrubí včetně navrtávací objímky, s podsypem štěrkopískem, s obsypem pískem nebo štěrkopískem, se zásypem hutněným a s odvozem přebytečné zeminy na skládku zhotovitele, včetně poplatku za skládku. Součástí ceny je dodávka trubního materiálu, elektrokoleno, chránička bralen, objímka, kulový kohout dle PD, těsnící tmel, přechodka Isiflo, podpůrná vložka, držák chráničky a montáž všech částí přípojky, dále pak i výstražná fólie. | L14: V položce je zakalkulováno hloubení rýh nezapažených, šířky 50 cm v hornině 3, ve volném terénu, dodávka a montáž potrubí včetně navrtávací objímky, s podsypem štěrkopískem, s obsypem pískem nebo štěrkopískem, se zásypem hutněným a s odvozem přebytečné zeminy na skládku zhotovitele, včetně poplatku za skládku. Součástí ceny je dodávka trubního materiálu, elektrokoleno, chránička bralen, objímka, kulový kohout dle PD, těsnící tmel, přechodka Isiflo, podpůrná vložka, držák chráničky a montáž všech částí přípojky, dále pak i výstražná fólie. | O14: 3
C15: Délka přípojky 45 m + 1,5 m z výkopu do HUP. | L15: Délka přípojky 45 m + 1,5 m z výkopu do HUP. | O15: 3
C16: Přípojka pro čp. 2143 :1 | E16: 1 | M16: Přípojka pro čp. 2143 :1
A17: 3 | B17: 841220030RRX | C17: Plynovodní přípojka z trub PE, D 40 mm, dl.15 m napojení na stávající potrubí D 40 mm | D17: kus | E17: 1 | G17: =E17*F17 -> 0 | H17: 4.36286 | I17: =E17*H17 -> 4.36286 | J17: 0 | K17: =E17*J17 -> 0 | O17: 2 | AA17: 1 | AB17: 1 | AC17: 1 | AZ17: 1 | BA17: =IF(AZ17=1,G17,0) -> 0 | BB17: =IF(AZ17=2,G17,0) -> 0 | BC17: =IF(AZ17=3,G17,0) -> 0 | BD17: =IF(AZ17=4,G17,0) -> 0 | BE17: =IF(AZ17=5,G17,0) -> 0 | CA17: 1 | CB17: 1
C18: V položce je zakalkulováno hloubení rýh nezapažených, šířky 50 cm v hornině 3, ve volném terénu, dodávka a montáž potrubí včetně napojovací tvarovky, s podsypem štěrkopískem, s obsypem pískem nebo štěrkopískem, se zásypem hutněným a s odvozem přebytečné zeminy na skládku zhotovitele, včetně poplatku za skládku. Součástí ceny je dodávka trubního materiálu, elektrokoleno, chránička bralen, objímka, kulový kohout dle PD, těsnící tmel, přechodka Isiflo, podpůrná vložka, držák chráničky a montáž všech částí přípojky, dále pak i výstražná fólie. | L18: V položce je zakalkulováno hloubení rýh nezapažených, šířky 50 cm v hornině 3, ve volném terénu, dodávka a montáž potrubí včetně napojovací tvarovky, s podsypem štěrkopískem, s obsypem pískem nebo štěrkopískem, se zásypem hutněným a s odvozem přebytečné zeminy na skládku zhotovitele, včetně poplatku za skládku. Součástí ceny je dodávka trubního materiálu, elektrokoleno, chránička bralen, objímka, kulový kohout dle PD, těsnící tmel, přechodka Isiflo, podpůrná vložka, držák chráničky a montáž všech částí přípojky, dále pak i výstražná fólie. | O18: 3
C19: Součástí položky je i přerušení stávajícího potrubí D 40 a napojení nového potrubí na stávající plynovodní potrubí. | L19: Součástí položky je i přerušení stávajícího potrubí D 40 a napojení nového potrubí na stávající plynovodní potrubí. | O19: 3
C20: Délka přípojky 15 m + 1,5 m z HUP do výkopu. | L20: Délka přípojky 15 m + 1,5 m z HUP do výkopu. | O20: 3
C21: Propojení přípojky z HUP na stávající PE potrubí D 40:1 | E21: 1 | M21: Propojení přípojky z HUP na stávající PE potrubí D 40:1
A22: 4 | B22: 841240100RRX | C22: Odpojení stávající STL plynovodní přípojky | D22: kus | E22: 1 | G22: =E22*F22 -> 0 | H22: 0.06939 | I22: =E22*H22 -> 0.06939 | J22: 0 | K22: =E22*J22 -> 0 | O22: 2 | AA22: 1 | AB22: 1 | AC22: 1 | AZ22: 1 | BA22: =IF(AZ22=1,G22,0) -> 0 | BB22: =IF(AZ22=2,G22,0) -> 0 | BC22: =IF(AZ22=3,G22,0) -> 0 | BD22: =IF(AZ22=4,G22,0) -> 0 | BE22: =IF(AZ22=5,G22,0) -> 0 | CA22: 1 | CB22: 1
C23: V položce je zakalkulováno hloubení jámy zapažené, rozměru 100x100cm v hornině 3, ve volném terénu, demontáž napojení STL přípojky včetně zaslepení původního napojení dle TPG provozovatele, s podsypem štěrkopískem, s obsypem pískem nebo štěrkopískem, se zásypem hutněným a s odvozem přebytečné zeminy na skládku zhotovitele, včetně poplatku za skládku. Součástí ceny je dodávka potřebného materiálu. | L23: V položce je zakalkulováno hloubení jámy zapažené, rozměru 100x100cm v hornině 3, ve volném terénu, demontáž napojení STL přípojky včetně zaslepení původního napojení dle TPG provozovatele, s podsypem štěrkopískem, s obsypem pískem nebo štěrkopískem, se zásypem hutněným a s odvozem přebytečné zeminy na skládku zhotovitele, včetně poplatku za skládku. Součástí ceny je dodávka potřebného materiálu. | O23: 3
C24: Odpojení původní přípojky z řadu PE D110 a zaslepení:1 | E24: 1 | M24: Odpojení původní přípojky z řadu PE D110 a zaslepení:1
A25: 5 | B25: 841240200RRX | C25: Demontáž vystrojení technologie ve stávajícím HUP | D25: kus | E25: 1 | G25: =E25*F25 -> 0 | H25: 0.06939 | I25: =E25*H25 -> 0.06939 | J25: 0 | K25: =E25*J25 -> 0 | O25: 2 | AA25: 1 | AB25: 1 | AC25: 1 | AZ25: 1 | BA25: =IF(AZ25=1,G25,0) -> 0 | BB25: =IF(AZ25=2,G25,0) -> 0 | BC25: =IF(AZ25=3,G25,0) -> 0 | BD25: =IF(AZ25=4,G25,0) -> 0 | BE25: =IF(AZ25=5,G25,0) -> 0 | CA25: 1 | CB25: 1
C26: V položce je zakalkulována demontáž plynoměru a všech armatur původní přípojky včetně zaslepení stávajícího potrubí. | L26: V položce je zakalkulována demontáž plynoměru a všech armatur původní přípojky včetně zaslepení stávajícího potrubí. | O26: 3
C27: Odpojení původní přípojky ve stávajícím HUP:1 | E27: 1 | M27: Odpojení původní přípojky ve stávajícím HUP:1
A28: 6 | B28: 841990120RAB | C28: Příplatek za trasu v komunikaci živičné, tl. 63 cm šířka rýhy 80 cm | D28: m | E28: 8 | G28: =E28*F28 -> 0 | H28: 1.22782 | I28: =E28*H28 -> 9.82256 | J28: -0.952 | K28: =E28*J28 -> -7.616 | O28: 2 | AA28: 1 | AB28: 1 | AC28: 1 | AZ28: 1 | BA28: =IF(AZ28=1,G28,0) -> 0 | BB28: =IF(AZ28=2,G28,0) -> 0 | BC28: =IF(AZ28=3,G28,0) -> 0 | BD28: =IF(AZ28=4,G28,0) -> 0 | BE28: =IF(AZ28=5,G28,0) -> 0 | CA28: 1 | CB28: 1
C29: V položce je zakalkulováno: odstranění živičného krytu tl. 20 cm, odstranění podkladu z kameniva těženého tl. 20 cm, odstranění podkladu z betonu prostého tl. do 30 cm, naložení suti a odvoz na skládku zhotovitele, zřízení podkladu ze štěrkopísku tl. 15 cm, podkladu z kameniva obalovaného asfaltem tl. 8 cm, podklad z betonu 2 x tl. 15 cm a kryt z betonu asfaltovéhoého tl. 10 cm. | L29: V položce je zakalkulováno: odstranění živičného krytu tl. 20 cm, odstranění podkladu z kameniva těženého tl. 20 cm, odstranění podkladu z betonu prostého tl. do 30 cm, naložení suti a odvoz na skládku zhotovitele, zřízení podkladu ze štěrkopísku tl. 15 cm, podkladu z kameniva obalovaného asfaltem tl. 8 cm, podklad z betonu 2 x tl. 15 cm a kryt z betonu asfaltovéhoého tl. 10 cm. | O29: 3
C30: V položce je kalkulován poplatek za skládku pro vybouranou suť. | L30: V položce je kalkulován poplatek za skládku pro vybouranou suť. | O30: 3
C31: Přípojka pro čp. 2143 - příplatek za trasu v komunikaci:6,00 | E31: 6 | M31: Přípojka pro čp. 2143 - příplatek za trasu v komunikaci:6,00
C32: Odpojení stávajícího potrubí původní přípojky:2,00 | E32: 2 | M32: Odpojení stávajícího potrubí původní přípojky:2,00
A33: 7 | B33: 841990212RRX | C33: Příplatek za trasu v chodníku ze zámkové dlažby šířka rýhy 80 cm | D33: m | E33: 2 | G33: =E33*F33 -> 0 | H33: 0.36152 | I33: =E33*H33 -> 0.72304 | J33: 0 | K33: =E33*J33 -> 0 | O33: 2 | AA33: 1 | AB33: 1 | AC33: 1 | AZ33: 1 | BA33: =IF(AZ33=1,G33,0) -> 0 | BB33: =IF(AZ33=2,G33,0) -> 0 | BC33: =IF(AZ33=3,G33,0) -> 0 | BD33: =IF(AZ33=4,G33,0) -> 0 | BE33: =IF(AZ33=5,G33,0) -> 0 | CA33: 1 | CB33: 1
C34: V položce je zakalkulováno: odstranění krytu ze zámkové dlažby s očištěním pro nové použití, odstranění podkladu z kameniva drceného tl. 20 cm, naložení suti a odvoz na skládku zhotovitele kromě zámkové dlažby, zřízení podkladu ze štěrkodrti tl. 15 cm, a krytu z původní očištěné zámkové dlažby do podkladu z kameniva těženého tl. 5 cm. | L34: V položce je zakalkulováno: odstranění krytu ze zámkové dlažby s očištěním pro nové použití, odstranění podkladu z kameniva drceného tl. 20 cm, naložení suti a odvoz na skládku zhotovitele kromě zámkové dlažby, zřízení podkladu ze štěrkodrti tl. 15 cm, a krytu z původní očištěné zámkové dlažby do podkladu z kameniva těženého tl. 5 cm. | O34: 3
C35: V položce je kalkulován poplatek za skládku pro vybouranou suť. | L35: V položce je kalkulován poplatek za skládku pro vybouranou suť. | O35: 3
C36: Přípojka pro čp. 2143 - příplatek - chodník:2,00 | E36: 2 | M36: Přípojka pro čp. 2143 - příplatek - chodník:2,00
B37: Celkem za | C37: 8 Trubní vedení | G37: =SUM(G12:G36) -> 0 | I37: =SUM(I12:I36) -> 27.41314 | K37: =SUM(K12:K36) -> -7.616 | O37: 4 | BA37: =SUM(BA12:BA36) -> 0 | BB37: =SUM(BB12:BB36) -> 0 | BC37: =SUM(BC12:BC36) -> 0 | BD37: =SUM(BD12:BD36) -> 0 | BE37: =SUM(BE12:BE36) -> 0
A38: Díl: | B38: 99 | C38: Staveništní přesun hmot | O38: 1
A39: 8 | B39: 998276101R00 | C39: Přesun hmot, trubní vedení plastová, otevř. výkop | D39: t | E39: 27.61714 | G39: =E39*F39 -> 0 | H39: 0 | I39: =E39*H39 -> 0 | K39: =E39*J39 -> 0 | O39: 2 | AA39: 7 | AB39: 1 | AC39: 2 | AZ39: 1 | BA39: =IF(AZ39=1,G39,0) -> 0 | BB39: =IF(AZ39=2,G39,0) -> 0 | BC39: =IF(AZ39=3,G39,0) -> 0 | BD39: =IF(AZ39=4,G39,0) -> 0 | BE39: =IF(AZ39=5,G39,0) -> 0 | CA39: 7 | CB39: 1
B40: Celkem za | C40: 99 Staveništní přesun hmot | G40: =SUM(G38:G39) -> 0 | I40: =SUM(I38:I39) -> 0 | K40: =SUM(K38:K39) -> 0 | O40: 4 | BA40: =SUM(BA38:BA39) -> 0 | BB40: =SUM(BB38:BB39) -> 0 | BC40: =SUM(BC38:BC39) -> 0 | BD40: =SUM(BD38:BD39) -> 0 | BE40: =SUM(BE38:BE39) -> 0

Sheet 101.11 101.11.2 KL
A1: POLOŽKOVÝ ROZPOČET
A2: Rozpočet | C2: 101.11.2 | D2: Křižovatka č.1 - Dostavba | F2: JKSO | G2: 822.27
A4: Objekt | F4: SKP
A5: 101.11 | C5: Komunikace "Nad Farářstvím" | F5: Měrná jednotka | G5: m2
A6: Stavba | F6: Počet jednotek | G6: 0
A7: 3383 | C7: Turnov-Lokalita Hruštice - Károvsko, Dostavba 2024 | F7: Náklady na m.j. | G7: =IF(G6=0,,ROUND((F30+F32)/G6,1)) -> 0
A8: Projektant | F8: Typ rozpočtu
A9: Zpracovatel projektu
A10: Objednatel | C10: Město TURNOV
A11: Dodavatel | C11: . | F11: Zakázkové číslo
A12: Rozpočtoval | F12: Počet listů
A13: ROZPOČTOVÉ NÁKLADY
A14: Základní rozpočtové náklady | D14: Ostatní rozpočtové náklady
B15: HSV celkem | C15: ='101.11 101.11.2 Rek'!E12 -> 0 | D15: ='101.11 101.11.2 Rek'!A17 -> Zařízení staveniště | G15: ='101.11 101.11.2 Rek'!I17 -> 0
A16: Z | B16: PSV celkem | C16: ='101.11 101.11.2 Rek'!F12 -> 0 | D16: ='101.11 101.11.2 Rek'!A18 -> Kompletační činnost (IČD) | G16: ='101.11 101.11.2 Rek'!I18 -> 0
A17: R | B17: M práce celkem | C17: ='101.11 101.11.2 Rek'!H12 -> 0 | D17: ='101.11 101.11.2 Rek'!A19 -> Vytýčení stavby a podz. inženýrských sítí | G17: ='101.11 101.11.2 Rek'!I19 -> 0
A18: N | B18: M dodávky celkem | C18: ='101.11 101.11.2 Rek'!G12 -> 0 | D18: ='101.11 101.11.2 Rek'!A20 -> Dokumentace skutečného provedení | G18: ='101.11 101.11.2 Rek'!I20 -> 0
A19: ZRN celkem | C19: =SUM(C15:C18) -> 0 | D19: ='101.11 101.11.2 Rek'!A21 -> Geodetické zaměření stavby | G19: ='101.11 101.11.2 Rek'!I21 -> 0
D20: ='101.11 101.11.2 Rek'!A22 -> DIO | G20: ='101.11 101.11.2 Rek'!I22 -> 0
A21: HZS | C21: ='101.11 101.11.2 Rek'!I12 -> 0
A22: ZRN+HZS | C22: =C19+C21 -> 0
A23: ZRN+ost.náklady+HZS | C23: =C22+G23 -> 0 | D23: Ostatní náklady celkem | G23: ='101.11 101.11.2 Rek'!H23 -> 0
A24: Vypracoval | D24: Za zhotovitele | F24: Za objednatele
A25: Jméno : | D25: Jméno : | F25: Jméno :
A26: Datum : | D26: Datum : | F26: Datum :
A28: Podpis : | D28: Podpis: | F28: Podpis:
A30: Základ pro DPH | C30: 21 | D30: % | F30: =C23-F32 -> 0
A31: DPH | C31: =C30 -> 21 | D31: % | F31: =ROUND(PRODUCT(F30,C31/100),0) -> 0
A32: Základ pro DPH | C32: 0 | D32: % | F32: 0
A33: DPH | C33: =C32 -> 0 | D33: % | F33: =ROUND(PRODUCT(F32,C33/100),0) -> 0
A34: CENA ZA OBJEKT CELKEM | F34: =ROUND(SUM(F30:F33),0) -> 0
A36: Poznámka :

Sheet 101.11 101.11.2 Rek
A1: Stavba : | C1: 3383 Turnov-Lokalita Hruštice - Károvsko, Dostavba 2024 | G1: Rozpočet : | H1: 101.11.2
A2: Objekt : | C2: 101.11 Komunikace "Nad Farářstvím" | G2: Křižovatka č.1 - Dostavba
A4: REKAPITULACE STAVEBNÍCH DÍLŮ
B6: Stavební díl | E6: HSV | F6: PSV | G6: Dodávka | H6: Montáž | I6: HZS
A7: ='101.11 101.11.2 Pol'!B7 -> 1 | B7: ='101.11 101.11.2 Pol'!C7 -> Zemní práce | E7: ='101.11 101.11.2 Pol'!BA28 -> 0 | F7: ='101.11 101.11.2 Pol'!BB28 -> 0 | G7: ='101.11 101.11.2 Pol'!BC28 -> 0 | H7: ='101.11 101.11.2 Pol'!BD28 -> 0 | I7: ='101.11 101.11.2 Pol'!BE28 -> 0
A8: ='101.11 101.11.2 Pol'!B29 -> 5 | B8: ='101.11 101.11.2 Pol'!C29 -> Komunikace | E8: ='101.11 101.11.2 Pol'!BA46 -> 0 | F8: ='101.11 101.11.2 Pol'!BB46 -> 0 | G8: ='101.11 101.11.2 Pol'!BC46 -> 0 | H8: ='101.11 101.11.2 Pol'!BD46 -> 0 | I8: ='101.11 101.11.2 Pol'!BE46 -> 0
A9: ='101.11 101.11.2 Pol'!B47 -> 91 | B9: ='101.11 101.11.2 Pol'!C47 -> Doplňující práce na komunikaci | E9: ='101.11 101.11.2 Pol'!BA58 -> 0 | F9: ='101.11 101.11.2 Pol'!BB58 -> 0 | G9: ='101.11 101.11.2 Pol'!BC58 -> 0 | H9: ='101.11 101.11.2 Pol'!BD58 -> 0 | I9: ='101.11 101.11.2 Pol'!BE58 -> 0
A10: ='101.11 101.11.2 Pol'!B59 -> 93 | B10: ='101.11 101.11.2 Pol'!C59 -> Dokončovací práce inženýrských staveb | E10: ='101.11 101.11.2 Pol'!BA68 -> 0 | F10: ='101.11 101.11.2 Pol'!BB68 -> 0 | G10: ='101.11 101.11.2 Pol'!BC68 -> 0 | H10: ='101.11 101.11.2 Pol'!BD68 -> 0 | I10: ='101.11 101.11.2 Pol'!BE68 -> 0
A11: ='101.11 101.11.2 Pol'!B69 -> 99 | B11: ='101.11 101.11.2 Pol'!C69 -> Staveništní přesun hmot | E11: ='101.11 101.11.2 Pol'!BA71 -> 0 | F11: ='101.11 101.11.2 Pol'!BB71 -> 0 | G11: ='101.11 101.11.2 Pol'!BC71 -> 0 | H11: ='101.11 101.11.2 Pol'!BD71 -> 0 | I11: ='101.11 101.11.2 Pol'!BE71 -> 0
B12: CELKEM OBJEKT | E12: =SUM(E7:E11) -> 0 | F12: =SUM(F7:F11) -> 0 | G12: =SUM(G7:G11) -> 0 | H12: =SUM(H7:H11) -> 0 | I12: =SUM(I7:I11) -> 0
A14: VEDLEJŠÍ ROZPOČTOVÉ NÁKLADY
A16: Název VRN | E16: Kč | I16: Kč
A17: Zařízení staveniště | E17: 0 | I17: =E17+F17*G17/100 -> 0 | BA17: 2
A18: Kompletační činnost (IČD) | E18: 0 | I18: =E18+F18*G18/100 -> 0 | BA18: 2
A19: Vytýčení stavby a podz. inženýrských sítí | E19: 0 | I19: =E19+F19*G19/100 -> 0 | BA19: 0
A20: Dokumentace skutečného provedení | E20: 0 | I20: =E20+F20*G20/100 -> 0 | BA20: 0
A21: Geodetické zaměření stavby | E21: 0 | I21: =E21+F21*G21/100 -> 0 | BA21: 0
A22: DIO | E22: 0 | I22: =E22+F22*G22/100 -> 0 | BA22: 0
B23: CELKEM VRN | H23: =SUM(I17:I22) -> 0

Sheet 101.11 101.11.2 Pol
A1: Položkový rozpočet
A3: Stavba : | C3: 3383 Turnov-Lokalita Hruštice - Károvsko, Dostavba 2024 | E3: Rozpočet: | F3: ='101.11 101.11.2 Rek'!H1 -> 101.11.2
A4: Objekt : | C4: 101.11 Komunikace "Nad Farářstvím" | E4: ='101.11 101.11.2 Rek'!G2 -> Křižovatka č.1 - Dostavba
A6: P.č. | B6: Číslo položky | C6: Název položky | D6: MJ | E6: množství | F6: cena / MJ | G6: celkem (Kč) | H6: Jednotková hmotnost | I6: Celková hmotnost | J6: Jednotková dem.hmot. | K6: Celková dem.hmot.
A7: Díl: | B7: 1 | C7: Zemní práce | O7: 1
A8: 1 | B8: 113108310R00 | C8: Odstranění asfaltové vrstvy pl. do 50 m2, tl.10 cm | D8: m2 | E8: 38.28 | G8: =E8*F8 -> 0 | H8: 0 | I8: =E8*H8 -> 0 | J8: -0.22 | K8: =E8*J8 -> -8.4216 | O8: 2 | AA8: 1 | AB8: 1 | AC8: 1 | AZ8: 1 | BA8: =IF(AZ8=1,G8,0) -> 0 | BB8: =IF(AZ8=2,G8,0) -> 0 | BC8: =IF(AZ8=3,G8,0) -> 0 | BD8: =IF(AZ8=4,G8,0) -> 0 | BE8: =IF(AZ8=5,G8,0) -> 0 | CA8: 1 | CB8: 1
C9: Pro osazení betonových obrubníků:9,45*4*0,10 | E9: 3.78 | M9: Pro osazení betonových obrubníků:9,45*4*0,10
C10: Křižovatka - Náběhy:6,00*1,50*2+5,50*1,50*2 | E10: 34.5 | M10: Křižovatka - Náběhy:6,00*1,50*2+5,50*1,50*2
A11: 2 | B11: 122202201R00 | C11: Odkopávky pro silnice v hor. 3 do 100 m3 | D11: m3 | E11: 2.268 | G11: =E11*F11 -> 0 | H11: 0 | I11: =E11*H11 -> 0 | J11: 0 | K11: =E11*J11 -> 0 | O11: 2 | AA11: 1 | AB11: 1 | AC11: 1 | AZ11: 1 | BA11: =IF(AZ11=1,G11,0) -> 0 | BB11: =IF(AZ11=2,G11,0) -> 0 | BC11: =IF(AZ11=3,G11,0) -> 0 | BD11: =IF(AZ11=4,G11,0) -> 0 | BE11: =IF(AZ11=5,G11,0) -> 0 | CA11: 1 | CB11: 1
C12: Pro osazení betonových obrubníků:9,45*4*0,30*0,20 | E12: 2.268 | M12: Pro osazení betonových obrubníků:9,45*4*0,30*0,20
A13: 3 | B13: 122202209R00 | C13: Příplatek za lepivost - odkop. pro silnice v hor.3 | D13: m3 | E13: 1.134 | G13: =E13*F13 -> 0 | H13: 0 | I13: =E13*H13 -> 0 | J13: 0 | K13: =E13*J13 -> 0 | O13: 2 | AA13: 1 | AB13: 1 | AC13: 1 | AZ13: 1 | BA13: =IF(AZ13=1,G13,0) -> 0 | BB13: =IF(AZ13=2,G13,0) -> 0 | BC13: =IF(AZ13=3,G13,0) -> 0 | BD13: =IF(AZ13=4,G13,0) -> 0 | BE13: =IF(AZ13=5,G13,0) -> 0 | CA13: 1 | CB13: 1
C14: Pro osazení betonových obrubníků:9,45*4*0,30*0,20*0,5 | E14: 1.134 | M14: Pro osazení betonových obrubníků:9,45*4*0,30*0,20*0,5
A15: 4 | B15: 162701105RSZ | C15: Vodorovné přemístění výkopku z hor.1-7 na skládku zhotovitele | D15: m3 | E15: 2.268 | G15: =E15*F15 -> 0 | H15: 0 | I15: =E15*H15 -> 0 | J15: 0 | K15: =E15*J15 -> 0 | O15: 2 | AA15: 1 | AB15: 1 | AC15: 1 | AZ15: 1 | BA15: =IF(AZ15=1,G15,0) -> 0 | BB15: =IF(AZ15=2,G15,0) -> 0 | BC15: =IF(AZ15=3,G15,0) -> 0 | BD15: =IF(AZ15=4,G15,0) -> 0 | BE15: =IF(AZ15=5,G15,0) -> 0 | CA15: 1 | CB15: 1
C16: Pro osazení betonových obrubníků:9,45*4*0,30*0,20 | E16: 2.268 | M16: Pro osazení betonových obrubníků:9,45*4*0,30*0,20
A17: 5 | B17: 181101102R00 | C17: Úprava pláně v zářezech v hor. 1-4, se zhutněním | D17: m2 | E17: 11.34 | G17: =E17*F17 -> 0 | H17: 0 | I17: =E17*H17 -> 0 | J17: 0 | K17: =E17*J17 -> 0 | O17: 2 | AA17: 1 | AB17: 1 | AC17: 1 | AZ17: 1 | BA17: =IF(AZ17=1,G17,0) -> 0 | BB17: =IF(AZ17=2,G17,0) -> 0 | BC17: =IF(AZ17=3,G17,0) -> 0 | BD17: =IF(AZ17=4,G17,0) -> 0 | BE17: =IF(AZ17=5,G17,0) -> 0 | CA17: 1 | CB17: 1
C18: Pro osazení betonových obrubníků:9,45*4*0,30 | E18: 11.34 | M18: Pro osazení betonových obrubníků:9,45*4*0,30
A19: 6 | B19: 181300012RAC | C19: Rozprostření ornice v rovině tloušťka 20 cm dovoz ornice ze vzdálenosti 5 km, osetí trávou | D19: m2 | E19: 61 | G19: =E19*F19 -> 0 | H19: 3e-05 | I19: =E19*H19 -> 0.00183 | J19: 0 | K19: =E19*J19 -> 0 | O19: 2 | AA19: 1 | AB19: 1 | AC19: 1 | AZ19: 1 | BA19: =IF(AZ19=1,G19,0) -> 0 | BB19: =IF(AZ19=2,G19,0) -> 0 | BC19: =IF(AZ19=3,G19,0) -> 0 | BD19: =IF(AZ19=4,G19,0) -> 0 | BE19: =IF(AZ19=5,G19,0) -> 0 | CA19: 1 | CB19: 1
C20: Včetně naložení ornice na skládce investora a přesunu hmot. | L20: Včetně naložení ornice na skládce investora a přesunu hmot. | O20: 3
C21: Doplnění ornice za obrubou:6,00*3,00*4+4,00*2,50*2-7,75*4 | E21: 61 | M21: Doplnění ornice za obrubou:6,00*3,00*4+4,00*2,50*2-7,75*4
A22: 7 | B22: 199000002R00 | C22: Poplatek za skládku horniny 1- 7 č. dle katal. odpadů 17 05 04 | D22: m3 | E22: 2.268 | G22: =E22*F22 -> 0 | H22: 0 | I22: =E22*H22 -> 0 | J22: 0 | K22: =E22*J22 -> 0 | O22: 2 | AA22: 1 | AB22: 1 | AC22: 1 | AZ22: 1 | BA22: =IF(AZ22=1,G22,0) -> 0 | BB22: =IF(AZ22=2,G22,0) -> 0 | BC22: =IF(AZ22=3,G22,0) -> 0 | BD22: =IF(AZ22=4,G22,0) -> 0 | BE22: =IF(AZ22=5,G22,0) -> 0 | CA22: 1 | CB22: 1
C23: Pro osazení betonových obrubníků:9,45*4*0,30*0,20 | E23: 2.268 | M23: Pro osazení betonových obrubníků:9,45*4*0,30*0,20
A24: 8 | B24: 976085211R00 | C24: Vybourání kanal.rámů a poklopů plochy do 0,3 m2 | D24: kus | E24: 4 | G24: =E24*F24 -> 0 | H24: 0 | I24: =E24*H24 -> 0 | J24: -0.024 | K24: =E24*J24 -> -0.096 | O24: 2 | AA24: 1 | AB24: 0 | AC24: 0 | AZ24: 1 | BA24: =IF(AZ24=1,G24,0) -> 0 | BB24: =IF(AZ24=2,G24,0) -> 0 | BC24: =IF(AZ24=3,G24,0) -> 0 | BD24: =IF(AZ24=4,G24,0) -> 0 | BE24: =IF(AZ24=5,G24,0) -> 0 | CA24: 1 | CB24: 0
A25: 9 | B25: 979082113RSZ | C25: Vodorovná doprava suti po suchu na skládku zhotovitele | D25: t | E25: 8.4216 | G25: =E25*F25 -> 0 | H25: 0 | I25: =E25*H25 -> 0 | J25: 0 | K25: =E25*J25 -> 0 | O25: 2 | AA25: 1 | AB25: 1 | AC25: 1 | AZ25: 1 | BA25: =IF(AZ25=1,G25,0) -> 0 | BB25: =IF(AZ25=2,G25,0) -> 0 | BC25: =IF(AZ25=3,G25,0) -> 0 | BD25: =IF(AZ25=4,G25,0) -> 0 | BE25: =IF(AZ25=5,G25,0) -> 0 | CA25: 1 | CB25: 1
A26: 10 | B26: 979999995R00 | C26: Poplatek za reciklaci asfaltu, kusovost do 1600cm2 skupina 170302 | D26: t | E26: 8.4216 | G26: =E26*F26 -> 0 | H26: 0 | I26: =E26*H26 -> 0 | J26: 0 | K26: =E26*J26 -> 0 | O26: 2 | AA26: 1 | AB26: 1 | AC26: 1 | AZ26: 1 | BA26: =IF(AZ26=1,G26,0) -> 0 | BB26: =IF(AZ26=2,G26,0) -> 0 | BC26: =IF(AZ26=3,G26,0) -> 0 | BD26: =IF(AZ26=4,G26,0) -> 0 | BE26: =IF(AZ26=5,G26,0) -> 0 | CA26: 1 | CB26: 1
C27: Položka je určena pro suť o velikosti kusu do 30x30 cm (technologický materiál určený k recyklaci). | L27: Položka je určena pro suť o velikosti kusu do 30x30 cm (technologický materiál určený k recyklaci). | O27: 3
B28: Celkem za | C28: 1 Zemní práce | G28: =SUM(G7:G27) -> 0 | I28: =SUM(I7:I27) -> 0.00183 | K28: =SUM(K7:K27) -> -8.5176 | O28: 4 | BA28: =SUM(BA7:BA27) -> 0 | BB28: =SUM(BB7:BB27) -> 0 | BC28: =SUM(BC7:BC27) -> 0 | BD28: =SUM(BD7:BD27) -> 0 | BE28: =SUM(BE7:BE27) -> 0
A29: Díl: | B29: 5 | C29: Komunikace | O29: 1
A30: 11 | B30: 564791111R00 | C30: Podklad pro zpevněné plochy z kam.drceného 0-63 mm | D30: m3 | E30: 2.988 | G30: =E30*F30 -> 0 | H30: 2.204 | I30: =E30*H30 -> 6.585552 | J30: 0 | K30: =E30*J30 -> 0 | O30: 2 | AA30: 1 | AB30: 0 | AC30: 0 | AZ30: 1 | BA30: =IF(AZ30=1,G30,0) -> 0 | BB30: =IF(AZ30=2,G30,0) -> 0 | BC30: =IF(AZ30=3,G30,0) -> 0 | BD30: =IF(AZ30=4,G30,0) -> 0 | BE30: =IF(AZ30=5,G30,0) -> 0 | CA30: 1 | CB30: 0
C31: Včetně kameniva, rozprostření a zhutnění podkladu. | L31: Včetně kameniva, rozprostření a zhutnění podkladu. | O31: 3
C32: Pro osazení betonových obrubníků:(1,50*8+9,45*4)*0,30*0,2 | E32: 2.988 | M32: Pro osazení betonových obrubníků:(1,50*8+9,45*4)*0,30*0,2
A33: 12 | B33: 565141211RT3 | C33: Podklad z obal kam.ACP 16+,nad 3 m,tl.6 cm plochy 101-200 m2 | D33: m2 | E33: 208.25 | G33: =E33*F33 -> 0 | H33: 0.15826 | I33: =E33*H33 -> 32.957645 | J33: 0 | K33: =E33*J33 -> 0 | O33: 2 | AA33: 1 | AB33: 1 | AC33: 1 | AZ33: 1 | BA33: =IF(AZ33=1,G33,0) -> 0 | BB33: =IF(AZ33=2,G33,0) -> 0 | BC33: =IF(AZ33=3,G33,0) -> 0 | BD33: =IF(AZ33=4,G33,0) -> 0 | BE33: =IF(AZ33=5,G33,0) -> 0 | CA33: 1 | CB33: 1
C34: Křižovatka:19,00*6,00+6,00*5,50+5,50*5,50+7,75*4 | E34: 208.25 | M34: Křižovatka:19,00*6,00+6,00*5,50+5,50*5,50+7,75*4
A35: 13 | B35: 572713112R00 | C35: Vyrovnání povrchu krytů kamen. obaleným asfaltem | D35: t | E35: 1.245 | G35: =E35*F35 -> 0 | H35: 1 | I35: =E35*H35 -> 1.245 | J35: 0 | K35: =E35*J35 -> 0 | O35: 2 | AA35: 1 | AB35: 1 | AC35: 1 | AZ35: 1 | BA35: =IF(AZ35=1,G35,0) -> 0 | BB35: =IF(AZ35=2,G35,0) -> 0 | BC35: =IF(AZ35=3,G35,0) -> 0 | BD35: =IF(AZ35=4,G35,0) -> 0 | BE35: =IF(AZ35=5,G35,0) -> 0 | CA35: 1 | CB35: 1
C36: Doplnění stávající asfaltové plochy podél nových obrubníků:(1,50*8+9,45*4)*0,10*0,10*2,5 | E36: 1.245 | M36: Doplnění stávající asfaltové plochy podél nových obrubníků:(1,50*8+9,45*4)*0,10*0,10*2,5
A37: 14 | B37: 573231125R00 | C37: Postřik spojovací z KAE množství zbytkového asfaltu 0,5 kg/m2 | D37: m2 | E37: 208.25 | G37: =E37*F37 -> 0 | H37: 0.0005 | I37: =E37*H37 -> 0.104125 | J37: 0 | K37: =E37*J37 -> 0 | O37: 2 | AA37: 1 | AB37: 1 | AC37: 1 | AZ37: 1 | BA37: =IF(AZ37=1,G37,0) -> 0 | BB37: =IF(AZ37=2,G37,0) -> 0 | BC37: =IF(AZ37=3,G37,0) -> 0 | BD37: =IF(AZ37=4,G37,0) -> 0 | BE37: =IF(AZ37=5,G37,0) -> 0 | CA37: 1 | CB37: 1
C38: Křižovatka:19,00*6,00+6,00*5,50+5,50*5,50+7,75*4 | E38: 208.25 | M38: Křižovatka:19,00*6,00+6,00*5,50+5,50*5,50+7,75*4
A39: 15 | B39: 577132111RT3 | C39: Beton asfalt. ACO 11+ obrusný, š.nad 3 m, tl. 4 cm plochy 101-200 m2 | D39: m2 | E39: 208.25 | G39: =E39*F39 -> 0 | H39: 0.10373 | I39: =E39*H39 -> 21.6017725 | J39: 0 | K39: =E39*J39 -> 0 | O39: 2 | AA39: 1 | AB39: 1 | AC39: 1 | AZ39: 1 | BA39: =IF(AZ39=1,G39,0) -> 0 | BB39: =IF(AZ39=2,G39,0) -> 0 | BC39: =IF(AZ39=3,G39,0) -> 0 | BD39: =IF(AZ39=4,G39,0) -> 0 | BE39: =IF(AZ39=5,G39,0) -> 0 | CA39: 1 | CB39: 1
C40: Křižovatka:19,00*6,00+6,00*5,50+5,50*5,50+7,75*4 | E40: 208.25 | M40: Křižovatka:19,00*6,00+6,00*5,50+5,50*5,50+7,75*4
A41: 16 | B41: 591241111R00 | C41: Kladení dlažby drobné kostky, lože z MC tl. 5 cm | D41: m2 | E41: 34.5 | G41: =E41*F41 -> 0 | H41: 0.31388 | I41: =E41*H41 -> 10.82886 | J41: 0 | K41: =E41*J41 -> 0 | O41: 2 | AA41: 1 | AB41: 1 | AC41: 1 | AZ41: 1 | BA41: =IF(AZ41=1,G41,0) -> 0 | BB41: =IF(AZ41=2,G41,0) -> 0 | BC41: =IF(AZ41=3,G41,0) -> 0 | BD41: =IF(AZ41=4,G41,0) -> 0 | BE41: =IF(AZ41=5,G41,0) -> 0 | CA41: 1 | CB41: 1
C42: V položce jsou zakalkulovány i náklady na dodání hmot pro lože a na dodání téhož materiálu na výplň spár. V položce nejsou zakalkulovány náklady na dodání dlažebních kostek (dležba investora). | L42: V položce jsou zakalkulovány i náklady na dodání hmot pro lože a na dodání téhož materiálu na výplň spár. V položce nejsou zakalkulovány náklady na dodání dlažebních kostek (dležba investora). | O42: 3
C43: Křižovatka - náběhy:6,00*1,50*2+5,50*1,50*2 | E43: 34.5 | M43: Křižovatka - náběhy:6,00*1,50*2+5,50*1,50*2
A44: 17 | B44: 979084216R00 | C44: Vodorovná doprava vybour. hmot po suchu do 5 km | D44: t | E44: 8.625 | G44: =E44*F44 -> 0 | H44: 0 | I44: =E44*H44 -> 0 | J44: 0 | K44: =E44*J44 -> 0 | O44: 2 | AA44: 1 | AB44: 1 | AC44: 1 | AZ44: 1 | BA44: =IF(AZ44=1,G44,0) -> 0 | BB44: =IF(AZ44=2,G44,0) -> 0 | BC44: =IF(AZ44=3,G44,0) -> 0 | BD44: =IF(AZ44=4,G44,0) -> 0 | BE44: =IF(AZ44=5,G44,0) -> 0 | CA44: 1 | CB44: 1
A45: 18 | B45: 979087213R00 | C45: Nakládání vybour.hmot na dop.prostředky-komunikace | D45: t | E45: 8.625 | G45: =E45*F45 -> 0 | H45: 0 | I45: =E45*H45 -> 0 | J45: 0 | K45: =E45*J45 -> 0 | O45: 2 | AA45: 1 | AB45: 1 | AC45: 1 | AZ45: 1 | BA45: =IF(AZ45=1,G45,0) -> 0 | BB45: =IF(AZ45=2,G45,0) -> 0 | BC45: =IF(AZ45=3,G45,0) -> 0 | BD45: =IF(AZ45=4,G45,0) -> 0 | BE45: =IF(AZ45=5,G45,0) -> 0 | CA45: 1 | CB45: 1
B46: Celkem za | C46: 5 Komunikace | G46: =SUM(G29:G45) -> 0 | I46: =SUM(I29:I45) -> 73.3229545 | K46: =SUM(K29:K45) -> 0 | O46: 4 | BA46: =SUM(BA29:BA45) -> 0 | BB46: =SUM(BB29:BB45) -> 0 | BC46: =SUM(BC29:BC45) -> 0 | BD46: =SUM(BD29:BD45) -> 0 | BE46: =SUM(BE29:BE45) -> 0
A47: Díl: | B47: 91 | C47: Doplňující práce na komunikaci | O47: 1
A48: 19 | B48: 917732114RT7 | C48: Osazení stojat. obrub.bet. s opěrou,lože z C 25/30 včetně obrubníku 1000x150x250 mm | D48: m | E48: 37.8 | G48: =E48*F48 -> 0 | H48: 0.26981 | I48: =E48*H48 -> 10.198818 | J48: 0 | K48: =E48*J48 -> 0 | O48: 2 | AA48: 1 | AB48: 0 | AC48: 0 | AZ48: 1 | BA48: =IF(AZ48=1,G48,0) -> 0 | BB48: =IF(AZ48=2,G48,0) -> 0 | BC48: =IF(AZ48=3,G48,0) -> 0 | BD48: =IF(AZ48=4,G48,0) -> 0 | BE48: =IF(AZ48=5,G48,0) -> 0 | CA48: 1 | CB48: 0
C49: Osazení obrubníků:9,45*4 | E49: 37.8 | M49: Osazení obrubníků:9,45*4
A50: 20 | B50: 918101111R00 | C50: Lože pod obrubníky nebo obruby dlažeb z C 12/15 | D50: m3 | E50: 0.945 | G50: =E50*F50 -> 0 | H50: 2.525 | I50: =E50*H50 -> 2.386125 | J50: 0 | K50: =E50*J50 -> 0 | O50: 2 | AA50: 1 | AB50: 1 | AC50: 1 | AZ50: 1 | BA50: =IF(AZ50=1,G50,0) -> 0 | BB50: =IF(AZ50=2,G50,0) -> 0 | BC50: =IF(AZ50=3,G50,0) -> 0 | BD50: =IF(AZ50=4,G50,0) -> 0 | BE50: =IF(AZ50=5,G50,0) -> 0 | CA50: 1 | CB50: 1
C51: Osazení obrubníků:9,45*4*0,25*0,10 | E51: 0.945 | M51: Osazení obrubníků:9,45*4*0,25*0,10
A52: 21 | B52: 919731122R00 | C52: Zarovnání styčné plochy živičné tl. do 10 cm | D52: m | E52: 83.8 | G52: =E52*F52 -> 0 | H52: 0 | I52: =E52*H52 -> 0 | J52: 0 | K52: =E52*J52 -> 0 | O52: 2 | AA52: 1 | AB52: 1 | AC52: 1 | AZ52: 1 | BA52: =IF(AZ52=1,G52,0) -> 0 | BB52: =IF(AZ52=2,G52,0) -> 0 | BC52: =IF(AZ52=3,G52,0) -> 0 | BD52: =IF(AZ52=4,G52,0) -> 0 | BE52: =IF(AZ52=5,G52,0) -> 0 | CA52: 1 | CB52: 1
C53: Pro osazení betonových obrubníků:9,45*4 | E53: 37.8 | M53: Pro osazení betonových obrubníků:9,45*4
C54: Křižovatka - Náběhy:6,00*2*2+5,50*2*2 | E54: 46 | M54: Křižovatka - Náběhy:6,00*2*2+5,50*2*2
A55: 22 | B55: 919735112R00 | C55: Řezání stávajícího živičného krytu tl. 5 - 10 cm | D55: m | E55: 83.8 | G55: =E55*F55 -> 0 | H55: 0 | I55: =E55*H55 -> 0 | J55: 0 | K55: =E55*J55 -> 0 | O55: 2 | AA55: 1 | AB55: 1 | AC55: 1 | AZ55: 1 | BA55: =IF(AZ55=1,G55,0) -> 0 | BB55: =IF(AZ55=2,G55,0) -> 0 | BC55: =IF(AZ55=3,G55,0) -> 0 | BD55: =IF(AZ55=4,G55,0) -> 0 | BE55: =IF(AZ55=5,G55,0) -> 0 | CA55: 1 | CB55: 1
C56: Pro osazení betonových obrubníků:9,45*4 | E56: 37.8 | M56: Pro osazení betonových obrubníků:9,45*4
C57: Křižovatka - Náběhy:6,00*2*2+5,50*2*2 | E57: 46 | M57: Křižovatka - Náběhy:6,00*2*2+5,50*2*2
B58: Celkem za | C58: 91 Doplňující práce na komunikaci | G58: =SUM(G47:G57) -> 0 | I58: =SUM(I47:I57) -> 12.584943 | K58: =SUM(K47:K57) -> 0 | O58: 4 | BA58: =SUM(BA47:BA57) -> 0 | BB58: =SUM(BB47:BB57) -> 0 | BC58: =SUM(BC47:BC57) -> 0 | BD58: =SUM(BD47:BD57) -> 0 | BE58: =SUM(BE47:BE57) -> 0
A59: Díl: | B59: 93 | C59: Dokončovací práce inženýrských staveb | O59: 1
A60: 23 | B60: 938908411R00 | C60: Očištění povrchu krytu saponátovým roztokem | D60: m2 | E60: 208.25 | G60: =E60*F60 -> 0 | H60: 1e-05 | I60: =E60*H60 -> 0.0020825 | J60: 0 | K60: =E60*J60 -> 0 | O60: 2 | AA60: 1 | AB60: 1 | AC60: 1 | AZ60: 1 | BA60: =IF(AZ60=1,G60,0) -> 0 | BB60: =IF(AZ60=2,G60,0) -> 0 | BC60: =IF(AZ60=3,G60,0) -> 0 | BD60: =IF(AZ60=4,G60,0) -> 0 | BE60: =IF(AZ60=5,G60,0) -> 0 | CA60: 1 | CB60: 1
C61: Křižovatka:19,00*6,00+6,00*5,50+5,50*5,50+7,75*4 | E61: 208.25 | M61: Křižovatka:19,00*6,00+6,00*5,50+5,50*5,50+7,75*4
A62: 24 | B62: 938909311R00 | C62: Odstranění nánosu z povrchu živičného nebo beton. | D62: m2 | E62: 208.25 | G62: =E62*F62 -> 0 | H62: 0 | I62: =E62*H62 -> 0 | J62: 0 | K62: =E62*J62 -> 0 | O62: 2 | AA62: 1 | AB62: 1 | AC62: 1 | AZ62: 1 | BA62: =IF(AZ62=1,G62,0) -> 0 | BB62: =IF(AZ62=2,G62,0) -> 0 | BC62: =IF(AZ62=3,G62,0) -> 0 | BD62: =IF(AZ62=4,G62,0) -> 0 | BE62: =IF(AZ62=5,G62,0) -> 0 | CA62: 1 | CB62: 1
C63: Křižovatka:19,00*6,00+6,00*5,50+5,50*5,50+7,75*4 | E63: 208.25 | M63: Křižovatka:19,00*6,00+6,00*5,50+5,50*5,50+7,75*4
A64: 25 | B64: 939421121RT2 | C64: Osazení samonivelač.vodovod.poklopu za finišerem včetně dodávky poklopu | D64: kus | E64: 4 | G64: =E64*F64 -> 0 | H64: 0.0645 | I64: =E64*H64 -> 0.258 | J64: 0 | K64: =E64*J64 -> 0 | O64: 2 | AA64: 1 | AB64: 1 | AC64: 1 | AZ64: 1 | BA64: =IF(AZ64=1,G64,0) -> 0 | BB64: =IF(AZ64=2,G64,0) -> 0 | BC64: =IF(AZ64=3,G64,0) -> 0 | BD64: =IF(AZ64=4,G64,0) -> 0 | BE64: =IF(AZ64=5,G64,0) -> 0 | CA64: 1 | CB64: 1
A65: 26 | B65: 939431111RT2 | C65: Výměna kanaliz.poklopu za samonivelační, hl.200 mm včetně dodávky litinového poklopu D400 SN600 | D65: kus | E65: 1 | G65: =E65*F65 -> 0 | H65: 0.56041 | I65: =E65*H65 -> 0.56041 | J65: -0.32076 | K65: =E65*J65 -> -0.32076 | O65: 2 | AA65: 1 | AB65: 0 | AC65: 0 | AZ65: 1 | BA65: =IF(AZ65=1,G65,0) -> 0 | BB65: =IF(AZ65=2,G65,0) -> 0 | BC65: =IF(AZ65=3,G65,0) -> 0 | BD65: =IF(AZ65=4,G65,0) -> 0 | BE65: =IF(AZ65=5,G65,0) -> 0 | CA65: 1 | CB65: 0
C66: Samonivelační bezpantový těžký poklop KASI KDM65 případně část KDM63 dle upřesnění provozovatele. | L66: Samonivelační bezpantový těžký poklop KASI KDM65 případně část KDM63 dle upřesnění provozovatele. | O66: 3
C67: Poklop se znakem "Město Turnov" | L67: Poklop se znakem "Město Turnov" | O67: 3
B68: Celkem za | C68: 93 Dokončovací práce inženýrských staveb | G68: =SUM(G59:G67) -> 0 | I68: =SUM(I59:I67) -> 0.8204925 | K68: =SUM(K59:K67) -> -0.32076 | O68: 4 | BA68: =SUM(BA59:BA67) -> 0 | BB68: =SUM(BB59:BB67) -> 0 | BC68: =SUM(BC59:BC67) -> 0 | BD68: =SUM(BD59:BD67) -> 0 | BE68: =SUM(BE59:BE67) -> 0
A69: Díl: | B69: 99 | C69: Staveništní přesun hmot | O69: 1
A70: 27 | B70: 998225111R00 | C70: Přesun hmot, pozemní komunikace, kryt živičný | D70: t | E70: 86.73022 | G70: =E70*F70 -> 0 | H70: 0 | I70: =E70*H70 -> 0 | K70: =E70*J70 -> 0 | O70: 2 | AA70: 7 | AB70: 1 | AC70: 2 | AZ70: 1 | BA70: =IF(AZ70=1,G70,0) -> 0 | BB70: =IF(AZ70=2,G70,0) -> 0 | BC70: =IF(AZ70=3,G70,0) -> 0 | BD70: =IF(AZ70=4,G70,0) -> 0 | BE70: =IF(AZ70=5,G70,0) -> 0 | CA70: 7 | CB70: 1
B71: Celkem za | C71: 99 Staveništní přesun hmot | G71: =SUM(G69:G70) -> 0 | I71: =SUM(I69:I70) -> 0 | K71: =SUM(K69:K70) -> 0 | O71: 4 | BA71: =SUM(BA69:BA70) -> 0 | BB71: =SUM(BB69:BB70) -> 0 | BC71: =SUM(BC69:BC70) -> 0 | BD71: =SUM(BD69:BD70) -> 0 | BE71: =SUM(BE69:BE70) -> 0

Sheet 101.11 101.11.3 KL
A1: POLOŽKOVÝ ROZPOČET
A2: Rozpočet | C2: 101.11.3 | D2: Úsek č. 2 - dostavba | F2: JKSO | G2: 822.27
A4: Objekt | F4: SKP
A5: 101.11 | C5: Komunikace "Nad Farářstvím" | F5: Měrná jednotka | G5: m2
A6: Stavba | F6: Počet jednotek | G6: 0
A7: 3383 | C7: Turnov-Lokalita Hruštice - Károvsko, Dostavba 2024 | F7: Náklady na m.j. | G7: =IF(G6=0,,ROUND((F30+F32)/G6,1)) -> 0
A8: Projektant | F8: Typ rozpočtu
A9: Zpracovatel projektu
A10: Objednatel | C10: Město TURNOV
A11: Dodavatel | C11: . | F11: Zakázkové číslo
A12: Rozpočtoval | F12: Počet listů
A13: ROZPOČTOVÉ NÁKLADY
A14: Základní rozpočtové náklady | D14: Ostatní rozpočtové náklady
B15: HSV celkem | C15: ='101.11 101.11.3 Rek'!E13 -> 0 | D15: ='101.11 101.11.3 Rek'!A18 -> Zařízení staveniště | G15: ='101.11 101.11.3 Rek'!I18 -> 0
A16: Z | B16: PSV celkem | C16: ='101.11 101.11.3 Rek'!F13 -> 0 | D16: ='101.11 101.11.3 Rek'!A19 -> Kompletační činnost (IČD) | G16: ='101.11 101.11.3 Rek'!I19 -> 0
A17: R | B17: M práce celkem | C17: ='101.11 101.11.3 Rek'!H13 -> 0 | D17: ='101.11 101.11.3 Rek'!A20 -> Vytýčení stavby a podz. inženýrských sítí | G17: ='101.11 101.11.3 Rek'!I20 -> 0
A18: N | B18: M dodávky celkem | C18: ='101.11 101.11.3 Rek'!G13 -> 0 | D18: ='101.11 101.11.3 Rek'!A21 -> Dokumentace skutečného provedení | G18: ='101.11 101.11.3 Rek'!I21 -> 0
A19: ZRN celkem | C19: =SUM(C15:C18) -> 0 | D19: ='101.11 101.11.3 Rek'!A22 -> Geodetické zaměření stavby | G19: ='101.11 101.11.3 Rek'!I22 -> 0
D20: ='101.11 101.11.3 Rek'!A23 -> DIO | G20: ='101.11 101.11.3 Rek'!I23 -> 0
A21: HZS | C21: ='101.11 101.11.3 Rek'!I13 -> 0
A22: ZRN+HZS | C22: =C19+C21 -> 0
A23: ZRN+ost.náklady+HZS | C23: =C22+G23 -> 0 | D23: Ostatní náklady celkem | G23: ='101.11 101.11.3 Rek'!H24 -> 0
A24: Vypracoval | D24: Za zhotovitele | F24: Za objednatele
A25: Jméno : | D25: Jméno : | F25: Jméno :
A26: Datum : | D26: Datum : | F26: Datum :
A28: Podpis : | D28: Podpis: | F28: Podpis:
A30: Základ pro DPH | C30: 21 | D30: % | F30: =C23-F32 -> 0
A31: DPH | C31: =C30 -> 21 | D31: % | F31: =ROUND(PRODUCT(F30,C31/100),0) -> 0
A32: Základ pro DPH | C32: 0 | D32: % | F32: 0
A33: DPH | C33: =C32 -> 0 | D33: % | F33: =ROUND(PRODUCT(F32,C33/100),0) -> 0
A34: CENA ZA OBJEKT CELKEM | F34: =ROUND(SUM(F30:F33),0) -> 0
A36: Poznámka :

Sheet 101.11 101.11.3 Rek
A1: Stavba : | C1: 3383 Turnov-Lokalita Hruštice - Károvsko, Dostavba 2024 | G1: Rozpočet : | H1: 101.11.3
A2: Objekt : | C2: 101.11 Komunikace "Nad Farářstvím" | G2: Úsek č. 2 - dostavba
A4: REKAPITULACE STAVEBNÍCH DÍLŮ
B6: Stavební díl | E6: HSV | F6: PSV | G6: Dodávka | H6: Montáž | I6: HZS
A7: ='101.11 101.11.3 Pol'!B7 -> 1 | B7: ='101.11 101.11.3 Pol'!C7 -> Zemní práce | E7: ='101.11 101.11.3 Pol'!BA27 -> 0 | F7: ='101.11 101.11.3 Pol'!BB27 -> 0 | G7: ='101.11 101.11.3 Pol'!BC27 -> 0 | H7: ='101.11 101.11.3 Pol'!BD27 -> 0 | I7: ='101.11 101.11.3 Pol'!BE27 -> 0
A8: ='101.11 101.11.3 Pol'!B28 -> 5 | B8: ='101.11 101.11.3 Pol'!C28 -> Komunikace | E8: ='101.11 101.11.3 Pol'!BA38 -> 0 | F8: ='101.11 101.11.3 Pol'!BB38 -> 0 | G8: ='101.11 101.11.3 Pol'!BC38 -> 0 | H8: ='101.11 101.11.3 Pol'!BD38 -> 0 | I8: ='101.11 101.11.3 Pol'!BE38 -> 0
A9: ='101.11 101.11.3 Pol'!B39 -> 8 | B9: ='101.11 101.11.3 Pol'!C39 -> Trubní vedení | E9: ='101.11 101.11.3 Pol'!BA41 -> 0 | F9: ='101.11 101.11.3 Pol'!BB41 -> 0 | G9: ='101.11 101.11.3 Pol'!BC41 -> 0 | H9: ='101.11 101.11.3 Pol'!BD41 -> 0 | I9: ='101.11 101.11.3 Pol'!BE41 -> 0
A10: ='101.11 101.11.3 Pol'!B42 -> 91 | B10: ='101.11 101.11.3 Pol'!C42 -> Doplňující práce na komunikaci | E10: ='101.11 101.11.3 Pol'!BA51 -> 0 | F10: ='101.11 101.11.3 Pol'!BB51 -> 0 | G10: ='101.11 101.11.3 Pol'!BC51 -> 0 | H10: ='101.11 101.11.3 Pol'!BD51 -> 0 | I10: ='101.11 101.11.3 Pol'!BE51 -> 0
A11: ='101.11 101.11.3 Pol'!B52 -> 93 | B11: ='101.11 101.11.3 Pol'!C52 -> Dokončovací práce inženýrských staveb | E11: ='101.11 101.11.3 Pol'!BA61 -> 0 | F11: ='101.11 101.11.3 Pol'!BB61 -> 0 | G11: ='101.11 101.11.3 Pol'!BC61 -> 0 | H11: ='101.11 101.11.3 Pol'!BD61 -> 0 | I11: ='101.11 101.11.3 Pol'!BE61 -> 0
A12: ='101.11 101.11.3 Pol'!B62 -> 99 | B12: ='101.11 101.11.3 Pol'!C62 -> Staveništní přesun hmot | E12: ='101.11 101.11.3 Pol'!BA64 -> 0 | F12: ='101.11 101.11.3 Pol'!BB64 -> 0 | G12: ='101.11 101.11.3 Pol'!BC64 -> 0 | H12: ='101.11 101.11.3 Pol'!BD64 -> 0 | I12: ='101.11 101.11.3 Pol'!BE64 -> 0
B13: CELKEM OBJEKT | E13: =SUM(E7:E12) -> 0 | F13: =SUM(F7:F12) -> 0 | G13: =SUM(G7:G12) -> 0 | H13: =SUM(H7:H12) -> 0 | I13: =SUM(I7:I12) -> 0
A15: VEDLEJŠÍ ROZPOČTOVÉ NÁKLADY
A17: Název VRN | E17: Kč | I17: Kč
A18: Zařízení staveniště | E18: 0 | I18: =E18+F18*G18/100 -> 0 | BA18: 2
A19: Kompletační činnost (IČD) | E19: 0 | I19: =E19+F19*G19/100 -> 0 | BA19: 2
A20: Vytýčení stavby a podz. inženýrských sítí | E20: 0 | I20: =E20+F20*G20/100 -> 0 | BA20: 0
A21: Dokumentace skutečného provedení | E21: 0 | I21: =E21+F21*G21/100 -> 0 | BA21: 0
A22: Geodetické zaměření stavby | E22: 0 | I22: =E22+F22*G22/100 -> 0 | BA22: 0
A23: DIO | E23: 0 | I23: =E23+F23*G23/100 -> 0 | BA23: 0
B24: CELKEM VRN | H24: =SUM(I18:I23) -> 0

Sheet 101.11 101.11.3 Pol
A1: Položkový rozpočet
A3: Stavba : | C3: 3383 Turnov-Lokalita Hruštice - Károvsko, Dostavba 2024 | E3: Rozpočet: | F3: ='101.11 101.11.3 Rek'!H1 -> 101.11.3
A4: Objekt : | C4: 101.11 Komunikace "Nad Farářstvím" | E4: ='101.11 101.11.3 Rek'!G2 -> Úsek č. 2 - dostavba
A6: P.č. | B6: Číslo položky | C6: Název položky | D6: MJ | E6: množství | F6: cena / MJ | G6: celkem (Kč) | H6: Jednotková hmotnost | I6: Celková hmotnost | J6: Jednotková dem.hmot. | K6: Celková dem.hmot.
A7: Díl: | B7: 1 | C7: Zemní práce | O7: 1
A8: 1 | B8: 113108310R00 | C8: Odstranění asfaltové vrstvy pl. do 50 m2, tl.10 cm | D8: m2 | E8: 11.6 | G8: =E8*F8 -> 0 | H8: 0 | I8: =E8*H8 -> 0 | J8: -0.22 | K8: =E8*J8 -> -2.552 | O8: 2 | AA8: 1 | AB8: 1 | AC8: 1 | AZ8: 1 | BA8: =IF(AZ8=1,G8,0) -> 0 | BB8: =IF(AZ8=2,G8,0) -> 0 | BC8: =IF(AZ8=3,G8,0) -> 0 | BD8: =IF(AZ8=4,G8,0) -> 0 | BE8: =IF(AZ8=5,G8,0) -> 0 | CA8: 1 | CB8: 1
C9: Pro osazení betonových obrubníků:58,00*0,10*2 | E9: 11.6 | M9: Pro osazení betonových obrubníků:58,00*0,10*2
A10: 2 | B10: 122202201R00 | C10: Odkopávky pro silnice v hor. 3 do 100 m3 | D10: m3 | E10: 6.96 | G10: =E10*F10 -> 0 | H10: 0 | I10: =E10*H10 -> 0 | J10: 0 | K10: =E10*J10 -> 0 | O10: 2 | AA10: 1 | AB10: 1 | AC10: 1 | AZ10: 1 | BA10: =IF(AZ10=1,G10,0) -> 0 | BB10: =IF(AZ10=2,G10,0) -> 0 | BC10: =IF(AZ10=3,G10,0) -> 0 | BD10: =IF(AZ10=4,G10,0) -> 0 | BE10: =IF(AZ10=5,G10,0) -> 0 | CA10: 1 | CB10: 1
C11: Pro osazení betonových obrubníků:58,00*0,30*0,20*2 | E11: 6.96 | M11: Pro osazení betonových obrubníků:58,00*0,30*0,20*2
A12: 3 | B12: 122202209R00 | C12: Příplatek za lepivost - odkop. pro silnice v hor.3 | D12: m3 | E12: 3.48 | G12: =E12*F12 -> 0 | H12: 0 | I12: =E12*H12 -> 0 | J12: 0 | K12: =E12*J12 -> 0 | O12: 2 | AA12: 1 | AB12: 1 | AC12: 1 | AZ12: 1 | BA12: =IF(AZ12=1,G12,0) -> 0 | BB12: =IF(AZ12=2,G12,0) -> 0 | BC12: =IF(AZ12=3,G12,0) -> 0 | BD12: =IF(AZ12=4,G12,0) -> 0 | BE12: =IF(AZ12=5,G12,0) -> 0 | CA12: 1 | CB12: 1
C13: Pro osazení betonových obrubníků:58,00*0,30*0,20*2*0,5 | E13: 3.48 | M13: Pro osazení betonových obrubníků:58,00*0,30*0,20*2*0,5
A14: 4 | B14: 162701105RSZ | C14: Vodorovné přemístění výkopku z hor.1-7 na skládku zhotovitele | D14: m3 | E14: 6.96 | G14: =E14*F14 -> 0 | H14: 0 | I14: =E14*H14 -> 0 | J14: 0 | K14: =E14*J14 -> 0 | O14: 2 | AA14: 1 | AB14: 1 | AC14: 1 | AZ14: 1 | BA14: =IF(AZ14=1,G14,0) -> 0 | BB14: =IF(AZ14=2,G14,0) -> 0 | BC14: =IF(AZ14=3,G14,0) -> 0 | BD14: =IF(AZ14=4,G14,0) -> 0 | BE14: =IF(AZ14=5,G14,0) -> 0 | CA14: 1 | CB14: 1
C15: Pro osazení betonových obrubníků:58,00*0,30*0,20*2 | E15: 6.96 | M15: Pro osazení betonových obrubníků:58,00*0,30*0,20*2
A16: 5 | B16: 181101102R00 | C16: Úprava pláně v zářezech v hor. 1-4, se zhutněním | D16: m2 | E16: 34.8 | G16: =E16*F16 -> 0 | H16: 0 | I16: =E16*H16 -> 0 | J16: 0 | K16: =E16*J16 -> 0 | O16: 2 | AA16: 1 | AB16: 1 | AC16: 1 | AZ16: 1 | BA16: =IF(AZ16=1,G16,0) -> 0 | BB16: =IF(AZ16=2,G16,0) -> 0 | BC16: =IF(AZ16=3,G16,0) -> 0 | BD16: =IF(AZ16=4,G16,0) -> 0 | BE16: =IF(AZ16=5,G16,0) -> 0 | CA16: 1 | CB16: 1
C17: Pro osazení betonových obrubníků:58,00*0,30*2 | E17: 34.8 | M17: Pro osazení betonových obrubníků:58,00*0,30*2
A18: 6 | B18: 181300012RAC | C18: Rozprostření ornice v rovině tloušťka 20 cm dovoz ornice ze vzdálenosti 5 km, osetí trávou | D18: m2 | E18: 348 | G18: =E18*F18 -> 0 | H18: 3e-05 | I18: =E18*H18 -> 0.01044 | J18: 0 | K18: =E18*J18 -> 0 | O18: 2 | AA18: 1 | AB18: 1 | AC18: 1 | AZ18: 1 | BA18: =IF(AZ18=1,G18,0) -> 0 | BB18: =IF(AZ18=2,G18,0) -> 0 | BC18: =IF(AZ18=3,G18,0) -> 0 | BD18: =IF(AZ18=4,G18,0) -> 0 | BE18: =IF(AZ18=5,G18,0) -> 0 | CA18: 1 | CB18: 1
C19: Včetně naložení ornice na skládce investora a přesunu hmot. | L19: Včetně naložení ornice na skládce investora a přesunu hmot. | O19: 3
C20: Doplnění ornice za obrubou:58,00*2*3,00 | E20: 348 | M20: Doplnění ornice za obrubou:58,00*2*3,00
A21: 7 | B21: 199000002R00 | C21: Poplatek za skládku horniny 1- 7 č. dle katal. odpadů 17 05 04 | D21: m3 | E21: 6.96 | G21: =E21*F21 -> 0 | H21: 0 | I21: =E21*H21 -> 0 | J21: 0 | K21: =E21*J21 -> 0 | O21: 2 | AA21: 1 | AB21: 1 | AC21: 1 | AZ21: 1 | BA21: =IF(AZ21=1,G21,0) -> 0 | BB21: =IF(AZ21=2,G21,0) -> 0 | BC21: =IF(AZ21=3,G21,0) -> 0 | BD21: =IF(AZ21=4,G21,0) -> 0 | BE21: =IF(AZ21=5,G21,0) -> 0 | CA21: 1 | CB21: 1
C22: Pro osazení betonových obrubníků:58,00*0,30*0,20*2 | E22: 6.96 | M22: Pro osazení betonových obrubníků:58,00*0,30*0,20*2
A23: 8 | B23: 976085211R00 | C23: Vybourání kanal.rámů a poklopů plochy do 0,3 m2 | D23: kus | E23: 4 | G23: =E23*F23 -> 0 | H23: 0 | I23: =E23*H23 -> 0 | J23: -0.024 | K23: =E23*J23 -> -0.096 | O23: 2 | AA23: 1 | AB23: 0 | AC23: 0 | AZ23: 1 | BA23: =IF(AZ23=1,G23,0) -> 0 | BB23: =IF(AZ23=2,G23,0) -> 0 | BC23: =IF(AZ23=3,G23,0) -> 0 | BD23: =IF(AZ23=4,G23,0) -> 0 | BE23: =IF(AZ23=5,G23,0) -> 0 | CA23: 1 | CB23: 0
A24: 9 | B24: 979082113RSZ | C24: Vodorovná doprava suti po suchu na skládku zhotovitele | D24: t | E24: 2.552 | G24: =E24*F24 -> 0 | H24: 0 | I24: =E24*H24 -> 0 | J24: 0 | K24: =E24*J24 -> 0 | O24: 2 | AA24: 1 | AB24: 1 | AC24: 1 | AZ24: 1 | BA24: =IF(AZ24=1,G24,0) -> 0 | BB24: =IF(AZ24=2,G24,0) -> 0 | BC24: =IF(AZ24=3,G24,0) -> 0 | BD24: =IF(AZ24=4,G24,0) -> 0 | BE24: =IF(AZ24=5,G24,0) -> 0 | CA24: 1 | CB24: 1
A25: 10 | B25: 979999995R00 | C25: Poplatek za reciklaci asfaltu, kusovost do 1600cm2 skupina 170302 | D25: t | E25: 2.552 | G25: =E25*F25 -> 0 | H25: 0 | I25: =E25*H25 -> 0 | J25: 0 | K25: =E25*J25 -> 0 | O25: 2 | AA25: 1 | AB25: 1 | AC25: 1 | AZ25: 1 | BA25: =IF(AZ25=1,G25,0) -> 0 | BB25: =IF(AZ25=2,G25,0) -> 0 | BC25: =IF(AZ25=3,G25,0) -> 0 | BD25: =IF(AZ25=4,G25,0) -> 0 | BE25: =IF(AZ25=5,G25,0) -> 0 | CA25: 1 | CB25: 1
C26: Položka je určena pro suť o velikosti kusu do 30x30 cm (technologický materiál určený k recyklaci). | L26: Položka je určena pro suť o velikosti kusu do 30x30 cm (technologický materiál určený k recyklaci). | O26: 3
B27: Celkem za | C27: 1 Zemní práce | G27: =SUM(G7:G26) -> 0 | I27: =SUM(I7:I26) -> 0.01044 | K27: =SUM(K7:K26) -> -2.648 | O27: 4 | BA27: =SUM(BA7:BA26) -> 0 | BB27: =SUM(BB7:BB26) -> 0 | BC27: =SUM(BC7:BC26) -> 0 | BD27: =SUM(BD7:BD26) -> 0 | BE27: =SUM(BE7:BE26) -> 0
A28: Díl: | B28: 5 | C28: Komunikace | O28: 1
A29: 11 | B29: 564791111R00 | C29: Podklad pro zpevněné plochy z kam.drceného 0-63 mm | D29: m3 | E29: 6.96 | G29: =E29*F29 -> 0 | H29: 2.204 | I29: =E29*H29 -> 15.33984 | J29: 0 | K29: =E29*J29 -> 0 | O29: 2 | AA29: 1 | AB29: 1 | AC29: 1 | AZ29: 1 | BA29: =IF(AZ29=1,G29,0) -> 0 | BB29: =IF(AZ29=2,G29,0) -> 0 | BC29: =IF(AZ29=3,G29,0) -> 0 | BD29: =IF(AZ29=4,G29,0) -> 0 | BE29: =IF(AZ29=5,G29,0) -> 0 | CA29: 1 | CB29: 1
C30: Včetně kameniva, rozprostření a zhutnění podkladu. | L30: Včetně kameniva, rozprostření a zhutnění podkladu. | O30: 3
C31: Pro osazení betonových obrubníků:58,00*0,30*2*0,2 | E31: 6.96 | M31: Pro osazení betonových obrubníků:58,00*0,30*2*0,2
A32: 12 | B32: 572713112R00 | C32: Vyrovnání povrchu krytů kamen. obaleným asfaltem | D32: t | E32: 2.9 | G32: =E32*F32 -> 0 | H32: 1 | I32: =E32*H32 -> 2.9 | J32: 0 | K32: =E32*J32 -> 0 | O32: 2 | AA32: 1 | AB32: 1 | AC32: 1 | AZ32: 1 | BA32: =IF(AZ32=1,G32,0) -> 0 | BB32: =IF(AZ32=2,G32,0) -> 0 | BC32: =IF(AZ32=3,G32,0) -> 0 | BD32: =IF(AZ32=4,G32,0) -> 0 | BE32: =IF(AZ32=5,G32,0) -> 0 | CA32: 1 | CB32: 1
C33: Doplnění stávající asfaltové plochy podél nových obrubníků:58,00*2*0,10*0,10*2,5 | E33: 2.9 | M33: Doplnění stávající asfaltové plochy podél nových obrubníků:58,00*2*0,10*0,10*2,5
A34: 13 | B34: 573231125R00 | C34: Postřik spojovací z KAE množství zbytkového asfaltu 0,5 kg/m2 | D34: m2 | E34: 348 | G34: =E34*F34 -> 0 | H34: 0.0005 | I34: =E34*H34 -> 0.174 | J34: 0 | K34: =E34*J34 -> 0 | O34: 2 | AA34: 1 | AB34: 1 | AC34: 1 | AZ34: 1 | BA34: =IF(AZ34=1,G34,0) -> 0 | BB34: =IF(AZ34=2,G34,0) -> 0 | BC34: =IF(AZ34=3,G34,0) -> 0 | BD34: =IF(AZ34=4,G34,0) -> 0 | BE34: =IF(AZ34=5,G34,0) -> 0 | CA34: 1 | CB34: 1
C35: Komunikace:58,00*6,00 | E35: 348 | M35: Komunikace:58,00*6,00
A36: 14 | B36: 577132111RT2 | C36: Beton asfalt. ACO 11+ obrusný, š.nad 3 m, tl. 4 cm plochy 201-1000 m2 | D36: m2 | E36: 348 | G36: =E36*F36 -> 0 | H36: 0.10373 | I36: =E36*H36 -> 36.09804 | J36: 0 | K36: =E36*J36 -> 0 | O36: 2 | AA36: 1 | AB36: 1 | AC36: 1 | AZ36: 1 | BA36: =IF(AZ36=1,G36,0) -> 0 | BB36: =IF(AZ36=2,G36,0) -> 0 | BC36: =IF(AZ36=3,G36,0) -> 0 | BD36: =IF(AZ36=4,G36,0) -> 0 | BE36: =IF(AZ36=5,G36,0) -> 0 | CA36: 1 | CB36: 1
C37: Komunikace:58,00*6,00 | E37: 348 | M37: Komunikace:58,00*6,00
B38: Celkem za | C38: 5 Komunikace | G38: =SUM(G28:G37) -> 0 | I38: =SUM(I28:I37) -> 54.51188 | K38: =SUM(K28:K37) -> 0 | O38: 4 | BA38: =SUM(BA28:BA37) -> 0 | BB38: =SUM(BB28:BB37) -> 0 | BC38: =SUM(BC28:BC37) -> 0 | BD38: =SUM(BD28:BD37) -> 0 | BE38: =SUM(BE28:BE37) -> 0
A39: Díl: | B39: 8 | C39: Trubní vedení | O39: 1
A40: 15 | B40: 899231111R00 | C40: Výšková úprava vstupu do 20 cm, zvýšení mříže | D40: kus | E40: 2 | G40: =E40*F40 -> 0 | H40: 0.43382 | I40: =E40*H40 -> 0.86764 | J40: 0 | K40: =E40*J40 -> 0 | O40: 2 | AA40: 1 | AB40: 1 | AC40: 1 | AZ40: 1 | BA40: =IF(AZ40=1,G40,0) -> 0 | BB40: =IF(AZ40=2,G40,0) -> 0 | BC40: =IF(AZ40=3,G40,0) -> 0 | BD40: =IF(AZ40=4,G40,0) -> 0 | BE40: =IF(AZ40=5,G40,0) -> 0 | CA40: 1 | CB40: 1
B41: Celkem za | C41: 8 Trubní vedení | G41: =SUM(G39:G40) -> 0 | I41: =SUM(I39:I40) -> 0.86764 | K41: =SUM(K39:K40) -> 0 | O41: 4 | BA41: =SUM(BA39:BA40) -> 0 | BB41: =SUM(BB39:BB40) -> 0 | BC41: =SUM(BC39:BC40) -> 0 | BD41: =SUM(BD39:BD40) -> 0 | BE41: =SUM(BE39:BE40) -> 0
A42: Díl: | B42: 91 | C42: Doplňující práce na komunikaci | O42: 1
A43: 16 | B43: 917732114RT7 | C43: Osazení stojat. obrub.bet. s opěrou,lože z C 25/30 včetně obrubníku 1000x150x250 mm | D43: m | E43: 116.04 | G43: =E43*F43 -> 0 | H43: 0.26981 | I43: =E43*H43 -> 31.3087524 | J43: 0 | K43: =E43*J43 -> 0 | O43: 2 | AA43: 1 | AB43: 0 | AC43: 0 | AZ43: 1 | BA43: =IF(AZ43=1,G43,0) -> 0 | BB43: =IF(AZ43=2,G43,0) -> 0 | BC43: =IF(AZ43=3,G43,0) -> 0 | BD43: =IF(AZ43=4,G43,0) -> 0 | BE43: =IF(AZ43=5,G43,0) -> 0 | CA43: 1 | CB43: 0
C44: Osazení obrubníků:58,020*2 | E44: 116.04 | M44: Osazení obrubníků:58,020*2
A45: 17 | B45: 918101111R00 | C45: Lože pod obrubníky nebo obruby dlažeb z C 12/15 | D45: m3 | E45: 2.9 | G45: =E45*F45 -> 0 | H45: 2.525 | I45: =E45*H45 -> 7.3225 | J45: 0 | K45: =E45*J45 -> 0 | O45: 2 | AA45: 1 | AB45: 1 | AC45: 1 | AZ45: 1 | BA45: =IF(AZ45=1,G45,0) -> 0 | BB45: =IF(AZ45=2,G45,0) -> 0 | BC45: =IF(AZ45=3,G45,0) -> 0 | BD45: =IF(AZ45=4,G45,0) -> 0 | BE45: =IF(AZ45=5,G45,0) -> 0 | CA45: 1 | CB45: 1
C46: Osazení obrubníků:58,00*2*0,25*0,10 | E46: 2.9 | M46: Osazení obrubníků:58,00*2*0,25*0,10
A47: 18 | B47: 919731122R00 | C47: Zarovnání styčné plochy živičné tl. do 10 cm | D47: m | E47: 116 | G47: =E47*F47 -> 0 | H47: 0 | I47: =E47*H47 -> 0 | J47: 0 | K47: =E47*J47 -> 0 | O47: 2 | AA47: 1 | AB47: 1 | AC47: 1 | AZ47: 1 | BA47: =IF(AZ47=1,G47,0) -> 0 | BB47: =IF(AZ47=2,G47,0) -> 0 | BC47: =IF(AZ47=3,G47,0) -> 0 | BD47: =IF(AZ47=4,G47,0) -> 0 | BE47: =IF(AZ47=5,G47,0) -> 0 | CA47: 1 | CB47: 1
C48: Pro osazení betonových obrubníků:58,00*2 | E48: 116 | M48: Pro osazení betonových obrubníků:58,00*2
A49: 19 | B49: 919735112R00 | C49: Řezání stávajícího živičného krytu tl. 5 - 10 cm | D49: m | E49: 116 | G49: =E49*F49 -> 0 | H49: 0 | I49: =E49*H49 -> 0 | J49: 0 | K49: =E49*J49 -> 0 | O49: 2 | AA49: 1 | AB49: 1 | AC49: 1 | AZ49: 1 | BA49: =IF(AZ49=1,G49,0) -> 0 | BB49: =IF(AZ49=2,G49,0) -> 0 | BC49: =IF(AZ49=3,G49,0) -> 0 | BD49: =IF(AZ49=4,G49,0) -> 0 | BE49: =IF(AZ49=5,G49,0) -> 0 | CA49: 1 | CB49: 1
C50: Pro osazení betonových obrubníků:58,00*2 | E50: 116 | M50: Pro osazení betonových obrubníků:58,00*2
B51: Celkem za | C51: 91 Doplňující práce na komunikaci | G51: =SUM(G42:G50) -> 0 | I51: =SUM(I42:I50) -> 38.6312524 | K51: =SUM(K42:K50) -> 0 | O51: 4 | BA51: =SUM(BA42:BA50) -> 0 | BB51: =SUM(BB42:BB50) -> 0 | BC51: =SUM(BC42:BC50) -> 0 | BD51: =SUM(BD42:BD50) -> 0 | BE51: =SUM(BE42:BE50) -> 0
A52: Díl: | B52: 93 | C52: Dokončovací práce inženýrských staveb | O52: 1
A53: 20 | B53: 938908411R00 | C53: Očištění povrchu krytu saponátovým roztokem | D53: m2 | E53: 348 | G53: =E53*F53 -> 0 | H53: 1e-05 | I53: =E53*H53 -> 0.00348 | J53: 0 | K53: =E53*J53 -> 0 | O53: 2 | AA53: 1 | AB53: 1 | AC53: 1 | AZ53: 1 | BA53: =IF(AZ53=1,G53,0) -> 0 | BB53: =IF(AZ53=2,G53,0) -> 0 | BC53: =IF(AZ53=3,G53,0) -> 0 | BD53: =IF(AZ53=4,G53,0) -> 0 | BE53: =IF(AZ53=5,G53,0) -> 0 | CA53: 1 | CB53: 1
C54: Komunikace:58,00*6,00 | E54: 348 | M54: Komunikace:58,00*6,00
A55: 21 | B55: 938909311R00 | C55: Odstranění nánosu z povrchu živičného nebo beton. | D55: m2 | E55: 348 | G55: =E55*F55 -> 0 | H55: 0 | I55: =E55*H55 -> 0 | J55: 0 | K55: =E55*J55 -> 0 | O55: 2 | AA55: 1 | AB55: 1 | AC55: 1 | AZ55: 1 | BA55: =IF(AZ55=1,G55,0) -> 0 | BB55: =IF(AZ55=2,G55,0) -> 0 | BC55: =IF(AZ55=3,G55,0) -> 0 | BD55: =IF(AZ55=4,G55,0) -> 0 | BE55: =IF(AZ55=5,G55,0) -> 0 | CA55: 1 | CB55: 1
C56: Komunikace:58,00*6,00 | E56: 348 | M56: Komunikace:58,00*6,00
A57: 22 | B57: 939421121RT2 | C57: Osazení samonivelač.vodovod.poklopu za finišerem včetně dodávky poklopu | D57: kus | E57: 4 | G57: =E57*F57 -> 0 | H57: 0.0645 | I57: =E57*H57 -> 0.258 | J57: 0 | K57: =E57*J57 -> 0 | O57: 2 | AA57: 1 | AB57: 1 | AC57: 1 | AZ57: 1 | BA57: =IF(AZ57=1,G57,0) -> 0 | BB57: =IF(AZ57=2,G57,0) -> 0 | BC57: =IF(AZ57=3,G57,0) -> 0 | BD57: =IF(AZ57=4,G57,0) -> 0 | BE57: =IF(AZ57=5,G57,0) -> 0 | CA57: 1 | CB57: 1
A58: 23 | B58: 939431111RT2 | C58: Výměna kanaliz.poklopu za samonivelační, hl.200 mm včetně dodávky litinového poklopu D400 SN600 | D58: kus | E58: 1 | G58: =E58*F58 -> 0 | H58: 0.56041 | I58: =E58*H58 -> 0.56041 | J58: -0.32076 | K58: =E58*J58 -> -0.32076 | O58: 2 | AA58: 1 | AB58: 0 | AC58: 0 | AZ58: 1 | BA58: =IF(AZ58=1,G58,0) -> 0 | BB58: =IF(AZ58=2,G58,0) -> 0 | BC58: =IF(AZ58=3,G58,0) -> 0 | BD58: =IF(AZ58=4,G58,0) -> 0 | BE58: =IF(AZ58=5,G58,0) -> 0 | CA58: 1 | CB58: 0
C59: Samonivelační bezpantový těžký poklop KASI KDM65 případně část KDM63 dle upřesnění provozovatele. | L59: Samonivelační bezpantový těžký poklop KASI KDM65 případně část KDM63 dle upřesnění provozovatele. | O59: 3
C60: Poklop se znakem "Město Turnov" | L60: Poklop se znakem "Město Turnov" | O60: 3
B61: Celkem za | C61: 93 Dokončovací práce inženýrských staveb | G61: =SUM(G52:G60) -> 0 | I61: =SUM(I52:I60) -> 0.82189 | K61: =SUM(K52:K60) -> -0.32076 | O61: 4 | BA61: =SUM(BA52:BA60) -> 0 | BB61: =SUM(BB52:BB60) -> 0 | BC61: =SUM(BC52:BC60) -> 0 | BD61: =SUM(BD52:BD60) -> 0 | BE61: =SUM(BE52:BE60) -> 0
A62: Díl: | B62: 99 | C62: Staveništní přesun hmot | O62: 1
A63: 24 | B63: 998225111R00 | C63: Přesun hmot, pozemní komunikace, kryt živičný | D63: t | E63: 94.8431024 | G63: =E63*F63 -> 0 | H63: 0 | I63: =E63*H63 -> 0 | K63: =E63*J63 -> 0 | O63: 2 | AA63: 7 | AB63: 1 | AC63: 2 | AZ63: 1 | BA63: =IF(AZ63=1,G63,0) -> 0 | BB63: =IF(AZ63=2,G63,0) -> 0 | BC63: =IF(AZ63=3,G63,0) -> 0 | BD63: =IF(AZ63=4,G63,0) -> 0 | BE63: =IF(AZ63=5,G63,0) -> 0 | CA63: 7 | CB63: 1
B64: Celkem za | C64: 99 Staveništní přesun hmot | G64: =SUM(G62:G63) -> 0 | I64: =SUM(I62:I63) -> 0 | K64: =SUM(K62:K63) -> 0 | O64: 4 | BA64: =SUM(BA62:BA63) -> 0 | BB64: =SUM(BB62:BB63) -> 0 | BC64: =SUM(BC62:BC63) -> 0 | BD64: =SUM(BD62:BD63) -> 0 | BE64: =SUM(BE62:BE63) -> 0

Sheet 101.11 101.11.4 KL
A1: POLOŽKOVÝ ROZPOČET
A2: Rozpočet | C2: 101.11.4 | D2: Křižovatka č.2 - Dostavba | F2: JKSO | G2: 822.27
A4: Objekt | F4: SKP
A5: 101.11 | C5: Komunikace "Nad Farářstvím" | F5: Měrná jednotka | G5: m2
A6: Stavba | F6: Počet jednotek | G6: 0
A7: 3383 | C7: Turnov-Lokalita Hruštice - Károvsko, Dostavba 2024 | F7: Náklady na m.j. | G7: =IF(G6=0,,ROUND((F30+F32)/G6,1)) -> 0
A8: Projektant | F8: Typ rozpočtu
A9: Zpracovatel projektu
A10: Objednatel | C10: Město TURNOV
A11: Dodavatel | C11: . | F11: Zakázkové číslo
A12: Rozpočtoval | F12: Počet listů
A13: ROZPOČTOVÉ NÁKLADY
A14: Základní rozpočtové náklady | D14: Ostatní rozpočtové náklady
B15: HSV celkem | C15: ='101.11 101.11.4 Rek'!E13 -> 0 | D15: ='101.11 101.11.4 Rek'!A18 -> Zařízení staveniště | G15: ='101.11 101.11.4 Rek'!I18 -> 0
A16: Z | B16: PSV celkem | C16: ='101.11 101.11.4 Rek'!F13 -> 0 | D16: ='101.11 101.11.4 Rek'!A19 -> Kompletační činnost (IČD) | G16: ='101.11 101.11.4 Rek'!I19 -> 0
A17: R | B17: M práce celkem | C17: ='101.11 101.11.4 Rek'!H13 -> 0 | D17: ='101.11 101.11.4 Rek'!A20 -> Vytýčení stavby a podz. inženýrských sítí | G17: ='101.11 101.11.4 Rek'!I20 -> 0
A18: N | B18: M dodávky celkem | C18: ='101.11 101.11.4 Rek'!G13 -> 0 | D18: ='101.11 101.11.4 Rek'!A21 -> Dokumentace skutečného provedení | G18: ='101.11 101.11.4 Rek'!I21 -> 0
A19: ZRN celkem | C19: =SUM(C15:C18) -> 0 | D19: ='101.11 101.11.4 Rek'!A22 -> Geodetické zaměření stavby | G19: ='101.11 101.11.4 Rek'!I22 -> 0
D20: ='101.11 101.11.4 Rek'!A23 -> DIO | G20: ='101.11 101.11.4 Rek'!I23 -> 0
A21: HZS | C21: ='101.11 101.11.4 Rek'!I13 -> 0
A22: ZRN+HZS | C22: =C19+C21 -> 0
A23: ZRN+ost.náklady+HZS | C23: =C22+G23 -> 0 | D23: Ostatní náklady celkem | G23: ='101.11 101.11.4 Rek'!H24 -> 0
A24: Vypracoval | D24: Za zhotovitele | F24: Za objednatele
A25: Jméno : | D25: Jméno : | F25: Jméno :
A26: Datum : | D26: Datum : | F26: Datum :
A28: Podpis : | D28: Podpis: | F28: Podpis:
A30: Základ pro DPH | C30: 21 | D30: % | F30: =C23-F32 -> 0
A31: DPH | C31: =C30 -> 21 | D31: % | F31: =ROUND(PRODUCT(F30,C31/100),0) -> 0
A32: Základ pro DPH | C32: 0 | D32: % | F32: 0
A33: DPH | C33: =C32 -> 0 | D33: % | F33: =ROUND(PRODUCT(F32,C33/100),0) -> 0
A34: CENA ZA OBJEKT CELKEM | F34: =ROUND(SUM(F30:F33),0) -> 0
A36: Poznámka :

Sheet 101.11 101.11.4 Rek
A1: Stavba : | C1: 3383 Turnov-Lokalita Hruštice - Károvsko, Dostavba 2024 | G1: Rozpočet : | H1: 101.11.4
A2: Objekt : | C2: 101.11 Komunikace "Nad Farářstvím" | G2: Křižovatka č.2 - Dostavba
A4: REKAPITULACE STAVEBNÍCH DÍLŮ
B6: Stavební díl | E6: HSV | F6: PSV | G6: Dodávka | H6: Montáž | I6: HZS
A7: ='101.11 101.11.4 Pol'!B7 -> 1 | B7: ='101.11 101.11.4 Pol'!C7 -> Zemní práce | E7: ='101.11 101.11.4 Pol'!BA29 -> 0 | F7: ='101.11 101.11.4 Pol'!BB29 -> 0 | G7: ='101.11 101.11.4 Pol'!BC29 -> 0 | H7: ='101.11 101.11.4 Pol'!BD29 -> 0 | I7: ='101.11 101.11.4 Pol'!BE29 -> 0
A8: ='101.11 101.11.4 Pol'!B30 -> 5 | B8: ='101.11 101.11.4 Pol'!C30 -> Komunikace | E8: ='101.11 101.11.4 Pol'!BA47 -> 0 | F8: ='101.11 101.11.4 Pol'!BB47 -> 0 | G8: ='101.11 101.11.4 Pol'!BC47 -> 0 | H8: ='101.11 101.11.4 Pol'!BD47 -> 0 | I8: ='101.11 101.11.4 Pol'!BE47 -> 0
A9: ='101.11 101.11.4 Pol'!B48 -> 8 | B9: ='101.11 101.11.4 Pol'!C48 -> Trubní vedení | E9: ='101.11 101.11.4 Pol'!BA50 -> 0 | F9: ='101.11 101.11.4 Pol'!BB50 -> 0 | G9: ='101.11 101.11.4 Pol'!BC50 -> 0 | H9: ='101.11 101.11.4 Pol'!BD50 -> 0 | I9: ='101.11 101.11.4 Pol'!BE50 -> 0
A10: ='101.11 101.11.4 Pol'!B51 -> 91 | B10: ='101.11 101.11.4 Pol'!C51 -> Doplňující práce na komunikaci | E10: ='101.11 101.11.4 Pol'!BA62 -> 0 | F10: ='101.11 101.11.4 Pol'!BB62 -> 0 | G10: ='101.11 101.11.4 Pol'!BC62 -> 0 | H10: ='101.11 101.11.4 Pol'!BD62 -> 0 | I10: ='101.11 101.11.4 Pol'!BE62 -> 0
A11: ='101.11 101.11.4 Pol'!B63 -> 93 | B11: ='101.11 101.11.4 Pol'!C63 -> Dokončovací práce inženýrských staveb | E11: ='101.11 101.11.4 Pol'!BA72 -> 0 | F11: ='101.11 101.11.4 Pol'!BB72 -> 0 | G11: ='101.11 101.11.4 Pol'!BC72 -> 0 | H11: ='101.11 101.11.4 Pol'!BD72 -> 0 | I11: ='101.11 101.11.4 Pol'!BE72 -> 0
A12: ='101.11 101.11.4 Pol'!B73 -> 99 | B12: ='101.11 101.11.4 Pol'!C73 -> Staveništní přesun hmot | E12: ='101.11 101.11.4 Pol'!BA75 -> 0 | F12: ='101.11 101.11.4 Pol'!BB75 -> 0 | G12: ='101.11 101.11.4 Pol'!BC75 -> 0 | H12: ='101.11 101.11.4 Pol'!BD75 -> 0 | I12: ='101.11 101.11.4 Pol'!BE75 -> 0
B13: CELKEM OBJEKT | E13: =SUM(E7:E12) -> 0 | F13: =SUM(F7:F12) -> 0 | G13: =SUM(G7:G12) -> 0 | H13: =SUM(H7:H12) -> 0 | I13: =SUM(I7:I12) -> 0
A15: VEDLEJŠÍ ROZPOČTOVÉ NÁKLADY
A17: Název VRN | E17: Kč | I17: Kč
A18: Zařízení staveniště | E18: 0 | I18: =E18+F18*G18/100 -> 0 | BA18: 2
A19: Kompletační činnost (IČD) | E19: 0 | I19: =E19+F19*G19/100 -> 0 | BA19: 2
A20: Vytýčení stavby a podz. inženýrských sítí | E20: 0 | I20: =E20+F20*G20/100 -> 0 | BA20: 0
A21: Dokumentace skutečného provedení | E21: 0 | I21: =E21+F21*G21/100 -> 0 | BA21: 0
A22: Geodetické zaměření stavby | E22: 0 | I22: =E22+F22*G22/100 -> 0 | BA22: 0
A23: DIO | E23: 0 | I23: =E23+F23*G23/100 -> 0 | BA23: 0
B24: CELKEM VRN | H24: =SUM(I18:I23) -> 0

Sheet 101.11 101.11.4 Pol
A1: Položkový rozpočet
A3: Stavba : | C3: 3383 Turnov-Lokalita Hruštice - Károvsko, Dostavba 2024 | E3: Rozpočet: | F3: ='101.11 101.11.4 Rek'!H1 -> 101.11.4
A4: Objekt : | C4: 101.11 Komunikace "Nad Farářstvím" | E4: ='101.11 101.11.4 Rek'!G2 -> Křižovatka č.2 - Dostavba
A6: P.č. | B6: Číslo položky | C6: Název položky | D6: MJ | E6: množství | F6: cena / MJ | G6: celkem (Kč) | H6: Jednotková hmotnost | I6: Celková hmotnost | J6: Jednotková dem.hmot. | K6: Celková dem.hmot.
A7: Díl: | B7: 1 | C7: Zemní práce | O7: 1
A8: 1 | B8: 113108310R00 | C8: Odstranění asfaltové vrstvy pl. do 50 m2, tl.10 cm | D8: m2 | E8: 30.74 | G8: =E8*F8 -> 0 | H8: 0 | I8: =E8*H8 -> 0 | J8: -0.22 | K8: =E8*J8 -> -6.7628 | O8: 2 | AA8: 1 | AB8: 1 | AC8: 1 | AZ8: 1 | BA8: =IF(AZ8=1,G8,0) -> 0 | BB8: =IF(AZ8=2,G8,0) -> 0 | BC8: =IF(AZ8=3,G8,0) -> 0 | BD8: =IF(AZ8=4,G8,0) -> 0 | BE8: =IF(AZ8=5,G8,0) -> 0 | CA8: 1 | CB8: 1
C9: Pro osazení betonových obrubníků:(20,00+1,50*4+9,45*2)*0,10 | E9: 4.49 | M9: Pro osazení betonových obrubníků:(20,00+1,50*4+9,45*2)*0,10
C10: Křižovatka - Náběhy:6,00*1,50*2+5,50*1,50 | E10: 26.25 | M10: Křižovatka - Náběhy:6,00*1,50*2+5,50*1,50
A11: 2 | B11: 122202201R00 | C11: Odkopávky pro silnice v hor. 3 do 100 m3 | D11: m3 | E11: 2.49 | G11: =E11*F11 -> 0 | H11: 0 | I11: =E11*H11 -> 0 | J11: 0 | K11: =E11*J11 -> 0 | O11: 2 | AA11: 1 | AB11: 1 | AC11: 1 | AZ11: 1 | BA11: =IF(AZ11=1,G11,0) -> 0 | BB11: =IF(AZ11=2,G11,0) -> 0 | BC11: =IF(AZ11=3,G11,0) -> 0 | BD11: =IF(AZ11=4,G11,0) -> 0 | BE11: =IF(AZ11=5,G11,0) -> 0 | CA11: 1 | CB11: 1
C12: Pro osazení betonových obrubníků:(20,00+1,50*4+7,75*2)*0,30*0,20 | E12: 2.49 | M12: Pro osazení betonových obrubníků:(20,00+1,50*4+7,75*2)*0,30*0,20
A13: 3 | B13: 122202209R00 | C13: Příplatek za lepivost - odkop. pro silnice v hor.3 | D13: m3 | E13: 1.245 | G13: =E13*F13 -> 0 | H13: 0 | I13: =E13*H13 -> 0 | J13: 0 | K13: =E13*J13 -> 0 | O13: 2 | AA13: 1 | AB13: 1 | AC13: 1 | AZ13: 1 | BA13: =IF(AZ13=1,G13,0) -> 0 | BB13: =IF(AZ13=2,G13,0) -> 0 | BC13: =IF(AZ13=3,G13,0) -> 0 | BD13: =IF(AZ13=4,G13,0) -> 0 | BE13: =IF(AZ13=5,G13,0) -> 0 | CA13: 1 | CB13: 1
C14: Pro osazení betonových obrubníků:(20,00+1,50*4+7,75*2)*0,30*0,20*0,5 | E14: 1.245 | M14: Pro osazení betonových obrubníků:(20,00+1,50*4+7,75*2)*0,30*0,20*0,5
A15: 4 | B15: 162701105RSZ | C15: Vodorovné přemístění výkopku z hor.1-7 na skládku zhotovitele | D15: m3 | E15: 2.49 | G15: =E15*F15 -> 0 | H15: 0 | I15: =E15*H15 -> 0 | J15: 0 | K15: =E15*J15 -> 0 | O15: 2 | AA15: 1 | AB15: 1 | AC15: 1 | AZ15: 1 | BA15: =IF(AZ15=1,G15,0) -> 0 | BB15: =IF(AZ15=2,G15,0) -> 0 | BC15: =IF(AZ15=3,G15,0) -> 0 | BD15: =IF(AZ15=4,G15,0) -> 0 | BE15: =IF(AZ15=5,G15,0) -> 0 | CA15: 1 | CB15: 1
C16: Pro osazení betonových obrubníků:(20,00+1,50*4+7,75*2)*0,30*0,20 | E16: 2.49 | M16: Pro osazení betonových obrubníků:(20,00+1,50*4+7,75*2)*0,30*0,20
A17: 5 | B17: 181101102R00 | C17: Úprava pláně v zářezech v hor. 1-4, se zhutněním | D17: m2 | E17: 13.47 | G17: =E17*F17 -> 0 | H17: 0 | I17: =E17*H17 -> 0 | J17: 0 | K17: =E17*J17 -> 0 | O17: 2 | AA17: 1 | AB17: 1 | AC17: 1 | AZ17: 1 | BA17: =IF(AZ17=1,G17,0) -> 0 | BB17: =IF(AZ17=2,G17,0) -> 0 | BC17: =IF(AZ17=3,G17,0) -> 0 | BD17: =IF(AZ17=4,G17,0) -> 0 | BE17: =IF(AZ17=5,G17,0) -> 0 | CA17: 1 | CB17: 1
C18: Pro osazení betonových obrubníků:(20,00+1,50*4+9,45*2)*0,30 | E18: 13.47 | M18: Pro osazení betonových obrubníků:(20,00+1,50*4+9,45*2)*0,30
A19: 6 | B19: 181300012RAC | C19: Rozprostření ornice v rovině tloušťka 20 cm dovoz ornice ze vzdálenosti 5 km, osetí trávou | D19: m2 | E19: 70.75 | G19: =E19*F19 -> 0 | H19: 3e-05 | I19: =E19*H19 -> 0.0021225 | J19: 0 | K19: =E19*J19 -> 0 | O19: 2 | AA19: 1 | AB19: 1 | AC19: 1 | AZ19: 1 | BA19: =IF(AZ19=1,G19,0) -> 0 | BB19: =IF(AZ19=2,G19,0) -> 0 | BC19: =IF(AZ19=3,G19,0) -> 0 | BD19: =IF(AZ19=4,G19,0) -> 0 | BE19: =IF(AZ19=5,G19,0) -> 0 | CA19: 1 | CB19: 1
C20: Včetně naložení ornice na skládce investora a přesunu hmot. | L20: Včetně naložení ornice na skládce investora a přesunu hmot. | O20: 3
C21: Doplnění ornice za obrubou:20,00*3,00+(5,00+6,00)*3,00+4,50*2,50-7,75*2 | E21: 88.75 | M21: Doplnění ornice za obrubou:20,00*3,00+(5,00+6,00)*3,00+4,50*2,50-7,75*2
C22: Pro vjezdy:-6,00*3,00 | E22: -18 | M22: Pro vjezdy:-6,00*3,00
A23: 7 | B23: 199000002R00 | C23: Poplatek za skládku horniny 1- 7 č. dle katal. odpadů 17 05 04 | D23: m3 | E23: 2.49 | G23: =E23*F23 -> 0 | H23: 0 | I23: =E23*H23 -> 0 | J23: 0 | K23: =E23*J23 -> 0 | O23: 2 | AA23: 1 | AB23: 1 | AC23: 1 | AZ23: 1 | BA23: =IF(AZ23=1,G23,0) -> 0 | BB23: =IF(AZ23=2,G23,0) -> 0 | BC23: =IF(AZ23=3,G23,0) -> 0 | BD23: =IF(AZ23=4,G23,0) -> 0 | BE23: =IF(AZ23=5,G23,0) -> 0 | CA23: 1 | CB23: 1
C24: Pro osazení betonových obrubníků:(20,00+1,50*4+7,75*2)*0,30*0,20 | E24: 2.49 | M24: Pro osazení betonových obrubníků:(20,00+1,50*4+7,75*2)*0,30*0,20
A25: 8 | B25: 976085211R00 | C25: Vybourání kanal.rámů a poklopů plochy do 0,3 m2 | D25: kus | E25: 3 | G25: =E25*F25 -> 0 | H25: 0 | I25: =E25*H25 -> 0 | J25: -0.024 | K25: =E25*J25 -> -0.072 | O25: 2 | AA25: 1 | AB25: 0 | AC25: 0 | AZ25: 1 | BA25: =IF(AZ25=1,G25,0) -> 0 | BB25: =IF(AZ25=2,G25,0) -> 0 | BC25: =IF(AZ25=3,G25,0) -> 0 | BD25: =IF(AZ25=4,G25,0) -> 0 | BE25: =IF(AZ25=5,G25,0) -> 0 | CA25: 1 | CB25: 0
A26: 9 | B26: 979082113RSZ | C26: Vodorovná doprava suti po suchu na skládku zhotovitele | D26: t | E26: 6.7628 | G26: =E26*F26 -> 0 | H26: 0 | I26: =E26*H26 -> 0 | J26: 0 | K26: =E26*J26 -> 0 | O26: 2 | AA26: 1 | AB26: 1 | AC26: 1 | AZ26: 1 | BA26: =IF(AZ26=1,G26,0) -> 0 | BB26: =IF(AZ26=2,G26,0) -> 0 | BC26: =IF(AZ26=3,G26,0) -> 0 | BD26: =IF(AZ26=4,G26,0) -> 0 | BE26: =IF(AZ26=5,G26,0) -> 0 | CA26: 1 | CB26: 1
A27: 10 | B27: 979999995R00 | C27: Poplatek za reciklaci asfaltu, kusovost do 1600cm2 skupina 170302 | D27: t | E27: 6.7628 | G27: =E27*F27 -> 0 | H27: 0 | I27: =E27*H27 -> 0 | J27: 0 | K27: =E27*J27 -> 0 | O27: 2 | AA27: 1 | AB27: 1 | AC27: 1 | AZ27: 1 | BA27: =IF(AZ27=1,G27,0) -> 0 | BB27: =IF(AZ27=2,G27,0) -> 0 | BC27: =IF(AZ27=3,G27,0) -> 0 | BD27: =IF(AZ27=4,G27,0) -> 0 | BE27: =IF(AZ27=5,G27,0) -> 0 | CA27: 1 | CB27: 1
C28: Položka je určena pro suť o velikosti kusu do 30x30 cm (technologický materiál určený k recyklaci). | L28: Položka je určena pro suť o velikosti kusu do 30x30 cm (technologický materiál určený k recyklaci). | O28: 3
B29: Celkem za | C29: 1 Zemní práce | G29: =SUM(G7:G28) -> 0 | I29: =SUM(I7:I28) -> 0.0021225 | K29: =SUM(K7:K28) -> -6.8348 | O29: 4 | BA29: =SUM(BA7:BA28) -> 0 | BB29: =SUM(BB7:BB28) -> 0 | BC29: =SUM(BC7:BC28) -> 0 | BD29: =SUM(BD7:BD28) -> 0 | BE29: =SUM(BE7:BE28) -> 0
A30: Díl: | B30: 5 | C30: Komunikace | O30: 1
A31: 11 | B31: 564791111R00 | C31: Podklad pro zpevněné plochy z kam.drceného 0-63 mm | D31: m3 | E31: 2.694 | G31: =E31*F31 -> 0 | H31: 2.204 | I31: =E31*H31 -> 5.937576 | J31: 0 | K31: =E31*J31 -> 0 | O31: 2 | AA31: 1 | AB31: 1 | AC31: 1 | AZ31: 1 | BA31: =IF(AZ31=1,G31,0) -> 0 | BB31: =IF(AZ31=2,G31,0) -> 0 | BC31: =IF(AZ31=3,G31,0) -> 0 | BD31: =IF(AZ31=4,G31,0) -> 0 | BE31: =IF(AZ31=5,G31,0) -> 0 | CA31: 1 | CB31: 1
C32: Včetně kameniva, rozprostření a zhutnění podkladu. | L32: Včetně kameniva, rozprostření a zhutnění podkladu. | O32: 3
C33: Pro osazení betonových obrubníků:(20,00+1,50*4+9,45*2)*0,30*0,2 | E33: 2.694 | M33: Pro osazení betonových obrubníků:(20,00+1,50*4+9,45*2)*0,30*0,2
A34: 12 | B34: 565141211RT3 | C34: Podklad z obal kam.ACP 16+,nad 3 m,tl.6 cm plochy 101-200 m2 | D34: m2 | E34: 150.5 | G34: =E34*F34 -> 0 | H34: 0.15826 | I34: =E34*H34 -> 23.81813 | J34: 0 | K34: =E34*J34 -> 0 | O34: 2 | AA34: 1 | AB34: 1 | AC34: 1 | AZ34: 1 | BA34: =IF(AZ34=1,G34,0) -> 0 | BB34: =IF(AZ34=2,G34,0) -> 0 | BC34: =IF(AZ34=3,G34,0) -> 0 | BD34: =IF(AZ34=4,G34,0) -> 0 | BE34: =IF(AZ34=5,G34,0) -> 0 | CA34: 1 | CB34: 1
C35: Křižovatka:17,00*6,00+6,00*5,50+7,75*2 | E35: 150.5 | M35: Křižovatka:17,00*6,00+6,00*5,50+7,75*2
A36: 13 | B36: 572713112R00 | C36: Vyrovnání povrchu krytů kamen. obaleným asfaltem | D36: t | E36: 1.1225 | G36: =E36*F36 -> 0 | H36: 1 | I36: =E36*H36 -> 1.1225 | J36: 0 | K36: =E36*J36 -> 0 | O36: 2 | AA36: 1 | AB36: 1 | AC36: 1 | AZ36: 1 | BA36: =IF(AZ36=1,G36,0) -> 0 | BB36: =IF(AZ36=2,G36,0) -> 0 | BC36: =IF(AZ36=3,G36,0) -> 0 | BD36: =IF(AZ36=4,G36,0) -> 0 | BE36: =IF(AZ36=5,G36,0) -> 0 | CA36: 1 | CB36: 1
C37: Doplnění stávající asfaltové plochy podél nových obrubníků:(20,00+1,50*4+9,45*2)*0,10*0,10*2,5 | E37: 1.1225 | M37: Doplnění stávající asfaltové plochy podél nových obrubníků:(20,00+1,50*4+9,45*2)*0,10*0,10*2,5
A38: 14 | B38: 573231125R00 | C38: Postřik spojovací z KAE množství zbytkového asfaltu 0,5 kg/m2 | D38: m2 | E38: 150.5 | G38: =E38*F38 -> 0 | H38: 0.0005 | I38: =E38*H38 -> 0.07525 | J38: 0 | K38: =E38*J38 -> 0 | O38: 2 | AA38: 1 | AB38: 1 | AC38: 1 | AZ38: 1 | BA38: =IF(AZ38=1,G38,0) -> 0 | BB38: =IF(AZ38=2,G38,0) -> 0 | BC38: =IF(AZ38=3,G38,0) -> 0 | BD38: =IF(AZ38=4,G38,0) -> 0 | BE38: =IF(AZ38=5,G38,0) -> 0 | CA38: 1 | CB38: 1
C39: Křižovatka:17,00*6,00+6,00*5,50+7,75*2 | E39: 150.5 | M39: Křižovatka:17,00*6,00+6,00*5,50+7,75*2
A40: 15 | B40: 577132111RT3 | C40: Beton asfalt. ACO 11+ obrusný, š.nad 3 m, tl. 4 cm plochy 101-200 m2 | D40: m2 | E40: 150.5 | G40: =E40*F40 -> 0 | H40: 0.10373 | I40: =E40*H40 -> 15.611365 | J40: 0 | K40: =E40*J40 -> 0 | O40: 2 | AA40: 1 | AB40: 1 | AC40: 1 | AZ40: 1 | BA40: =IF(AZ40=1,G40,0) -> 0 | BB40: =IF(AZ40=2,G40,0) -> 0 | BC40: =IF(AZ40=3,G40,0) -> 0 | BD40: =IF(AZ40=4,G40,0) -> 0 | BE40: =IF(AZ40=5,G40,0) -> 0 | CA40: 1 | CB40: 1
C41: Křižovatka:17,00*6,00+6,00*5,50+7,75*2 | E41: 150.5 | M41: Křižovatka:17,00*6,00+6,00*5,50+7,75*2
A42: 16 | B42: 591241111R00 | C42: Kladení dlažby drobné kostky, lože z MC tl. 5 cm | D42: m2 | E42: 26.25 | G42: =E42*F42 -> 0 | H42: 0.31388 | I42: =E42*H42 -> 8.23935 | J42: 0 | K42: =E42*J42 -> 0 | O42: 2 | AA42: 1 | AB42: 1 | AC42: 1 | AZ42: 1 | BA42: =IF(AZ42=1,G42,0) -> 0 | BB42: =IF(AZ42=2,G42,0) -> 0 | BC42: =IF(AZ42=3,G42,0) -> 0 | BD42: =IF(AZ42=4,G42,0) -> 0 | BE42: =IF(AZ42=5,G42,0) -> 0 | CA42: 1 | CB42: 1
C43: V položce jsou zakalkulovány i náklady na dodání hmot pro lože a na dodání téhož materiálu na výplň spár. V položce nejsou zakalkulovány náklady na dodání dlažebních kostek (dležba investora). | L43: V položce jsou zakalkulovány i náklady na dodání hmot pro lože a na dodání téhož materiálu na výplň spár. V položce nejsou zakalkulovány náklady na dodání dlažebních kostek (dležba investora). | O43: 3
C44: Křižovatka - náběhy:6,00*1,50*2+5,50*1,50*1 | E44: 26.25 | M44: Křižovatka - náběhy:6,00*1,50*2+5,50*1,50*1
A45: 17 | B45: 979084216R00 | C45: Vodorovná doprava vybour. hmot po suchu do 5 km | D45: t | E45: 6.5625 | G45: =E45*F45 -> 0 | H45: 0 | I45: =E45*H45 -> 0 | J45: 0 | K45: =E45*J45 -> 0 | O45: 2 | AA45: 1 | AB45: 1 | AC45: 1 | AZ45: 1 | BA45: =IF(AZ45=1,G45,0) -> 0 | BB45: =IF(AZ45=2,G45,0) -> 0 | BC45: =IF(AZ45=3,G45,0) -> 0 | BD45: =IF(AZ45=4,G45,0) -> 0 | BE45: =IF(AZ45=5,G45,0) -> 0 | CA45: 1 | CB45: 1
A46: 18 | B46: 979087213R00 | C46: Nakládání vybour.hmot na dop.prostředky-komunikace | D46: t | E46: 6.5625 | G46: =E46*F46 -> 0 | H46: 0 | I46: =E46*H46 -> 0 | J46: 0 | K46: =E46*J46 -> 0 | O46: 2 | AA46: 1 | AB46: 1 | AC46: 1 | AZ46: 1 | BA46: =IF(AZ46=1,G46,0) -> 0 | BB46: =IF(AZ46=2,G46,0) -> 0 | BC46: =IF(AZ46=3,G46,0) -> 0 | BD46: =IF(AZ46=4,G46,0) -> 0 | BE46: =IF(AZ46=5,G46,0) -> 0 | CA46: 1 | CB46: 1
B47: Celkem za | C47: 5 Komunikace | G47: =SUM(G30:G46) -> 0 | I47: =SUM(I30:I46) -> 54.804171 | K47: =SUM(K30:K46) -> 0 | O47: 4 | BA47: =SUM(BA30:BA46) -> 0 | BB47: =SUM(BB30:BB46) -> 0 | BC47: =SUM(BC30:BC46) -> 0 | BD47: =SUM(BD30:BD46) -> 0 | BE47: =SUM(BE30:BE46) -> 0
A48: Díl: | B48: 8 | C48: Trubní vedení | O48: 1
A49: 19 | B49: 899231111R00 | C49: Výšková úprava vstupu do 20 cm, zvýšení mříže | D49: kus | E49: 1 | G49: =E49*F49 -> 0 | H49: 0.43382 | I49: =E49*H49 -> 0.43382 | J49: 0 | K49: =E49*J49 -> 0 | O49: 2 | AA49: 1 | AB49: 1 | AC49: 1 | AZ49: 1 | BA49: =IF(AZ49=1,G49,0) -> 0 | BB49: =IF(AZ49=2,G49,0) -> 0 | BC49: =IF(AZ49=3,G49,0) -> 0 | BD49: =IF(AZ49=4,G49,0) -> 0 | BE49: =IF(AZ49=5,G49,0) -> 0 | CA49: 1 | CB49: 1
B50: Celkem za | C50: 8 Trubní vedení | G50: =SUM(G48:G49) -> 0 | I50: =SUM(I48:I49) -> 0.43382 | K50: =SUM(K48:K49) -> 0 | O50: 4 | BA50: =SUM(BA48:BA49) -> 0 | BB50: =SUM(BB48:BB49) -> 0 | BC50: =SUM(BC48:BC49) -> 0 | BD50: =SUM(BD48:BD49) -> 0 | BE50: =SUM(BE48:BE49) -> 0
A51: Díl: | B51: 91 | C51: Doplňující práce na komunikaci | O51: 1
A52: 20 | B52: 917732114RT7 | C52: Osazení stojat. obrub.bet. s opěrou,lože z C 25/30 včetně obrubníku 1000x150x250 mm | D52: m | E52: 44.9 | G52: =E52*F52 -> 0 | H52: 0.26981 | I52: =E52*H52 -> 12.114469 | J52: 0 | K52: =E52*J52 -> 0 | O52: 2 | AA52: 1 | AB52: 0 | AC52: 0 | AZ52: 1 | BA52: =IF(AZ52=1,G52,0) -> 0 | BB52: =IF(AZ52=2,G52,0) -> 0 | BC52: =IF(AZ52=3,G52,0) -> 0 | BD52: =IF(AZ52=4,G52,0) -> 0 | BE52: =IF(AZ52=5,G52,0) -> 0 | CA52: 1 | CB52: 0
C53: Osazení obrubníků:20,00+1,50*4+9,45*2 | E53: 44.9 | M53: Osazení obrubníků:20,00+1,50*4+9,45*2
A54: 21 | B54: 918101111R00 | C54: Lože pod obrubníky nebo obruby dlažeb z C 12/15 | D54: m3 | E54: 1.1225 | G54: =E54*F54 -> 0 | H54: 2.525 | I54: =E54*H54 -> 2.8343125 | J54: 0 | K54: =E54*J54 -> 0 | O54: 2 | AA54: 1 | AB54: 1 | AC54: 1 | AZ54: 1 | BA54: =IF(AZ54=1,G54,0) -> 0 | BB54: =IF(AZ54=2,G54,0) -> 0 | BC54: =IF(AZ54=3,G54,0) -> 0 | BD54: =IF(AZ54=4,G54,0) -> 0 | BE54: =IF(AZ54=5,G54,0) -> 0 | CA54: 1 | CB54: 1
C55: Osazení obrubníků:(20,00+1,50*4+9,45*2)*0,25*0,10 | E55: 1.1225 | M55: Osazení obrubníků:(20,00+1,50*4+9,45*2)*0,25*0,10
A56: 22 | B56: 919731122R00 | C56: Zarovnání styčné plochy živičné tl. do 10 cm | D56: m | E56: 79.9 | G56: =E56*F56 -> 0 | H56: 0 | I56: =E56*H56 -> 0 | J56: 0 | K56: =E56*J56 -> 0 | O56: 2 | AA56: 1 | AB56: 1 | AC56: 1 | AZ56: 1 | BA56: =IF(AZ56=1,G56,0) -> 0 | BB56: =IF(AZ56=2,G56,0) -> 0 | BC56: =IF(AZ56=3,G56,0) -> 0 | BD56: =IF(AZ56=4,G56,0) -> 0 | BE56: =IF(AZ56=5,G56,0) -> 0 | CA56: 1 | CB56: 1
C57: Pro osazení betonových obrubníků:20,00+1,50*4+9,45*2 | E57: 44.9 | M57: Pro osazení betonových obrubníků:20,00+1,50*4+9,45*2
C58: Křižovatka - Náběhy:6,00*2*2+5,50*2*1 | E58: 35 | M58: Křižovatka - Náběhy:6,00*2*2+5,50*2*1
A59: 23 | B59: 919735112R00 | C59: Řezání stávajícího živičného krytu tl. 5 - 10 cm | D59: m | E59: 79.9 | G59: =E59*F59 -> 0 | H59: 0 | I59: =E59*H59 -> 0 | J59: 0 | K59: =E59*J59 -> 0 | O59: 2 | AA59: 1 | AB59: 1 | AC59: 1 | AZ59: 1 | BA59: =IF(AZ59=1,G59,0) -> 0 | BB59: =IF(AZ59=2,G59,0) -> 0 | BC59: =IF(AZ59=3,G59,0) -> 0 | BD59: =IF(AZ59=4,G59,0) -> 0 | BE59: =IF(AZ59=5,G59,0) -> 0 | CA59: 1 | CB59: 1
C60: Pro osazení betonových obrubníků:20,00+1,50*4+9,45*2 | E60: 44.9 | M60: Pro osazení betonových obrubníků:20,00+1,50*4+9,45*2
C61: Křižovatka - Náběhy:6,00*2*2+5,50*2*1 | E61: 35 | M61: Křižovatka - Náběhy:6,00*2*2+5,50*2*1
B62: Celkem za | C62: 91 Doplňující práce na komunikaci | G62: =SUM(G51:G61) -> 0 | I62: =SUM(I51:I61) -> 14.9487815 | K62: =SUM(K51:K61) -> 0 | O62: 4 | BA62: =SUM(BA51:BA61) -> 0 | BB62: =SUM(BB51:BB61) -> 0 | BC62: =SUM(BC51:BC61) -> 0 | BD62: =SUM(BD51:BD61) -> 0 | BE62: =SUM(BE51:BE61) -> 0
A63: Díl: | B63: 93 | C63: Dokončovací práce inženýrských staveb | O63: 1
A64: 24 | B64: 938908411R00 | C64: Očištění povrchu krytu saponátovým roztokem | D64: m2 | E64: 150.5 | G64: =E64*F64 -> 0 | H64: 1e-05 | I64: =E64*H64 -> 0.001505 | J64: 0 | K64: =E64*J64 -> 0 | O64: 2 | AA64: 1 | AB64: 1 | AC64: 1 | AZ64: 1 | BA64: =IF(AZ64=1,G64,0) -> 0 | BB64: =IF(AZ64=2,G64,0) -> 0 | BC64: =IF(AZ64=3,G64,0) -> 0 | BD64: =IF(AZ64=4,G64,0) -> 0 | BE64: =IF(AZ64=5,G64,0) -> 0 | CA64: 1 | CB64: 1
C65: Křižovatka:17,00*6,00+6,00*5,50+7,75*2 | E65: 150.5 | M65: Křižovatka:17,00*6,00+6,00*5,50+7,75*2
A66: 25 | B66: 938909311R00 | C66: Odstranění nánosu z povrchu živičného nebo beton. | D66: m2 | E66: 150.5 | G66: =E66*F66 -> 0 | H66: 0 | I66: =E66*H66 -> 0 | J66: 0 | K66: =E66*J66 -> 0 | O66: 2 | AA66: 1 | AB66: 1 | AC66: 1 | AZ66: 1 | BA66: =IF(AZ66=1,G66,0) -> 0 | BB66: =IF(AZ66=2,G66,0) -> 0 | BC66: =IF(AZ66=3,G66,0) -> 0 | BD66: =IF(AZ66=4,G66,0) -> 0 | BE66: =IF(AZ66=5,G66,0) -> 0 | CA66: 1 | CB66: 1
C67: Křižovatka:17,00*6,00+6,00*5,50+7,75*2 | E67: 150.5 | M67: Křižovatka:17,00*6,00+6,00*5,50+7,75*2
A68: 26 | B68: 939421121RT2 | C68: Osazení samonivelač.vodovod.poklopu za finišerem včetně dodávky poklopu | D68: kus | E68: 3 | G68: =E68*F68 -> 0 | H68: 0.0645 | I68: =E68*H68 -> 0.1935 | J68: 0 | K68: =E68*J68 -> 0 | O68: 2 | AA68: 1 | AB68: 1 | AC68: 1 | AZ68: 1 | BA68: =IF(AZ68=1,G68,0) -> 0 | BB68: =IF(AZ68=2,G68,0) -> 0 | BC68: =IF(AZ68=3,G68,0) -> 0 | BD68: =IF(AZ68=4,G68,0) -> 0 | BE68: =IF(AZ68=5,G68,0) -> 0 | CA68: 1 | CB68: 1
A69: 27 | B69: 939431111RT2 | C69: Výměna kanaliz.poklopu za samonivelační, hl.200 mm včetně dodávky litinového poklopu D400 SN600 | D69: kus | E69: 1 | G69: =E69*F69 -> 0 | H69: 0.56041 | I69: =E69*H69 -> 0.56041 | J69: -0.32076 | K69: =E69*J69 -> -0.32076 | O69: 2 | AA69: 1 | AB69: 0 | AC69: 0 | AZ69: 1 | BA69: =IF(AZ69=1,G69,0) -> 0 | BB69: =IF(AZ69=2,G69,0) -> 0 | BC69: =IF(AZ69=3,G69,0) -> 0 | BD69: =IF(AZ69=4,G69,0) -> 0 | BE69: =IF(AZ69=5,G69,0) -> 0 | CA69: 1 | CB69: 0
C70: Samonivelační bezpantový těžký poklop KASI KDM65 případně část KDM63 dle upřesnění provozovatele. | L70: Samonivelační bezpantový těžký poklop KASI KDM65 případně část KDM63 dle upřesnění provozovatele. | O70: 3
C71: Poklop se znakem "Město Turnov" | L71: Poklop se znakem "Město Turnov" | O71: 3
B72: Celkem za | C72: 93 Dokončovací práce inženýrských staveb | G72: =SUM(G63:G71) -> 0 | I72: =SUM(I63:I71) -> 0.755415 | K72: =SUM(K63:K71) -> -0.32076 | O72: 4 | BA72: =SUM(BA63:BA71) -> 0 | BB72: =SUM(BB63:BB71) -> 0 | BC72: =SUM(BC63:BC71) -> 0 | BD72: =SUM(BD63:BD71) -> 0 | BE72: =SUM(BE63:BE71) -> 0
A73: Díl: | B73: 99 | C73: Staveništní přesun hmot | O73: 1
A74: 28 | B74: 998225111R00 | C74: Přesun hmot, pozemní komunikace, kryt živičný | D74: t | E74: 70.94431 | G74: =E74*F74 -> 0 | H74: 0 | I74: =E74*H74 -> 0 | K74: =E74*J74 -> 0 | O74: 2 | AA74: 7 | AB74: 1 | AC74: 2 | AZ74: 1 | BA74: =IF(AZ74=1,G74,0) -> 0 | BB74: =IF(AZ74=2,G74,0) -> 0 | BC74: =IF(AZ74=3,G74,0) -> 0 | BD74: =IF(AZ74=4,G74,0) -> 0 | BE74: =IF(AZ74=5,G74,0) -> 0 | CA74: 7 | CB74: 1
B75: Celkem za | C75: 99 Staveništní přesun hmot | G75: =SUM(G73:G74) -> 0 | I75: =SUM(I73:I74) -> 0 | K75: =SUM(K73:K74) -> 0 | O75: 4 | BA75: =SUM(BA73:BA74) -> 0 | BB75: =SUM(BB73:BB74) -> 0 | BC75: =SUM(BC73:BC74) -> 0 | BD75: =SUM(BD73:BD74) -> 0 | BE75: =SUM(BE73:BE74) -> 0

Sheet 102.03 102.03.1 KL
A1: POLOŽKOVÝ ROZPOČET
A2: Rozpočet | C2: 102.03.1 | D2: Úsek č.1 - Dostavba | F2: JKSO | G2: 822.27
A4: Objekt | F4: SKP
A5: 102.03 | C5: Komunikace "Gen. Václava Morávka" | F5: Měrná jednotka | G5: m2
A6: Stavba | F6: Počet jednotek | G6: 0
A7: 3383 | C7: Turnov-Lokalita Hruštice - Károvsko, Dostavba 2024 | F7: Náklady na m.j. | G7: =IF(G6=0,,ROUND((F30+F32)/G6,1)) -> 0
A8: Projektant | F8: Typ rozpočtu
A9: Zpracovatel projektu
A10: Objednatel | C10: Město TURNOV
A11: Dodavatel | C11: . | F11: Zakázkové číslo
A12: Rozpočtoval | F12: Počet listů
A13: ROZPOČTOVÉ NÁKLADY
A14: Základní rozpočtové náklady | D14: Ostatní rozpočtové náklady
B15: HSV celkem | C15: ='102.03 102.03.1 Rek'!E13 -> 0 | D15: ='102.03 102.03.1 Rek'!A18 -> Zařízení staveniště | G15: ='102.03 102.03.1 Rek'!I18 -> 0
A16: Z | B16: PSV celkem | C16: ='102.03 102.03.1 Rek'!F13 -> 0 | D16: ='102.03 102.03.1 Rek'!A19 -> Kompletační činnost (IČD) | G16: ='102.03 102.03.1 Rek'!I19 -> 0
A17: R | B17: M práce celkem | C17: ='102.03 102.03.1 Rek'!H13 -> 0 | D17: ='102.03 102.03.1 Rek'!A20 -> Vytýčení stavby a podz. inženýrských sítí | G17: ='102.03 102.03.1 Rek'!I20 -> 0
A18: N | B18: M dodávky celkem | C18: ='102.03 102.03.1 Rek'!G13 -> 0 | D18: ='102.03 102.03.1 Rek'!A21 -> Dokumentace skutečného provedení | G18: ='102.03 102.03.1 Rek'!I21 -> 0
A19: ZRN celkem | C19: =SUM(C15:C18) -> 0 | D19: ='102.03 102.03.1 Rek'!A22 -> Geodetické zaměření stavby | G19: ='102.03 102.03.1 Rek'!I22 -> 0
D20: ='102.03 102.03.1 Rek'!A23 -> DIO | G20: ='102.03 102.03.1 Rek'!I23 -> 0
A21: HZS | C21: ='102.03 102.03.1 Rek'!I13 -> 0
A22: ZRN+HZS | C22: =C19+C21 -> 0
A23: ZRN+ost.náklady+HZS | C23: =C22+G23 -> 0 | D23: Ostatní náklady celkem | G23: ='102.03 102.03.1 Rek'!H24 -> 0
A24: Vypracoval | D24: Za zhotovitele | F24: Za objednatele
A25: Jméno : | D25: Jméno : | F25: Jméno :
A26: Datum : | D26: Datum : | F26: Datum :
A28: Podpis : | D28: Podpis: | F28: Podpis:
A30: Základ pro DPH | C30: 21 | D30: % | F30: =C23-F32 -> 0
A31: DPH | C31: =C30 -> 21 | D31: % | F31: =ROUND(PRODUCT(F30,C31/100),0) -> 0
A32: Základ pro DPH | C32: 0 | D32: % | F32: 0
A33: DPH | C33: =C32 -> 0 | D33: % | F33: =ROUND(PRODUCT(F32,C33/100),0) -> 0
A34: CENA ZA OBJEKT CELKEM | F34: =ROUND(SUM(F30:F33),0) -> 0
A36: Poznámka :

Sheet 102.03 102.03.1 Rek
A1: Stavba : | C1: 3383 Turnov-Lokalita Hruštice - Károvsko, Dostavba 2024 | G1: Rozpočet : | H1: 102.03.1
A2: Objekt : | C2: 102.03 Komunikace "Gen. Václava Morávka" | G2: Úsek č.1 - Dostavba
A4: REKAPITULACE STAVEBNÍCH DÍLŮ
B6: Stavební díl | E6: HSV | F6: PSV | G6: Dodávka | H6: Montáž | I6: HZS
A7: ='102.03 102.03.1 Pol'!B7 -> 1 | B7: ='102.03 102.03.1 Pol'!C7 -> Zemní práce | E7: ='102.03 102.03.1 Pol'!BA45 -> 0 | F7: ='102.03 102.03.1 Pol'!BB45 -> 0 | G7: ='102.03 102.03.1 Pol'!BC45 -> 0 | H7: ='102.03 102.03.1 Pol'!BD45 -> 0 | I7: ='102.03 102.03.1 Pol'!BE45 -> 0
A8: ='102.03 102.03.1 Pol'!B46 -> 5 | B8: ='102.03 102.03.1 Pol'!C46 -> Komunikace | E8: ='102.03 102.03.1 Pol'!BA68 -> 0 | F8: ='102.03 102.03.1 Pol'!BB68 -> 0 | G8: ='102.03 102.03.1 Pol'!BC68 -> 0 | H8: ='102.03 102.03.1 Pol'!BD68 -> 0 | I8: ='102.03 102.03.1 Pol'!BE68 -> 0
A9: ='102.03 102.03.1 Pol'!B69 -> 8 | B9: ='102.03 102.03.1 Pol'!C69 -> Trubní vedení | E9: ='102.03 102.03.1 Pol'!BA71 -> 0 | F9: ='102.03 102.03.1 Pol'!BB71 -> 0 | G9: ='102.03 102.03.1 Pol'!BC71 -> 0 | H9: ='102.03 102.03.1 Pol'!BD71 -> 0 | I9: ='102.03 102.03.1 Pol'!BE71 -> 0
A10: ='102.03 102.03.1 Pol'!B72 -> 91 | B10: ='102.03 102.03.1 Pol'!C72 -> Doplňující práce na komunikaci | E10: ='102.03 102.03.1 Pol'!BA93 -> 0 | F10: ='102.03 102.03.1 Pol'!BB93 -> 0 | G10: ='102.03 102.03.1 Pol'!BC93 -> 0 | H10: ='102.03 102.03.1 Pol'!BD93 -> 0 | I10: ='102.03 102.03.1 Pol'!BE93 -> 0
A11: ='102.03 102.03.1 Pol'!B94 -> 93 | B11: ='102.03 102.03.1 Pol'!C94 -> Dokončovací práce inženýrských staveb | E11: ='102.03 102.03.1 Pol'!BA107 -> 0 | F11: ='102.03 102.03.1 Pol'!BB107 -> 0 | G11: ='102.03 102.03.1 Pol'!BC107 -> 0 | H11: ='102.03 102.03.1 Pol'!BD107 -> 0 | I11: ='102.03 102.03.1 Pol'!BE107 -> 0
A12: ='102.03 102.03.1 Pol'!B108 -> 99 | B12: ='102.03 102.03.1 Pol'!C108 -> Staveništní přesun hmot | E12: ='102.03 102.03.1 Pol'!BA110 -> 0 | F12: ='102.03 102.03.1 Pol'!BB110 -> 0 | G12: ='102.03 102.03.1 Pol'!BC110 -> 0 | H12: ='102.03 102.03.1 Pol'!BD110 -> 0 | I12: ='102.03 102.03.1 Pol'!BE110 -> 0
B13: CELKEM OBJEKT | E13: =SUM(E7:E12) -> 0 | F13: =SUM(F7:F12) -> 0 | G13: =SUM(G7:G12) -> 0 | H13: =SUM(H7:H12) -> 0 | I13: =SUM(I7:I12) -> 0
A15: VEDLEJŠÍ ROZPOČTOVÉ NÁKLADY
A17: Název VRN | E17: Kč | I17: Kč
A18: Zařízení staveniště | E18: 0 | I18: =E18+F18*G18/100 -> 0 | BA18: 2
A19: Kompletační činnost (IČD) | E19: 0 | I19: =E19+F19*G19/100 -> 0 | BA19: 2
A20: Vytýčení stavby a podz. inženýrských sítí | E20: 0 | I20: =E20+F20*G20/100 -> 0 | BA20: 0
A21: Dokumentace skutečného provedení | E21: 0 | I21: =E21+F21*G21/100 -> 0 | BA21: 0
A22: Geodetické zaměření stavby | E22: 0 | I22: =E22+F22*G22/100 -> 0 | BA22: 0
A23: DIO | E23: 0 | I23: =E23+F23*G23/100 -> 0 | BA23: 0
B24: CELKEM VRN | H24: =SUM(I18:I23) -> 0

Sheet 102.03 102.03.1 Pol
A1: Položkový rozpočet
A3: Stavba : | C3: 3383 Turnov-Lokalita Hruštice - Károvsko, Dostavba 2024 | E3: Rozpočet: | F3: ='102.03 102.03.1 Rek'!H1 -> 102.03.1
A4: Objekt : | C4: 102.03 Komunikace "Gen. Václava Morávka" | E4: ='102.03 102.03.1 Rek'!G2 -> Úsek č.1 - Dostavba
A6: P.č. | B6: Číslo položky | C6: Název položky | D6: MJ | E6: množství | F6: cena / MJ | G6: celkem (Kč) | H6: Jednotková hmotnost | I6: Celková hmotnost | J6: Jednotková dem.hmot. | K6: Celková dem.hmot.
A7: Díl: | B7: 1 | C7: Zemní práce | O7: 1
A8: 1 | B8: 113107650R00 | C8: Odstranění podkladu nad 50 m2,kam.drcené tl.50 cm | D8: m2 | E8: 50 | G8: =E8*F8 -> 0 | H8: 0 | I8: =E8*H8 -> 0 | J8: -1.1 | K8: =E8*J8 -> -55 | O8: 2 | AA8: 1 | AB8: 1 | AC8: 1 | AZ8: 1 | BA8: =IF(AZ8=1,G8,0) -> 0 | BB8: =IF(AZ8=2,G8,0) -> 0 | BC8: =IF(AZ8=3,G8,0) -> 0 | BD8: =IF(AZ8=4,G8,0) -> 0 | BE8: =IF(AZ8=5,G8,0) -> 0 | CA8: 1 | CB8: 1
C9: Prostor pro stromy:5,00*2,50*4 | E9: 50 | M9: Prostor pro stromy:5,00*2,50*4
A10: 2 | B10: 113108410R00 | C10: Odstranění asfaltové vrstvy pl.nad 50 m2, tl.10 cm | D10: m2 | E10: 167.9 | G10: =E10*F10 -> 0 | H10: 0 | I10: =E10*H10 -> 0 | J10: -0.22 | K10: =E10*J10 -> -36.938 | O10: 2 | AA10: 1 | AB10: 1 | AC10: 1 | AZ10: 1 | BA10: =IF(AZ10=1,G10,0) -> 0 | BB10: =IF(AZ10=2,G10,0) -> 0 | BC10: =IF(AZ10=3,G10,0) -> 0 | BD10: =IF(AZ10=4,G10,0) -> 0 | BE10: =IF(AZ10=5,G10,0) -> 0 | CA10: 1 | CB10: 1
C11: Pro osazení betonových obrubníků:(110,00-6,50*6-5,00*4)*0,20*2 | E11: 20.4 | M11: Pro osazení betonových obrubníků:(110,00-6,50*6-5,00*4)*0,20*2
C12: Pro parkovací stání:6,50*2,50*6 | E12: 97.5 | M12: Pro parkovací stání:6,50*2,50*6
C13: Pro stromy:5,00*2,50*4 | E13: 50 | M13: Pro stromy:5,00*2,50*4
A14: 3 | B14: 113109415R00 | C14: Odstranění podkladu pl.nad 50 m2, beton, tl. 15 cm | D14: m2 | E14: 99.8 | G14: =E14*F14 -> 0 | H14: 0 | I14: =E14*H14 -> 0 | J14: -0.36 | K14: =E14*J14 -> -35.928 | O14: 2 | AA14: 1 | AB14: 1 | AC14: 1 | AZ14: 1 | BA14: =IF(AZ14=1,G14,0) -> 0 | BB14: =IF(AZ14=2,G14,0) -> 0 | BC14: =IF(AZ14=3,G14,0) -> 0 | BD14: =IF(AZ14=4,G14,0) -> 0 | BE14: =IF(AZ14=5,G14,0) -> 0 | CA14: 1 | CB14: 1
C15: Pro osazení betonových obrubníků:(110,00-5,00*4)*0,20*2 | E15: 36 | M15: Pro osazení betonových obrubníků:(110,00-5,00*4)*0,20*2
C16: Parkovací stání:(6,50+2*2,50)*6*0,20 | E16: 13.8 | M16: Parkovací stání:(6,50+2*2,50)*6*0,20
C17: Pro stromy:5,00*2,50*4 | E17: 50 | M17: Pro stromy:5,00*2,50*4
A18: 4 | B18: 122202201R00 | C18: Odkopávky pro silnice v hor. 3 do 100 m3 | D18: m3 | E18: 8.8 | G18: =E18*F18 -> 0 | H18: 0 | I18: =E18*H18 -> 0 | J18: 0 | K18: =E18*J18 -> 0 | O18: 2 | AA18: 1 | AB18: 1 | AC18: 1 | AZ18: 1 | BA18: =IF(AZ18=1,G18,0) -> 0 | BB18: =IF(AZ18=2,G18,0) -> 0 | BC18: =IF(AZ18=3,G18,0) -> 0 | BD18: =IF(AZ18=4,G18,0) -> 0 | BE18: =IF(AZ18=5,G18,0) -> 0 | CA18: 1 | CB18: 1
C19: Pro osazení betonových obrubníků:110,00*0,20*0,20*2 | E19: 8.8 | M19: Pro osazení betonových obrubníků:110,00*0,20*0,20*2
A20: 5 | B20: 122202209R00 | C20: Příplatek za lepivost - odkop. pro silnice v hor.3 | D20: m3 | E20: 4.4 | G20: =E20*F20 -> 0 | H20: 0 | I20: =E20*H20 -> 0 | J20: 0 | K20: =E20*J20 -> 0 | O20: 2 | AA20: 1 | AB20: 1 | AC20: 1 | AZ20: 1 | BA20: =IF(AZ20=1,G20,0) -> 0 | BB20: =IF(AZ20=2,G20,0) -> 0 | BC20: =IF(AZ20=3,G20,0) -> 0 | BD20: =IF(AZ20=4,G20,0) -> 0 | BE20: =IF(AZ20=5,G20,0) -> 0 | CA20: 1 | CB20: 1
C21: Pro osazení betonových obrubníků:110,00*0,20*0,20*2*0,5 | E21: 4.4 | M21: Pro osazení betonových obrubníků:110,00*0,20*0,20*2*0,5
A22: 6 | B22: 162606112R00 | C22: Vodorovné přemístění zemin pro zúrodnění do 5000 m | D22: m3 | E22: 25 | G22: =E22*F22 -> 0 | H22: 0 | I22: =E22*H22 -> 0 | J22: 0 | K22: =E22*J22 -> 0 | O22: 2 | AA22: 1 | AB22: 0 | AC22: 0 | AZ22: 1 | BA22: =IF(AZ22=1,G22,0) -> 0 | BB22: =IF(AZ22=2,G22,0) -> 0 | BC22: =IF(AZ22=3,G22,0) -> 0 | BD22: =IF(AZ22=4,G22,0) -> 0 | BE22: =IF(AZ22=5,G22,0) -> 0 | CA22: 1 | CB22: 0
O23: 3
C24: Prostor pro stromy:5,00*2,50*4*0,50 | E24: 25 | M24: Prostor pro stromy:5,00*2,50*4*0,50
A25: 7 | B25: 162701105RSZ | C25: Vodorovné přemístění výkopku z hor.1-7 na skládku zhotovitele | D25: m3 | E25: 8.8 | G25: =E25*F25 -> 0 | H25: 0 | I25: =E25*H25 -> 0 | J25: 0 | K25: =E25*J25 -> 0 | O25: 2 | AA25: 1 | AB25: 1 | AC25: 1 | AZ25: 1 | BA25: =IF(AZ25=1,G25,0) -> 0 | BB25: =IF(AZ25=2,G25,0) -> 0 | BC25: =IF(AZ25=3,G25,0) -> 0 | BD25: =IF(AZ25=4,G25,0) -> 0 | BE25: =IF(AZ25=5,G25,0) -> 0 | CA25: 1 | CB25: 1
C26: Pro osazení betonových obrubníků:110,00*0,20*0,20*2 | E26: 8.8 | M26: Pro osazení betonových obrubníků:110,00*0,20*0,20*2
A27: 8 | B27: 167101101R00 | C27: Nakládání výkopku z hor.1-4 v množství do 100 m3 | D27: m3 | E27: 25 | G27: =E27*F27 -> 0 | H27: 0 | I27: =E27*H27 -> 0 | J27: 0 | K27: =E27*J27 -> 0 | O27: 2 | AA27: 1 | AB27: 1 | AC27: 1 | AZ27: 1 | BA27: =IF(AZ27=1,G27,0) -> 0 | BB27: =IF(AZ27=2,G27,0) -> 0 | BC27: =IF(AZ27=3,G27,0) -> 0 | BD27: =IF(AZ27=4,G27,0) -> 0 | BE27: =IF(AZ27=5,G27,0) -> 0 | CA27: 1 | CB27: 1
C28: Prostor pro stromy:5,00*2,50*4*0,50 | E28: 25 | M28: Prostor pro stromy:5,00*2,50*4*0,50
A29: 9 | B29: 174101101R00 | C29: Zásyp jam, rýh, šachet se zhutněním | D29: m3 | E29: 25 | G29: =E29*F29 -> 0 | H29: 0 | I29: =E29*H29 -> 0 | J29: 0 | K29: =E29*J29 -> 0 | O29: 2 | AA29: 1 | AB29: 1 | AC29: 1 | AZ29: 1 | BA29: =IF(AZ29=1,G29,0) -> 0 | BB29: =IF(AZ29=2,G29,0) -> 0 | BC29: =IF(AZ29=3,G29,0) -> 0 | BD29: =IF(AZ29=4,G29,0) -> 0 | BE29: =IF(AZ29=5,G29,0) -> 0 | CA29: 1 | CB29: 1
C30: včetně strojního přemístění materiálu pro zásyp ze vzdálenosti do 10 m od okraje zásypu | L30: včetně strojního přemístění materiálu pro zásyp ze vzdálenosti do 10 m od okraje zásypu | O30: 3
C31: Prostor pro stromy:5,00*2,50*4*0,50 | E31: 25 | M31: Prostor pro stromy:5,00*2,50*4*0,50
A32: 10 | B32: 181101102R00 | C32: Úprava pláně v zářezech v hor. 1-4, se zhutněním | D32: m2 | E32: 20.4 | G32: =E32*F32 -> 0 | H32: 0 | I32: =E32*H32 -> 0 | J32: 0 | K32: =E32*J32 -> 0 | O32: 2 | AA32: 1 | AB32: 1 | AC32: 1 | AZ32: 1 | BA32: =IF(AZ32=1,G32,0) -> 0 | BB32: =IF(AZ32=2,G32,0) -> 0 | BC32: =IF(AZ32=3,G32,0) -> 0 | BD32: =IF(AZ32=4,G32,0) -> 0 | BE32: =IF(AZ32=5,G32,0) -> 0 | CA32: 1 | CB32: 1
C33: Pro osazení betonových obrubníků:(110,00-6,50*6-5,00*4)*0,20*2 | E33: 20.4 | M33: Pro osazení betonových obrubníků:(110,00-6,50*6-5,00*4)*0,20*2
A34: 11 | B34: 181300012RAC | C34: Rozprostření ornice v rovině tloušťka 20 cm dovoz ornice ze vzdálenosti 5 km, osetí trávou | D34: m2 | E34: 50 | G34: =E34*F34 -> 0 | H34: 3e-05 | I34: =E34*H34 -> 0.0015 | J34: 0 | K34: =E34*J34 -> 0 | O34: 2 | AA34: 1 | AB34: 1 | AC34: 1 | AZ34: 1 | BA34: =IF(AZ34=1,G34,0) -> 0 | BB34: =IF(AZ34=2,G34,0) -> 0 | BC34: =IF(AZ34=3,G34,0) -> 0 | BD34: =IF(AZ34=4,G34,0) -> 0 | BE34: =IF(AZ34=5,G34,0) -> 0 | CA34: 1 | CB34: 1
C35: Včetně naložení ornice na skládce investora a přesunu hmot. | L35: Včetně naložení ornice na skládce investora a přesunu hmot. | O35: 3
C36: Prostor pro stromy:5,00*2,50*4 | E36: 50 | M36: Prostor pro stromy:5,00*2,50*4
A37: 12 | B37: 199000002R00 | C37: Poplatek za skládku horniny 1- 7 č. dle katal. odpadů 17 05 04 | D37: m3 | E37: 8.8 | G37: =E37*F37 -> 0 | H37: 0 | I37: =E37*H37 -> 0 | J37: 0 | K37: =E37*J37 -> 0 | O37: 2 | AA37: 1 | AB37: 1 | AC37: 1 | AZ37: 1 | BA37: =IF(AZ37=1,G37,0) -> 0 | BB37: =IF(AZ37=2,G37,0) -> 0 | BC37: =IF(AZ37=3,G37,0) -> 0 | BD37: =IF(AZ37=4,G37,0) -> 0 | BE37: =IF(AZ37=5,G37,0) -> 0 | CA37: 1 | CB37: 1
C38: Pro osazení betonových obrubníků:110,00*0,20*0,20*2 | E38: 8.8 | M38: Pro osazení betonových obrubníků:110,00*0,20*0,20*2
A39: 13 | B39: 976085211R00 | C39: Vybourání kanal.rámů a poklopů plochy do 0,3 m2 | D39: kus | E39: 6 | G39: =E39*F39 -> 0 | H39: 0 | I39: =E39*H39 -> 0 | J39: -0.024 | K39: =E39*J39 -> -0.144 | O39: 2 | AA39: 1 | AB39: 0 | AC39: 0 | AZ39: 1 | BA39: =IF(AZ39=1,G39,0) -> 0 | BB39: =IF(AZ39=2,G39,0) -> 0 | BC39: =IF(AZ39=3,G39,0) -> 0 | BD39: =IF(AZ39=4,G39,0) -> 0 | BE39: =IF(AZ39=5,G39,0) -> 0 | CA39: 1 | CB39: 0
A40: 14 | B40: 979082113RSZ | C40: Vodorovná doprava suti po suchu na skládku zhotovitele | D40: t | E40: 127.866 | G40: =E40*F40 -> 0 | H40: 0 | I40: =E40*H40 -> 0 | J40: 0 | K40: =E40*J40 -> 0 | O40: 2 | AA40: 1 | AB40: 1 | AC40: 1 | AZ40: 1 | BA40: =IF(AZ40=1,G40,0) -> 0 | BB40: =IF(AZ40=2,G40,0) -> 0 | BC40: =IF(AZ40=3,G40,0) -> 0 | BD40: =IF(AZ40=4,G40,0) -> 0 | BE40: =IF(AZ40=5,G40,0) -> 0 | CA40: 1 | CB40: 1
A41: 15 | B41: 979089001R00 | C41: Poplatek za skládku stavební suti štěrky z komunikací, skupina odpadu 010408 | D41: t | E41: 55 | G41: =E41*F41 -> 0 | H41: 0 | I41: =E41*H41 -> 0 | J41: 0 | K41: =E41*J41 -> 0 | O41: 2 | AA41: 1 | AB41: 1 | AC41: 1 | AZ41: 1 | BA41: =IF(AZ41=1,G41,0) -> 0 | BB41: =IF(AZ41=2,G41,0) -> 0 | BC41: =IF(AZ41=3,G41,0) -> 0 | BD41: =IF(AZ41=4,G41,0) -> 0 | BE41: =IF(AZ41=5,G41,0) -> 0 | CA41: 1 | CB41: 1
A42: 16 | B42: 979990103R00 | C42: Poplatek za skládku stavební suti beton, skupina odpadu 170101 | D42: t | E42: 35.928 | G42: =E42*F42 -> 0 | H42: 0 | I42: =E42*H42 -> 0 | J42: 0 | K42: =E42*J42 -> 0 | O42: 2 | AA42: 1 | AB42: 1 | AC42: 1 | AZ42: 1 | BA42: =IF(AZ42=1,G42,0) -> 0 | BB42: =IF(AZ42=2,G42,0) -> 0 | BC42: =IF(AZ42=3,G42,0) -> 0 | BD42: =IF(AZ42=4,G42,0) -> 0 | BE42: =IF(AZ42=5,G42,0) -> 0 | CA42: 1 | CB42: 1
A43: 17 | B43: 979999995R00 | C43: Poplatek za reciklaci asfaltu, kusovost do 1600cm2 skupina 170302 | D43: t | E43: 36.938 | G43: =E43*F43 -> 0 | H43: 0 | I43: =E43*H43 -> 0 | J43: 0 | K43: =E43*J43 -> 0 | O43: 2 | AA43: 1 | AB43: 1 | AC43: 1 | AZ43: 1 | BA43: =IF(AZ43=1,G43,0) -> 0 | BB43: =IF(AZ43=2,G43,0) -> 0 | BC43: =IF(AZ43=3,G43,0) -> 0 | BD43: =IF(AZ43=4,G43,0) -> 0 | BE43: =IF(AZ43=5,G43,0) -> 0 | CA43: 1 | CB43: 1
C44: Položka je určena pro suť o velikosti kusu do 30x30 cm (technologický materiál určený k recyklaci). | L44: Položka je určena pro suť o velikosti kusu do 30x30 cm (technologický materiál určený k recyklaci). | O44: 3
B45: Celkem za | C45: 1 Zemní práce | G45: =SUM(G7:G44) -> 0 | I45: =SUM(I7:I44) -> 0.0015 | K45: =SUM(K7:K44) -> -128.01 | O45: 4 | BA45: =SUM(BA7:BA44) -> 0 | BB45: =SUM(BB7:BB44) -> 0 | BC45: =SUM(BC7:BC44) -> 0 | BD45: =SUM(BD7:BD44) -> 0 | BE45: =SUM(BE7:BE44) -> 0
A46: Díl: | B46: 5 | C46: Komunikace | O46: 1
A47: 18 | B47: 564791111R00 | C47: Podklad pro zpevněné plochy z kam.drceného 0-63 mm | D47: m3 | E47: 10.73 | G47: =E47*F47 -> 0 | H47: 2.204 | I47: =E47*H47 -> 23.64892 | J47: 0 | K47: =E47*J47 -> 0 | O47: 2 | AA47: 1 | AB47: 1 | AC47: 1 | AZ47: 1 | BA47: =IF(AZ47=1,G47,0) -> 0 | BB47: =IF(AZ47=2,G47,0) -> 0 | BC47: =IF(AZ47=3,G47,0) -> 0 | BD47: =IF(AZ47=4,G47,0) -> 0 | BE47: =IF(AZ47=5,G47,0) -> 0 | CA47: 1 | CB47: 1
C48: Včetně kameniva, rozprostření a zhutnění podkladu. | L48: Včetně kameniva, rozprostření a zhutnění podkladu. | O48: 3
C49: Pro osazení betonových obrubníků:110,00*0,20*2*0,20 | E49: 8.8 | M49: Pro osazení betonových obrubníků:110,00*0,20*2*0,20
C50: Parkovací stání:(6,50+2*2,50)*6*0,20*0,10 | E50: 1.38 | M50: Parkovací stání:(6,50+2*2,50)*6*0,20*0,10
C51: Prostor pro stromy:(5,00*4+2,50*3)*0,20*0,10 | E51: 0.55 | M51: Prostor pro stromy:(5,00*4+2,50*3)*0,20*0,10
A52: 19 | B52: 572713112R00 | C52: Vyrovnání povrchu krytů kamen. obaleným asfaltem | D52: t | E52: 5.7562 | G52: =E52*F52 -> 0 | H52: 1 | I52: =E52*H52 -> 5.7562 | J52: 0 | K52: =E52*J52 -> 0 | O52: 2 | AA52: 1 | AB52: 1 | AC52: 1 | AZ52: 1 | BA52: =IF(AZ52=1,G52,0) -> 0 | BB52: =IF(AZ52=2,G52,0) -> 0 | BC52: =IF(AZ52=3,G52,0) -> 0 | BD52: =IF(AZ52=4,G52,0) -> 0 | BE52: =IF(AZ52=5,G52,0) -> 0 | CA52: 1 | CB52: 1
C53: Doplnění stávající asfaltové plochy podél nových obrubníků:(110,00*2-6,50*6-5,50*5)*0,15*0,10*2,5 | E53: 5.7562 | M53: Doplnění stávající asfaltové plochy podél nových obrubníků:(110,00*2-6,50*6-5,50*5)*0,15*0,10*2,5
A54: 20 | B54: 573231125R00 | C54: Postřik spojovací z KAE množství zbytkového asfaltu 0,5 kg/m2 | D54: m2 | E54: 732.5 | G54: =E54*F54 -> 0 | H54: 0.0005 | I54: =E54*H54 -> 0.36625 | J54: 0 | K54: =E54*J54 -> 0 | O54: 2 | AA54: 1 | AB54: 1 | AC54: 1 | AZ54: 1 | BA54: =IF(AZ54=1,G54,0) -> 0 | BB54: =IF(AZ54=2,G54,0) -> 0 | BC54: =IF(AZ54=3,G54,0) -> 0 | BD54: =IF(AZ54=4,G54,0) -> 0 | BE54: =IF(AZ54=5,G54,0) -> 0 | CA54: 1 | CB54: 1
C55: Komunikace:110,00*8,00 | E55: 880 | M55: Komunikace:110,00*8,00
C56: Parkovací stání:-6,50*2,50*6 | E56: -97.5 | M56: Parkovací stání:-6,50*2,50*6
C57: Prostor pro stromy:-5,00*2,50*4 | E57: -50 | M57: Prostor pro stromy:-5,00*2,50*4
A58: 21 | B58: 577132111RT2 | C58: Beton asfalt. ACO 11+ obrusný, š.nad 3 m, tl. 4 cm plochy 201-1000 m2 | D58: m2 | E58: 732.5 | G58: =E58*F58 -> 0 | H58: 0.10373 | I58: =E58*H58 -> 75.982225 | J58: 0 | K58: =E58*J58 -> 0 | O58: 2 | AA58: 1 | AB58: 1 | AC58: 1 | AZ58: 1 | BA58: =IF(AZ58=1,G58,0) -> 0 | BB58: =IF(AZ58=2,G58,0) -> 0 | BC58: =IF(AZ58=3,G58,0) -> 0 | BD58: =IF(AZ58=4,G58,0) -> 0 | BE58: =IF(AZ58=5,G58,0) -> 0 | CA58: 1 | CB58: 1
C59: Komunikace:110,00*8,00 | E59: 880 | M59: Komunikace:110,00*8,00
C60: Parkovací stání:-6,50*2,50*6 | E60: -97.5 | M60: Parkovací stání:-6,50*2,50*6
C61: Prostor pro stromy:-5,00*2,50*4 | E61: -50 | M61: Prostor pro stromy:-5,00*2,50*4
A62: 22 | B62: 596215041R00 | C62: Kladení zámkové dlažby tl. 8 cm do drtě tl. 5 cm | D62: m2 | E62: 97.5 | G62: =E62*F62 -> 0 | H62: 0.0928 | I62: =E62*H62 -> 9.048 | J62: 0 | K62: =E62*J62 -> 0 | O62: 2 | AA62: 1 | AB62: 1 | AC62: 1 | AZ62: 1 | BA62: =IF(AZ62=1,G62,0) -> 0 | BB62: =IF(AZ62=2,G62,0) -> 0 | BC62: =IF(AZ62=3,G62,0) -> 0 | BD62: =IF(AZ62=4,G62,0) -> 0 | BE62: =IF(AZ62=5,G62,0) -> 0 | CA62: 1 | CB62: 1
C63: Parkovací stání:6,50*2,50*6 | E63: 97.5 | M63: Parkovací stání:6,50*2,50*6
A64: 23 | B64: 596291113R00 | C64: Řezání zámkové dlažby tl. 80 mm | D64: m | E64: 46.8 | G64: =E64*F64 -> 0 | H64: 0.00036 | I64: =E64*H64 -> 0.016848 | J64: 0 | K64: =E64*J64 -> 0 | O64: 2 | AA64: 1 | AB64: 1 | AC64: 1 | AZ64: 1 | BA64: =IF(AZ64=1,G64,0) -> 0 | BB64: =IF(AZ64=2,G64,0) -> 0 | BC64: =IF(AZ64=3,G64,0) -> 0 | BD64: =IF(AZ64=4,G64,0) -> 0 | BE64: =IF(AZ64=5,G64,0) -> 0 | CA64: 1 | CB64: 1
C65: Parkovací stání:6,50*6*1,2 | E65: 46.8 | M65: Parkovací stání:6,50*6*1,2
A66: 24 | B66: 59245269.R | C66: Dlažba betonová skládaná přírodní 20x10x8 cm | D66: m2 | E66: 99.45 | G66: =E66*F66 -> 0 | H66: 0.137 | I66: =E66*H66 -> 13.62465 | K66: =E66*J66 -> 0 | O66: 2 | AA66: 3 | AB66: 1 | AC66: 59245269.R | AZ66: 1 | BA66: =IF(AZ66=1,G66,0) -> 0 | BB66: =IF(AZ66=2,G66,0) -> 0 | BC66: =IF(AZ66=3,G66,0) -> 0 | BD66: =IF(AZ66=4,G66,0) -> 0 | BE66: =IF(AZ66=5,G66,0) -> 0 | CA66: 3 | CB66: 1
C67: Parkovací stání:6,50*2,50*6*1,02 | E67: 99.45 | M67: Parkovací stání:6,50*2,50*6*1,02
B68: Celkem za | C68: 5 Komunikace | G68: =SUM(G46:G67) -> 0 | I68: =SUM(I46:I67) -> 128.443093 | K68: =SUM(K46:K67) -> 0 | O68: 4 | BA68: =SUM(BA46:BA67) -> 0 | BB68: =SUM(BB46:BB67) -> 0 | BC68: =SUM(BC46:BC67) -> 0 | BD68: =SUM(BD46:BD67) -> 0 | BE68: =SUM(BE46:BE67) -> 0
A69: Díl: | B69: 8 | C69: Trubní vedení | O69: 1
A70: 25 | B70: 899231111R00 | C70: Výšková úprava vstupu do 20 cm, zvýšení mříže | D70: kus | E70: 3 | G70: =E70*F70 -> 0 | H70: 0.43382 | I70: =E70*H70 -> 1.30146 | J70: 0 | K70: =E70*J70 -> 0 | O70: 2 | AA70: 1 | AB70: 1 | AC70: 1 | AZ70: 1 | BA70: =IF(AZ70=1,G70,0) -> 0 | BB70: =IF(AZ70=2,G70,0) -> 0 | BC70: =IF(AZ70=3,G70,0) -> 0 | BD70: =IF(AZ70=4,G70,0) -> 0 | BE70: =IF(AZ70=5,G70,0) -> 0 | CA70: 1 | CB70: 1
B71: Celkem za | C71: 8 Trubní vedení | G71: =SUM(G69:G70) -> 0 | I71: =SUM(I69:I70) -> 1.30146 | K71: =SUM(K69:K70) -> 0 | O71: 4 | BA71: =SUM(BA69:BA70) -> 0 | BB71: =SUM(BB69:BB70) -> 0 | BC71: =SUM(BC69:BC70) -> 0 | BD71: =SUM(BD69:BD70) -> 0 | BE71: =SUM(BE69:BE70) -> 0
A72: Díl: | B72: 91 | C72: Doplňující práce na komunikaci | O72: 1
A73: 26 | B73: 917732114RT5 | C73: Osazení stojat. obrub.bet. s opěrou,lože z C 25/30 včetně obrubníku 1000x100x250 mm | D73: m | E73: 96.5 | G73: =E73*F73 -> 0 | H73: 0.26981 | I73: =E73*H73 -> 26.036665 | J73: 0 | K73: =E73*J73 -> 0 | O73: 2 | AA73: 1 | AB73: 0 | AC73: 0 | AZ73: 1 | BA73: =IF(AZ73=1,G73,0) -> 0 | BB73: =IF(AZ73=2,G73,0) -> 0 | BC73: =IF(AZ73=3,G73,0) -> 0 | BD73: =IF(AZ73=4,G73,0) -> 0 | BE73: =IF(AZ73=5,G73,0) -> 0 | CA73: 1 | CB73: 0
C74: Včetně dodávky obloukových obrubníků v rádiusu dle projektové dokumentace. | L74: Včetně dodávky obloukových obrubníků v rádiusu dle projektové dokumentace. | O74: 3
C75: Parkovací stání:(6,50+2*2,50)*6 | E75: 69 | M75: Parkovací stání:(6,50+2*2,50)*6
C76: Prostor pro stromy:5,00*4+2,50*3 | E76: 27.5 | M76: Prostor pro stromy:5,00*4+2,50*3
A77: 27 | B77: 917732114RT7 | C77: Osazení stojat. obrub.bet. s opěrou,lože z C 25/30 včetně obrubníku 1000x150x250 mm | D77: m | E77: 220 | G77: =E77*F77 -> 0 | H77: 0.26981 | I77: =E77*H77 -> 59.3582 | J77: 0 | K77: =E77*J77 -> 0 | O77: 2 | AA77: 1 | AB77: 0 | AC77: 0 | AZ77: 1 | BA77: =IF(AZ77=1,G77,0) -> 0 | BB77: =IF(AZ77=2,G77,0) -> 0 | BC77: =IF(AZ77=3,G77,0) -> 0 | BD77: =IF(AZ77=4,G77,0) -> 0 | BE77: =IF(AZ77=5,G77,0) -> 0 | CA77: 1 | CB77: 0
C78: Osazení obrubníků:110,00*2 | E78: 220 | M78: Osazení obrubníků:110,00*2
A79: 28 | B79: 918101111R00 | C79: Lože pod obrubníky nebo obruby dlažeb z C 12/15 | D79: m3 | E79: 7.9125 | G79: =E79*F79 -> 0 | H79: 2.525 | I79: =E79*H79 -> 19.9790625 | J79: 0 | K79: =E79*J79 -> 0 | O79: 2 | AA79: 1 | AB79: 1 | AC79: 1 | AZ79: 1 | BA79: =IF(AZ79=1,G79,0) -> 0 | BB79: =IF(AZ79=2,G79,0) -> 0 | BC79: =IF(AZ79=3,G79,0) -> 0 | BD79: =IF(AZ79=4,G79,0) -> 0 | BE79: =IF(AZ79=5,G79,0) -> 0 | CA79: 1 | CB79: 1
C80: Osazení obrubníků:110,00*2*0,25*0,10 | E80: 5.5 | M80: Osazení obrubníků:110,00*2*0,25*0,10
C81: Parkovací stání:(6,50+2*2,50)*6*0,25*0,10 | E81: 1.725 | M81: Parkovací stání:(6,50+2*2,50)*6*0,25*0,10
C82: Prostor pro stromy:(5,00*4+2,50*3)*0,25*0,10 | E82: 0.6875 | M82: Prostor pro stromy:(5,00*4+2,50*3)*0,25*0,10
A83: 29 | B83: 919731122R00 | C83: Zarovnání styčné plochy živičné tl. do 10 cm | D83: m | E83: 242.5 | G83: =E83*F83 -> 0 | H83: 0 | I83: =E83*H83 -> 0 | J83: 0 | K83: =E83*J83 -> 0 | O83: 2 | AA83: 1 | AB83: 1 | AC83: 1 | AZ83: 1 | BA83: =IF(AZ83=1,G83,0) -> 0 | BB83: =IF(AZ83=2,G83,0) -> 0 | BC83: =IF(AZ83=3,G83,0) -> 0 | BD83: =IF(AZ83=4,G83,0) -> 0 | BE83: =IF(AZ83=5,G83,0) -> 0 | CA83: 1 | CB83: 1
C84: Pro osazení betonových obrubníků:110,00*2-6,50*6-5,00*4 | E84: 161 | M84: Pro osazení betonových obrubníků:110,00*2-6,50*6-5,00*4
C85: Pro osazení obruby z kostek: | E85: 0 | M85: Pro osazení obruby z kostek:
C86: Parkovací stání:6,50*6+2,50*6 | E86: 54 | M86: Parkovací stání:6,50*6+2,50*6
C87: Prostor pro stromy:5,00*4+2,50*3 | E87: 27.5 | M87: Prostor pro stromy:5,00*4+2,50*3
A88: 30 | B88: 919735112R00 | C88: Řezání stávajícího živičného krytu tl. 5 - 10 cm | D88: m | E88: 242.5 | G88: =E88*F88 -> 0 | H88: 0 | I88: =E88*H88 -> 0 | J88: 0 | K88: =E88*J88 -> 0 | O88: 2 | AA88: 1 | AB88: 1 | AC88: 1 | AZ88: 1 | BA88: =IF(AZ88=1,G88,0) -> 0 | BB88: =IF(AZ88=2,G88,0) -> 0 | BC88: =IF(AZ88=3,G88,0) -> 0 | BD88: =IF(AZ88=4,G88,0) -> 0 | BE88: =IF(AZ88=5,G88,0) -> 0 | CA88: 1 | CB88: 1
C89: Pro osazení betonových obrubníků:110,00*2-6,50*6-5,00*4 | E89: 161 | M89: Pro osazení betonových obrubníků:110,00*2-6,50*6-5,00*4
C90: Pro osazení obruby z kostek: | E90: 0 | M90: Pro osazení obruby z kostek:
C91: Parkovací stání:6,50*6+2,50*6 | E91: 54 | M91: Parkovací stání:6,50*6+2,50*6
C92: Prostor pro stromy:5,00*4+2,50*3 | E92: 27.5 | M92: Prostor pro stromy:5,00*4+2,50*3
B93: Celkem za | C93: 91 Doplňující práce na komunikaci | G93: =SUM(G72:G92) -> 0 | I93: =SUM(I72:I92) -> 105.3739275 | K93: =SUM(K72:K92) -> 0 | O93: 4 | BA93: =SUM(BA72:BA92) -> 0 | BB93: =SUM(BB72:BB92) -> 0 | BC93: =SUM(BC72:BC92) -> 0 | BD93: =SUM(BD72:BD92) -> 0 | BE93: =SUM(BE72:BE92) -> 0
A94: Díl: | B94: 93 | C94: Dokončovací práce inženýrských staveb | O94: 1
A95: 31 | B95: 938908411R00 | C95: Očištění povrchu krytu saponátovým roztokem | D95: m2 | E95: 732.5 | G95: =E95*F95 -> 0 | H95: 1e-05 | I95: =E95*H95 -> 0.007325 | J95: 0 | K95: =E95*J95 -> 0 | O95: 2 | AA95: 1 | AB95: 1 | AC95: 1 | AZ95: 1 | BA95: =IF(AZ95=1,G95,0) -> 0 | BB95: =IF(AZ95=2,G95,0) -> 0 | BC95: =IF(AZ95=3,G95,0) -> 0 | BD95: =IF(AZ95=4,G95,0) -> 0 | BE95: =IF(AZ95=5,G95,0) -> 0 | CA95: 1 | CB95: 1
C96: Komunikace:110,00*8,00 | E96: 880 | M96: Komunikace:110,00*8,00
C97: Parkovací stání:-6,50*2,50*6 | E97: -97.5 | M97: Parkovací stání:-6,50*2,50*6
C98: Prostor pro stromy:-5,00*2,50*4 | E98: -50 | M98: Prostor pro stromy:-5,00*2,50*4
A99: 32 | B99: 938909311R00 | C99: Odstranění nánosu z povrchu živičného nebo beton. | D99: m2 | E99: 732.5 | G99: =E99*F99 -> 0 | H99: 0 | I99: =E99*H99 -> 0 | J99: 0 | K99: =E99*J99 -> 0 | O99: 2 | AA99: 1 | AB99: 1 | AC99: 1 | AZ99: 1 | BA99: =IF(AZ99=1,G99,0) -> 0 | BB99: =IF(AZ99=2,G99,0) -> 0 | BC99: =IF(AZ99=3,G99,0) -> 0 | BD99: =IF(AZ99=4,G99,0) -> 0 | BE99: =IF(AZ99=5,G99,0) -> 0 | CA99: 1 | CB99: 1
C100: Komunikace:110,00*8,00 | E100: 880 | M100: Komunikace:110,00*8,00
C101: Parkovací stání:-6,50*2,50*6 | E101: -97.5 | M101: Parkovací stání:-6,50*2,50*6
C102: Prostor pro stromy:-5,00*2,50*4 | E102: -50 | M102: Prostor pro stromy:-5,00*2,50*4
A103: 33 | B103: 939421121RT2 | C103: Osazení samonivelač.vodovod.poklopu za finišerem včetně dodávky poklopu | D103: kus | E103: 6 | G103: =E103*F103 -> 0 | H103: 0.0645 | I103: =E103*H103 -> 0.387 | J103: 0 | K103: =E103*J103 -> 0 | O103: 2 | AA103: 1 | AB103: 1 | AC103: 1 | AZ103: 1 | BA103: =IF(AZ103=1,G103,0) -> 0 | BB103: =IF(AZ103=2,G103,0) -> 0 | BC103: =IF(AZ103=3,G103,0) -> 0 | BD103: =IF(AZ103=4,G103,0) -> 0 | BE103: =IF(AZ103=5,G103,0) -> 0 | CA103: 1 | CB103: 1
A104: 34 | B104: 939431111RT2 | C104: Výměna kanaliz.poklopu za samonivelační, hl.200 mm včetně dodávky litinového poklopu D400 SN600 | D104: kus | E104: 3 | G104: =E104*F104 -> 0 | H104: 0.56041 | I104: =E104*H104 -> 1.68123 | J104: -0.32076 | K104: =E104*J104 -> -0.96228 | O104: 2 | AA104: 1 | AB104: 0 | AC104: 0 | AZ104: 1 | BA104: =IF(AZ104=1,G104,0) -> 0 | BB104: =IF(AZ104=2,G104,0) -> 0 | BC104: =IF(AZ104=3,G104,0) -> 0 | BD104: =IF(AZ104=4,G104,0) -> 0 | BE104: =IF(AZ104=5,G104,0) -> 0 | CA104: 1 | CB104: 0
C105: Samonivelační bezpantový těžký poklop KASI KDM65 případně část KDM63 dle upřesnění provozovatele. | L105: Samonivelační bezpantový těžký poklop KASI KDM65 případně část KDM63 dle upřesnění provozovatele. | O105: 3
C106: Poklop se znakem "Město Turnov" | L106: Poklop se znakem "Město Turnov" | O106: 3
B107: Celkem za | C107: 93 Dokončovací práce inženýrských staveb | G107: =SUM(G94:G106) -> 0 | I107: =SUM(I94:I106) -> 2.075555 | K107: =SUM(K94:K106) -> -0.96228 | O107: 4 | BA107: =SUM(BA94:BA106) -> 0 | BB107: =SUM(BB94:BB106) -> 0 | BC107: =SUM(BC94:BC106) -> 0 | BD107: =SUM(BD94:BD106) -> 0 | BE107: =SUM(BE94:BE106) -> 0
A108: Díl: | B108: 99 | C108: Staveništní přesun hmot | O108: 1
A109: 35 | B109: 998225111R00 | C109: Přesun hmot, pozemní komunikace, kryt živičný | D109: t | E109: 237.1955355 | G109: =E109*F109 -> 0 | H109: 0 | I109: =E109*H109 -> 0 | K109: =E109*J109 -> 0 | O109: 2 | AA109: 7 | AB109: 1 | AC109: 2 | AZ109: 1 | BA109: =IF(AZ109=1,G109,0) -> 0 | BB109: =IF(AZ109=2,G109,0) -> 0 | BC109: =IF(AZ109=3,G109,0) -> 0 | BD109: =IF(AZ109=4,G109,0) -> 0 | BE109: =IF(AZ109=5,G109,0) -> 0 | CA109: 7 | CB109: 1
B110: Celkem za | C110: 99 Staveništní přesun hmot | G110: =SUM(G108:G109) -> 0 | I110: =SUM(I108:I109) -> 0 | K110: =SUM(K108:K109) -> 0 | O110: 4 | BA110: =SUM(BA108:BA109) -> 0 | BB110: =SUM(BB108:BB109) -> 0 | BC110: =SUM(BC108:BC109) -> 0 | BD110: =SUM(BD108:BD109) -> 0 | BE110: =SUM(BE108:BE109) -> 0
